{"text_format":"1","workbook":"xlsx","n_sheets":39,"sheets":["DanPar","Pulpit","Pliki","a_NS","jdu_NS","a_NK","jdu_NK","a_NM","jdu_NM","a_ND","jdu_ND","Spraw","Tablice","RW","RWR","RWR2","RS","RSN","Rjdu","DaneR","RZ1","RZ2","RZ3","RZ4","RZ5","RZ6","RP8","RP9","RP10","RP11","DnZ","DnWZ","RAP","Info","Uwaga","nxD","nxT","nxTQ","Licencja"],"not_rendered":{"charts":16,"images":5,"macros":1,"external_links":0,"defined_names":43,"comments":0,"pivot_tables":12},"unopened":[],"bounds":{"document_bytes":16777216,"sheet_cells":100000,"rows_first":2000,"rows_last":500,"rows_between":2000,"halvings":0,"cell_chars":16384,"cell_head_chars":4096},"cells_cut":0,"cells_raw":0,"read":"whole","date_system":"1900"}

{"sheet":"DanPar","index":0,"n_rows":87,"n_cols":20,"rows_kept":87,"cut":false,"hidden":false,"merged":[[5,1,5,2],[5,3,5,4],[5,5,5,19],[6,1,6,2],[6,3,6,4],[6,5,6,19],[4,5,4,6],[1,11,2,19],[1,3,1,9],[2,3,2,9],[39,8,39,11],[23,3,24,3],[23,4,24,4],[19,3,19,7],[23,5,23,7],[4,3,4,4],[38,9,38,11],[38,12,39,16],[38,7,38,8],[39,3,39,5],[38,5,38,6],[38,17,39,19],[28,10,28,16],[29,10,29,13],[30,10,30,13],[31,10,31,13],[29,14,31,16],[69,10,69,18],[70,10,70,15],[65,6,65,7],[73,13,73,16],[37,3,38,4],[70,16,70,18],[43,9,43,10],[44,9,44,10],[45,9,45,10],[61,3,62,10],[64,3,64,7],[68,3,69,3],[68,4,69,4],[68,5,68,7]]}
[]
[null,null,null,"Analiza wydatków poniesionych na wynagrodzenia nauczycieli 2023",null,null,null,null,null,null,null,{"$f":"Licencja!A2","v":"Prawo do użytkowania bez ograniczeń można nabyć poprzez uzyskanie licencji poprzez udział w szkoleniu lub zawarcie umowy licencyjnej."}]
[null,null,null,"Arkusz zdefiniowania warunków i parametrów dokonania analizy"]
[]
[null,null,null,"nazwa krótka",null,"nazwa pełna"]
[null,"Nazwa JST",null,null,null,{"$f":"Licencja!A1","v":"Brak licencji. Aplikacja funkcjonuje z określonymi ograniczeniami."}]
[null,"Data",null,null,null,"Dane i parametry obliczeń (wartość / nazwa / objaśnienia)"]
[]
[]
[null,null,null,{"$f":"D53","v":2},"    Metoda obliczania struktury zatrudnienia",null,null,null,null,null,"1 - wybór metody \"kalendarzowej\" "]
[null,null,null,null,null,null,null,null,null,null,"2 - wybór metody \"dni roboczych\"",null,null,null,null,{"$f":"D49","v":1},"Sposób gromadzenia danych o wydatkach"]
[null,null,null,null,null,null,null,null,null,null,"3 - wybór metody \"dni 30\"",null,null,null,null,null,"1 - z podziałem na nauczycieli"]
[null,null,null,null,null,null,null,null,null,null,null,null,null,null,null,null,"2 - bez podziału na nauczycieli"]
[null,null,null,{"$f":"D56","v":2},"     Dokładność obliczeń (struktura zatrudnienia)",null,null,null,null,null,"Liczba miejsc po przecinku",null,null,null,null,null,"3 - z wyborem (co do podziału na nauczycieli)"]
[]
[null,null,null,{"$f":"D43","v":1},"Ile będzie potrzebnych plików gromadzenia danych?",null,null,null,null,null,"Liczba plików powinna odpowiadać liczbie podmiotów (szkół i placówek oświatowych) gromadzenia danych"]
[null,null,null,{"$f":"D44","v":101},"Nr (początkowy) pierwszego pliku gromadzenia danych"]
[null,null,null,{"$f":"D17+D16-1","v":101},"Nr (końcowy) ostatniego pliku gromadzenia danych"]
[]
[null,null,null,"Kwoty bazowe"]
[null,null,null,"od 1 stycznia do 31 sierpnia",null,{"$f":"F66","v":3981.55},"od 1 stycznia do 31 grudnia",null,null,2,"Sposób liczenia średnich arytmetycznych"]
[null,null,null,"od 1 wrzesnia do 31 grudnia",null,{"$f":"F67","v":3981.55},null,{"$f":"H67","v":0},null,null,"   2 - za dwa okresy bazowe (z 8 i z 4 miesięcy)",null,null,null,null,"(parametr nie jest aktywny)"]
[null,null,null,{"$f":"D68","v":2},"Dokładność obliczeń średniego wynagrodzenia",null,null,null,null,null,"   1 - za jeden okres bazowy (z 12 miesięcy)"]
[null,null,null,"stopień awansu zawodowego","wskaźniki określone w art. 30 ust. 3 KN","średnie wynagrodzenie"]
[null,null,null,null,null,"od 1 stycznia do 31 sierpnia","od 1 września do 31 grudnia","od 1 września do 31 grudnia",null,4,"Analiza wydatków na wynagrodzenia nauczycieli"]
[null,null,null,"stażysta",{"$f":"E71","v":0},{"$f":"F71","v":0},{"$f":"G71","v":0},{"$f":"ROUND($H$22*E26,$D$23)","v":0},null,null,"   1 - łącznie we wszystkich grupach awansu zawodowego (parametr nie jest aktywny)"]
[null,null,null,"kontraktowy",{"$f":"E72","v":1.2},4777.8599999999997,{"$f":"G72","v":4777.8599999999997},{"$f":"ROUND($H$22*E27,$D$23)","v":0},null,null,"   4 - z podziałem na grupy awansu zawodowego"]
[null,null,null,"mianowany",1.44,5733.43,5733.43,{"$f":"ROUND($H$22*E28,$D$23)","v":0}]
[null,null,null,"dyplomowany",1.84,7326.05,7326.05,{"$f":"ROUND($H$22*E29,$D$23)","v":0},null,1,"Wyliczanie okresów zatrudnienia (pozostawania w stanie zatrudnienia)"]
[null,null,null,null,null,null,null,null,null,1,"Wyliczanie struktur zatrudnienia",null,null,null,"1 - Tak / 0 - Nie (relacje między parametrami nie są aktywne)"]
[null,null,null,null,null,null,null,null,null,0,"Wyliczanie okresów świadczenia pracy"]
[null,null,null,null,null,null,null,null,null,0,"Wyliczanie struktur świadczenia pracy"]
[]
[null,null,null,null,null,null,null,null,null,{"$f":"D58","v":0},"Czy generować pliki tworzenia listy nauczycieli i ich identyfikatorów (LNID)?"]
[null,null,null,null,null,null,null,null,null,null,"1 - Tak"]
[null,null,null,null,null,null,null,null,null,null,"0 - Nie"]
[]
[null,null,null,"Analizator 2023"]
[null,null,null,null,null,"wersja: 1227",null,"plik analizatora:",null,"Analizator2023_w1227.xlsm",null,null,"kolejne wersje będą udostępniane \nw miarę potrzeb, możliwości i oczekiwań:",null,null,null,null,"art30a.ucoz.pl"]
[null,null,null,"Parametry niezbędne z perspektywy:",null,null,"2023-12-27","Kod Licencji:",{"$f":"Licencja!A3","v":"Brak Licencji."}]
[]
[]
[null,null,null,1," Liczba potrzebnych plików gromadzenia danych (awn*.xlsx)"]
[null,null,null,101," Nr (początkowy) pierwszego pliku gromadzenia danych",null,null,null,null,{"$f":"CONCATENATE(\"awn\",D44,\".xlsx\")","v":"awn101.xlsx"}]
[null,null,null,"…",null,null,null,null,null,"…"]
[null,null,null,{"$f":"D44+D43-1","v":101}," Nr (końcowy) ostatniego pliku gromadzenia danych",null,null,null,null,{"$f":"CONCATENATE(\"awn\",D46,\".xlsx\")","v":"awn101.xlsx"}]
[]
[null,null,null,null,null,null,null,null,null,null,null,"1 - …z podziałem na nauczycieli"]
[null,null,null,1," Sposób gromadzenia danych o wydatkach",null,null,null,null,null,null,"2 - …bez podziału na nauczycieli"]
[null,null,null,null,null,null,null,null,null,null,null,"3 - …z wyborem, co do podziału na nauczycieli"]
[]
[null,null,null,null,null,null,null,null,null,null,null,"1 - wybór metody \"kalendarzowej\""]
[null,null,null,2," Metoda obliczania struktury zatrudnienia",null,null,null,null,null,null,"2 - wybór metody \"dni roboczych\""]
[null,null,null,null,null,null,null,null,null,null,null,"3 - wybór metody \"dni 30\""]
[]
[null,null,null,2," Dokładność obliczeń struktury zatrudnienia",null,null,null,null,null,null,"Liczba miejsc po przecinku"]
[]
[null,null,null,0," Czy generować pliki tworzenia list nauczycieli i ich identyfikatorów (LNID)?",null,null,null,null,null,null,"1 - Tak / 0 - Nie"]
[]
[null,null,null,4," Metoda pobrania danych z plików gromadzenia danych [awn*.xlsx]",null,null,null,null,null,null,"1 - ADODB AFIN.NET"]
[null,null,null,null," (symboliczne oznaczenie metody)",null,null,null,null,null,null,"2 - ODBC MSQuerry"]
[null,null,null,"wybór metody 3 lub 4 może wymagać dodatkowych ustawień opisanych pod adresem: \nart30a.ucoz.pl",null,null,null,null,null,null,null,"3 - MSDASQL.1"]
[null,null,null,null,null,null,null,null,null,null,null,"4 - ACE.OLEDB.12.0",null,null,"(metoda zalecana)"]
[null,null,null,null,null,null,null,null,null,{"$f":"FOLDER()","v":"K:\\Analiza2023"}]
[null,null,null,"Kwoty bazowe 2023"]
[null,null,null,"od 1 stycznia do 31 sierpnia",null,3981.55,null,null,null,12,"Liczba miesięcy obowiązywania pierwszej kwoty bazowej (B1)"]
[null,null,null,"od 1 września do 31 grudnia",null,3981.55,null,null,null,0,"Algorytm zaokrąglania (0 - zalecany gaussowski/bankierski, 1 - standardowy/szkolny)"]
[null,null,null,2,"Dokładność obliczeń średniego wynagrodzenia"]
[null,null,null,"Nauczyciel","wskaźniki określone w art. 30 ust. 3 KN","średnie wynagrodzenie"]
[null,null,null,null,null,"od 1 stycznia do 31 sierpnia","od 1 września do 31 grudnia",null,null,null,"Szczegółowe wyjaśnienia, prezentacje funkcjonowania, analizy przypadków itp. są przedmiotem szkoleń"]
[null,null,null,null,null,{"$f":"ROUND(E71*$F$21,$D$68)","v":0},{"$f":"ROUND(E71*$F$22,$D$68)+I71","v":0},null,0,null,"Nowe wersje potrzebnych plików są udostępniane pod adresem:",null,null,null,null,null,"art30a.ucoz.pl"]
[null,null,null,"początkujący",1.2,{"$f":"ROUND(E72*$F$21,$D$68)","v":4777.8599999999997},{"$f":"ROUND(E72*$F$22,$D$68)+I72","v":4777.8599999999997},null,0,null,"Pod wskazanym wyżej adresem są także udostępniane wybrane wyjaśnienia i informacje"]
[null,null,null,"mianowany",1.44,5733.43,5733.43,null,0,null,"dotyczące wykorzystywania tych narzędzi oraz problematyki związanej z art. 30a ustawy KN"]
[null,null,null,"dyplomowany",1.84,7326.05,7326.05,null,0,null,"kontakt z autorem narzędzi:",null,null,"Krzysztof.Slugocki@gmail.com",null,null,null,null,null,"© 2023"]
[]
[]
[null,null,null,null,"Kolejne parametry dokonywania analizy są ukryte - będą udostępniane do obsługi w miarę ewentualnych potrzeb w kolejnych wersjach analizatora."]
[]
[]
[]
[]
[null,null,null,1,"iMet","metoda"]
[null,null,null,2,"iZoe","zaokrąglanie obliczenia etatu"]
[null,null,null,2,"iZoo","zaokrąglanie obliczenia okresu"]
[null,null,null,2,"iZos","zaokrąglanie obliczenia struktury"]
[null,null,null,2,"iSStr","zaokrąglanie obliczania średniej struktury"]
[null,null,null,2,"iZOsz","zaokrąglanie obliczania osobistej stawki wynagrodzenia zasadniczego"]

{"sheet":"Pulpit","index":1,"n_rows":79,"n_cols":11,"rows_kept":79,"cut":false,"hidden":false,"merged":[[3,3,3,4],[26,3,26,4]]}
[]
[null,null,null,{"$f":"Tablice!F37","v":"Analiza wydatków poniesionych na wynagrodzenia nauczycieli 2023"}]
[]
[null,null,null,"Pulpit analizy"]
[]
[]
[null,null,null,null,null,"   Analiza kolejno we wszystkich grupach + Sprawozdanie"]
[]
[]
[null,null,null,null,null,"   Analiza - nauczyciele początkujący (P: [a_NK], [jdu_NK])"]
[]
[]
[null,null,null,null,null,"   Analiza - nauczyciele mianowani (M: [a_NM], [jdu_NM])"]
[]
[]
[null,null,null,null,null,"   Analiza - nauczyciele dyplomowani (D: [a_ND], [jdu_ND])"]
[]
[]
[null,null,null,null,null,"   Sprawozdanie z wysokości średnich wynagrodzeń […] (S: [Spraw])"]
[]
[]
[]
[]
[]
[]
[]
[null,null,null,"Pulpit naprawy"]
[]
[]
[null,null,null,null,null,"   Naprawa Tabel Normalizujących w plikach gromadzenia danych [awn*]"]
[]
[]
[]
[null,null,null,null,null,"   Naprawa struktur kontrolnych [N] (w arkuszach: [n*] w plikach [awn*])"]
[]
[]
[]
[null,null,null,null,null,"   Naprawa struktur kontrolnych [W] (w arkuszach: [n*W] w plikach [awn*])"]
[]
[]
[]
[]
[]
[]
[]
[]
[null,null,null,"Raporty analizy poprawności"]
[]
[]
[null,null,null,"ND","    <== wybór grupy do raportu"]
[null,null,null,null,"proponowane zakresy analizy poprawności:",null,null,null,null,null,"Twój wybór:"]
[null,null,null,{"$f":"IF(OR(ISTEXT(K52),K52=\"\"),Tablice!A23,K52)","v":-0.03},"dolna granica dopuszczalnej struktury zatrudnienia"]
[null,null,null,{"$f":"IF(OR(ISTEXT(K53),K53=\"\"),Tablice!A24,K53)","v":1.02},"górna granica dopuszczalnej struktury zatrudnienia"]
[null,null,null,{"$f":"IF(OR(ISTEXT(K54),K54=\"\"),IF(D50=\"NS\",Tablice!A25,IF(D50=\"NK\",Tablice!A26,IF(D50=\"NM\",Tablice!A27,Tablice!A28))),K54)","v":4550},"górna granica minimalnej stawki wynagrodzenia zasadniczego"]
[]
[]
[]
[]
[]
[null,null,null,"Raport kontroli plików Aplikacji"]
[]
[null,null,null,"Nazwa pliku",null,null,"Status","Charakter pliku"]
[null,null,null,{"$f":"FOLDER()","v":"K:\\Analiza2023"}]
[null,null,null,"AgrX.xlsm",null,null,null,"(opcjonalny, zalecany) - kontrola poprawności danych"]
[null,null,null,"analitiw.xlsm",null,null,null,"(opcjonalny) - dodatkowe raportowania"]
[null,null,null,"Analizator2023_w0306.xlsm",null,null,null,"(konieczny) - narzędzia analizy danych"]
[null,null,null,"EuklidesC.xlsx",null,null,null,"(opcjonalny, zalecany) - kalkulator struktur zatrudnienia"]
[null,null,null,"Form_awn1.xlsx",null,null,null,"(konieczny) - plik wzorcowy chroniony"]
[null,null,null,"Form_awn2.xlsx",null,null,null,"(konieczny) - plik wzorcowy chroniony"]
[null,null,null,"Form_awn3.xlsx",null,null,null,"(konieczny) - plik wzorcowy chroniony"]
[null,null,null,"Form_LNID.xlsx",null,null,null,"(opcjonalny) - plik wzorcowy"]
[null,null,null,"Info_SkrotInstrukcjiObslugi.pdf",null,null,null,"(dodatkowy) - skrót instrukcji obsługi"]
[null,null,null,"lic.men",null,null,null,"(dodatkowy) - plik kontroli licencji i funkcjonalności"]
[null,null,null,"LicencjaSiZ.pdf",null,null,null,"(dodatkowy) - treść licencji (06.03.2023)"]
[null,null,null,"mswz.xlsm",null,null,null,"(opcjonalny) - definicja minimalnych stawek"]
[null,null,null,"raport.txt",null,null,null,"(opcjonalny) - zestawienia raportów kontroli"]
[null,null,null,"sprAWNX.xlsm",null,null,null,"(opcjonalny) - kontrola poprawności danych"]
[null,null,null,"Sprawozdanie-art30a_2023.xlsx",null,null,null,"(dodatkowy) - tymczasowy arkusz sprawozdania"]
[null,null,null,"awn*.xlsx",null,null,null,"(konieczny) - plik(i) gromadzenia danych"]

{"sheet":"Pliki","index":2,"n_rows":20,"n_cols":10,"rows_kept":20,"cut":false,"hidden":false,"merged":[[4,6,4,9],[3,2,3,4],[0,6,2,9]]}
[null,null,null,null,null,null,"Uwaga! Ten arkusz nie jest chroniony."]
[null,null,"Lista plików zawierających dane do analizy wydatków na wynagrodzenia nauczycieli"]
[]
[null,"Folder:",{"$f":"FOLDER()","v":"K:\\Analiza2023"},null,null,"Liczba plików w folderze",{"$f":"SUMIF($A:$A,\"*.xlsx\",G:G)","v":0},{"$f":"SUMIF($A:$A,\"*.xlsx\",H:H)","v":0},{"$f":"SUMIF($A:$A,\"*.xlsx\",I:I)","v":0},{"$f":"SUMIF($A:$A,\"*.xlsx\",J:J)","v":0}]
[null,null,null,null,"Twój wybór",{"$f":"MAX(B:B)","v":14},"Liczba nauczycieli (liczba wypełnionych rekordów)"]
["Lista plików do analizy (lista ostateczna)","Nr","Lista plików w folderze","Nazwa podmiotu (pobrana z pliku)","Czy plik z danymi (T/N)?","Lista plików do analizy (wybór domyślny)","[]","Początkujący","Mianowani","Dyplomowani"]
[null,1,"AgrX.xlsm",null,"N"]
[null,2,"Analizator2023_w0306.xlsm",null,"N"]
[null,3,"EuklidesC.xlsx",null,"N"]
[null,4,"Form_awn1.xlsx",null,"N"]
[null,5,"Form_awn2.xlsx",null,"N"]
[null,6,"Form_awn3.xlsx",null,"N"]
[null,7,"Form_LNID.xlsx",null,"N"]
[null,8,"Info_SkrotInstrukcjiObslugi.pdf",null,"N"]
[null,9,"lic.men",null,"N"]
[null,10,"LicencjaSiZ.pdf",null,"N"]
[null,11,"mswz.xlsm",null,"N"]
[null,12,"raport.txt",null,"N"]
[null,13,"sprAWNX.xlsm",null,"N"]
[null,14,"Sprawozdanie-art30a_2023.xlsx",null,"N"]

{"sheet":"a_NS","index":3,"n_rows":12,"n_cols":52,"rows_kept":12,"cut":false,"hidden":true,"merged":[[1,19,1,23],[6,3,7,17],[10,36,10,47],[10,48,10,50],[10,32,10,35],[10,3,10,14],[10,18,10,29],[10,15,10,17],[10,30,10,31],[5,3,5,17],[1,1,1,2],[2,1,2,2],[3,1,3,2],[1,3,1,17],[2,3,2,17]]}
[null,null,{"$f":"NOW()","v":"2023-12-27T07:09:56.320"}]
[null,"Analiza wydatków (Analiza/a_NS)",null,{"$f":"Tablice!F37","v":"Analiza wydatków poniesionych na wynagrodzenia nauczycieli 2023"},null,null,null,null,null,null,null,null,null,null,null,null,null,null,null,"Uwaga! Ten arkusz nie jest chroniony. "]
[null,"Arkusz wyliczeń StrZatr i OSWN",null,"Arkusz wyliczeń struktur zatrudnienia i osobistych stawek wynagrodzenia zasadniczego"]
[null,"Nauczyciele stażyści"]
[null,null,"nazwa krótka","nazwa pełna"]
[null,"Nazwa JST",{"$f":"DanPar!D6","v":0},{"$f":"DanPar!F6","v":"Brak licencji. Aplikacja funkcjonuje z określonymi ograniczeniami."}]
["ns","Data",null,"Koniec analizy (wykonanie musi być równe 100%)."]
[]
[{"$f":"Pliki!G4","v":0},null,null,{"$f":"MAX(D13:D999)","v":0},{"$f":"MAX(E13:E999)","v":0},0,0,0,0,0,0,0,0,0,0]
[null,null,"wykonano:",{"$f":"MIN(D13:D999)","v":0},{"$f":"MIN(E13:E999)","v":0},0,0,0,0,0,0,0,0,0,0]
[1,"ns",{"$f":"IFERROR(A11/Pliki!G4,0)","v":0},"Miesięczna struktura zatrudnienia",null,null,null,null,null,null,null,null,null,null,null,"średnioroczna struktura zatrudnienia (średnia arytmetyczna miesięczna)",null,null,"Miesięczna osobista stawka wynagrodzenia zasadniczego",null,null,null,null,null,null,null,null,null,null,null,"Osobista stawka wynagrodzenia zasadniczego",null,"Dane identyfikujące nauczyciela z podmiotem",null,null,null,"Wydatki poniesione na wynagrodzenia nauczycieli (układ wydatków zależny od sposobu gromadzenia danych o wydatkach: osobno dla każdego nauczyciela lub dla wszystkich nauczycieli w danym podmiocie - dane w wierszu ostatniego nauczeciela w danym podmiocie)",null,null,null,null,null,null,null,null,null,null,null,"Sumy wydatków"]
["Nr","NrID","Nauczyciel (imię i nazwisko lub kod)","styczeń","luty","marzec","kwiecień","maj","czerwiec","lipiec","sierpień","wrzesień","październik","listopad","grudzień","od 1.1 do 31.08","od 1.9 do 31.12","od 1.1 do 31.12","styczeń","luty","marzec","kwiecień","maj","czerwiec","lipiec","sierpień","wrzesień","październik","listopad","grudzień","średnia arytmetyczna miesięczna","suma","ID_Podmiot","ID_JST","Data","ID_Plik","styczeń","luty","marzec","kwiecień","maj","czerwiec","lipiec","sierpień","wrzesień","październik","listopad","grudzień","od 1.1 do 31.08","od 1.9 do 31.12","od 1.1 do 31.12","SW"]

{"sheet":"jdu_NS","index":4,"n_rows":22,"n_cols":14,"rows_kept":22,"cut":false,"hidden":true,"merged":[[11,12,16,14],[3,10,3,14]]}
["a_ND"]
[null,null,null,null,null,null,null,"Analiza wydatków (Analiza/jdu_NS)",null,{"$f":"Tablice!F37","v":"Analiza wydatków poniesionych na wynagrodzenia nauczycieli 2023"}]
[null,null,null,null,null,null,null,"Arkusz wyliczeń JDU",null,"Arkusz wyliczeń jednorazowego dodatku uzupełniającego"]
[null,null,null,null,null,null,null,"Nauczyciele stażyści",null,"NS","Uwaga! Ten arkusz nie jest chroniony. "]
[null,null,null,null,null,null,null,null,"nazwa krótka","nazwa pełna"]
[null,null,null,null,null,null,null,"Nazwa JST",{"$f":"DanPar!D6","v":0},{"$f":"DanPar!F6","v":"Brak licencji. Aplikacja funkcjonuje z określonymi ograniczeniami."}]
[null,null,null,null,null,null,null,"Data"]
[]
[null,null,null,null,null,null,null,{"$f":"Tablice!F43","v":"Suma wydatków poniesionych na wynagrodzenia (od 1.1 do 31.12)"},null,"W8 =",0,"[zł]"]
[null,null,null,null,null,null,null,{"$f":"Tablice!F44","v":"Suma wydatków poniesionych na wynagrodzenia (_)"},null,"W4 =",0,"[zł]"]
[null,null,null,null,null,null,null,{"$f":"Tablice!F45","v":"Suma wydatków poniesionych na wynagrodzenia (od 01.01 do 31.12)"},null,"W12 =",0,"[zł]"]
[null,null,null,null,null,null,null,{"$f":"Tablice!F46","v":"Średnioroczna liczba etatów nauczycieli (od 1.1 do 31.12)"},null,"N8 =",0,null,"osobista stawka wynagrodzenia zasadniczego jest definiowana jako: \n1 - suma miesięcznych osobistych stawek wynagrodzenia zasadniczego, \n2 - średnia arytmetyczna miesięcznych osobistych stawek wynagrodzenia zasadniczego."]
[null,null,null,null,null,null,null,{"$f":"Tablice!F47","v":"Średnioroczna liczba etatów nauczycieli (_)"},null,"N4 =",0]
[null,null,null,null,null,null,null,{"$f":"Tablice!F48","v":"Średnioroczna liczba etatów nauczycieli (od 01.01 do 31.12)"},null,"N12 =",0]
[null,null,null,null,null,null,null,{"$f":"Tablice!F49","v":"Iloczyn śr. wynagr. i śr. liczby etatów  (S * N)"},null,"S * N =",0,"[zł]"]
[null,null,null,null,null,null,null,{"$f":"Tablice!F50","v":"Różnica R = W - (S12 * E12 * 12 + S0 * E0 * 0)"},null,"R = W - S * N =",0,"[zł]"]
[null,null,null,null,null,null,null,"Suma miesięcznych osobistych stawek wynagrodzenia zasadniczego",null,"Suma Sj =",0,"[zł]"]
[null,null,null,null,null,null,null,"Suma średnich arytmetycznych mies. osobist. staw. wynagr. zasadniczego",null,"Suma śr. Sj =",0,"[zł]"]
[null,null,null,null,null,null,null,null,"policzono",1,{"$f":"IF(K17=0,0,J19/J20)","v":0},{"$f":"IF(K17=0,0,J19/J20)","v":0},null,1]
[null,null,null,null,null,null,null,null,"z",{"$f":"a_NS!A9","v":0},"Suma_JDU"]
[null,null,null,null,null,null,null,null,null,null,{"$f":"SUM(K23:K9999)","v":0}]
["NrW_BD","Nr_BD","Nr_ID_BD","Kod_BD","NP_BD","Plik_BD","lp","N","Kod nauczyciela (lub imię i nazwisko)","Sj [zł]","jdu"]

{"sheet":"a_NK","index":5,"n_rows":12,"n_cols":52,"rows_kept":12,"cut":false,"hidden":false,"merged":[[1,19,1,23],[6,3,7,17],[5,3,5,17],[1,1,1,2],[1,3,1,17],[2,1,2,2],[2,3,2,17],[3,1,3,2],[10,48,10,50],[10,3,10,14],[10,15,10,17],[10,18,10,29],[10,30,10,31],[10,32,10,35],[10,36,10,47]]}
[null,null,{"$f":"NOW()","v":"2023-12-27T07:09:56.320"}]
[null,"Analiza wydatków (Analiza/a_NP)",null,{"$f":"Tablice!F37","v":"Analiza wydatków poniesionych na wynagrodzenia nauczycieli 2023"},null,null,null,null,null,null,null,null,null,null,null,null,null,null,null,"Uwaga! Ten arkusz nie jest chroniony. "]
[null,"Arkusz wyliczeń StrZatr i OSWN",null,"Arkusz wyliczeń struktur zatrudnienia i osobistych stawek wynagrodzenia zasadniczego"]
[null,"Nauczyciele początkujący"]
[null,null,"nazwa krótka","nazwa pełna"]
[null,"Nazwa JST",{"$f":"DanPar!D6","v":0},{"$f":"DanPar!F6","v":"Brak licencji. Aplikacja funkcjonuje z określonymi ograniczeniami."}]
["nk","Data",null,"Koniec analizy (wykonanie musi być równe 100%)."]
[]
[{"$f":"Pliki!H4","v":0},null,null,{"$f":"MAX(D13:D999)","v":0},{"$f":"MAX(E13:E999)","v":0},0,0,0,0,0,0,0,0,0,0]
[null,null,"wykonano:",{"$f":"MIN(D13:D999)","v":0},{"$f":"MIN(E13:E999)","v":0},0,0,0,0,0,0,0,0,0,0]
[0,"nk",{"$f":"IFERROR(A11/Pliki!H4,0)","v":0},"Miesięczna struktura zatrudnienia",null,null,null,null,null,null,null,null,null,null,null,"średnioroczna struktura zatrudnienia (średnia arytmetyczna miesięczna)",null,null,"Miesięczna osobista stawka wynagrodzenia zasadniczego",null,null,null,null,null,null,null,null,null,null,null,"Osobista stawka wynagrodzenia zasadniczego",null,"Dane identyfikujące nauczyciela z podmiotem",null,null,null,"Wydatki poniesione na wynagrodzenia nauczycieli (układ wydatków zależny od sposobu gromadzenia danych o wydatkach: osobno dla każdego nauczyciela lub dla wszystkich nauczycieli w danym podmiocie - dane w wierszu ostatniego nauczeciela w danym podmiocie)",null,null,null,null,null,null,null,null,null,null,null,"Sumy wydatków"]
["Nr","NrID","Nauczyciel (imię i nazwisko lub kod)","styczeń","luty","marzec","kwiecień","maj","czerwiec","lipiec","sierpień","wrzesień","październik","listopad","grudzień","od 1.1 do 31.08","od 1.9 do 31.12","od 1.1 do 31.12","styczeń","luty","marzec","kwiecień","maj","czerwiec","lipiec","sierpień","wrzesień","październik","listopad","grudzień","średnia arytmetyczna miesięczna","suma","ID_Podmiot","ID_JST","Data","ID_Plik","styczeń","luty","marzec","kwiecień","maj","czerwiec","lipiec","sierpień","wrzesień","październik","listopad","grudzień","od 1.1 do 31.08","od 1.9 do 31.12","od 1.1 do 31.12","SW"]

{"sheet":"jdu_NK","index":6,"n_rows":22,"n_cols":14,"rows_kept":22,"cut":false,"hidden":false,"merged":[[11,12,16,14],[3,10,3,14]]}
["a_ND"]
[null,null,null,null,null,null,null,"Analiza wydatków (Analiza/jdu_NP)",null,{"$f":"Tablice!F37","v":"Analiza wydatków poniesionych na wynagrodzenia nauczycieli 2023"}]
[null,null,null,null,null,null,null,"Arkusz wyliczeń JDU",null,"Arkusz wyliczeń jednorazowego dodatku uzupełniającego"]
[null,null,null,null,null,null,null,"Nauczyciele początkujący",null,"NK","Uwaga! Ten arkusz nie jest chroniony. "]
[null,null,null,null,null,null,null,null,"nazwa krótka","nazwa pełna"]
[null,null,null,null,null,null,null,"Nazwa JST",{"$f":"DanPar!D6","v":0},{"$f":"DanPar!F6","v":"Brak licencji. Aplikacja funkcjonuje z określonymi ograniczeniami."}]
[null,null,null,null,null,null,null,"Data"]
[]
[null,null,null,null,null,null,null,{"$f":"Tablice!F43","v":"Suma wydatków poniesionych na wynagrodzenia (od 1.1 do 31.12)"},null,{"$f":"Tablice!F52","v":"W12 ="},0,"[zł]"]
[null,null,null,null,null,null,null,{"$f":"Tablice!F44","v":"Suma wydatków poniesionych na wynagrodzenia (_)"},null,{"$f":"Tablice!F53","v":"W0 ="},0,"[zł]"]
[null,null,null,null,null,null,null,{"$f":"Tablice!F45","v":"Suma wydatków poniesionych na wynagrodzenia (od 01.01 do 31.12)"},null,{"$f":"Tablice!F54","v":"W12 ="},0,"[zł]"]
[null,null,null,null,null,null,null,{"$f":"Tablice!F46","v":"Średnioroczna liczba etatów nauczycieli (od 1.1 do 31.12)"},null,{"$f":"Tablice!F55","v":"N12 ="},0,null,"osobista stawka wynagrodzenia zasadniczego jest definiowana jako: \n1 - suma miesięcznych osobistych stawek wynagrodzenia zasadniczego, \n2 - średnia arytmetyczna miesięcznych osobistych stawek wynagrodzenia zasadniczego."]
[null,null,null,null,null,null,null,{"$f":"Tablice!F47","v":"Średnioroczna liczba etatów nauczycieli (_)"},null,{"$f":"Tablice!F56","v":"N0 ="},0]
[null,null,null,null,null,null,null,{"$f":"Tablice!F48","v":"Średnioroczna liczba etatów nauczycieli (od 01.01 do 31.12)"},null,{"$f":"Tablice!F57","v":"N12 ="},0]
[null,null,null,null,null,null,null,{"$f":"Tablice!F49","v":"Iloczyn śr. wynagr. i śr. liczby etatów  (S * N)"},null,{"$f":"Tablice!F58","v":"S * N ="},0,"[zł]"]
[null,null,null,null,null,null,null,{"$f":"Tablice!F50","v":"Różnica R = W - (S12 * E12 * 12 + S0 * E0 * 0)"},null,"R = W - S * N =",0,"[zł]"]
[null,null,null,null,null,null,null,"Suma miesięcznych osobistych stawek wynagrodzenia zasadniczego",null,"Suma Sj =",0,"[zł]"]
[null,null,null,null,null,null,null,"Suma średnich arytmetycznych mies. osobist. staw. wynagr. zasadniczego",null,"Suma śr. Sj =",0,"[zł]"]
[null,null,null,null,null,null,null,null,"policzono",0,{"$f":"IF(K17=0,0,J19/J20)","v":0},{"$f":"IF(K17=0,0,J19/J20)","v":0},null,1]
[null,null,null,null,null,null,null,null,"z",{"$f":"a_NK!A9","v":0},"Suma_JDU"]
[null,null,null,null,null,null,null,null,null,null,{"$f":"SUM(K23:K9999)","v":0}]
["NrW_BD","Nr_BD","Nr_ID_BD","Kod_BD","NP_BD","Plik_BD","id","N","Kod nauczyciela (lub imię i nazwisko)","Sj [zł]","jdu"]

{"sheet":"a_NM","index":7,"n_rows":12,"n_cols":52,"rows_kept":12,"cut":false,"hidden":false,"merged":[[1,19,1,23],[6,3,7,17],[5,3,5,17],[1,1,1,2],[1,3,1,17],[2,1,2,2],[2,3,2,17],[3,1,3,2],[10,48,10,50],[10,3,10,14],[10,15,10,17],[10,18,10,29],[10,30,10,31],[10,32,10,35],[10,36,10,47]]}
[null,null,{"$f":"NOW()","v":"2023-12-27T07:09:56.320"}]
[null,"Analiza wydatków (Analiza/a_NM)",null,{"$f":"Tablice!F37","v":"Analiza wydatków poniesionych na wynagrodzenia nauczycieli 2023"},null,null,null,null,null,null,null,null,null,null,null,null,null,null,null,"Uwaga! Ten arkusz nie jest chroniony. "]
[null,"Arkusz wyliczeń StrZatr i OSWN",null,"Arkusz wyliczeń struktur zatrudnienia i osobistych stawek wynagrodzenia zasadniczego"]
[null,"Nauczyciele mianowani"]
[null,null,"nazwa krótka","nazwa pełna"]
[null,"Nazwa JST",{"$f":"DanPar!D6","v":0},{"$f":"DanPar!F6","v":"Brak licencji. Aplikacja funkcjonuje z określonymi ograniczeniami."}]
["nm","Data",null,"Koniec analizy (wykonanie musi być równe 100%)."]
[]
[{"$f":"Pliki!I4","v":0},null,null,{"$f":"MAX(D13:D999)","v":0},{"$f":"MAX(E13:E999)","v":0},0,0,0,0,0,0,0,0,0,0]
[null,null,"wykonano:",{"$f":"MIN(D13:D999)","v":0},{"$f":"MIN(E13:E999)","v":0},0,0,0,0,0,0,0,0,0,0]
[0,"nm",{"$f":"IFERROR(A11/Pliki!I4,0)","v":0},"Miesięczna struktura zatrudnienia",null,null,null,null,null,null,null,null,null,null,null,"średnioroczna struktura zatrudnienia (średnia arytmetyczna miesięczna)",null,null,"Miesięczna osobista stawka wynagrodzenia zasadniczego",null,null,null,null,null,null,null,null,null,null,null,"Osobista stawka wynagrodzenia zasadniczego",null,"Dane identyfikujące nauczyciela z podmiotem",null,null,null,"Wydatki poniesione na wynagrodzenia nauczycieli (układ wydatków zależny od sposobu gromadzenia danych o wydatkach: osobno dla każdego nauczyciela lub dla wszystkich nauczycieli w danym podmiocie - dane w wierszu ostatniego nauczeciela w danym podmiocie)",null,null,null,null,null,null,null,null,null,null,null,"Sumy wydatków"]
["Nr","NrID","Nauczyciel (imię i nazwisko lub kod)","styczeń","luty","marzec","kwiecień","maj","czerwiec","lipiec","sierpień","wrzesień","październik","listopad","grudzień","od 1.1 do 31.08","od 1.9 do 31.12","od 1.1 do 31.12","styczeń","luty","marzec","kwiecień","maj","czerwiec","lipiec","sierpień","wrzesień","październik","listopad","grudzień","średnia arytmetyczna miesięczna","suma","ID_Podmiot","ID_JST","Data","ID_Plik","styczeń","luty","marzec","kwiecień","maj","czerwiec","lipiec","sierpień","wrzesień","październik","listopad","grudzień","od 1.1 do 31.08","od 1.9 do 31.12","od 1.1 do 31.12","SW"]

{"sheet":"jdu_NM","index":8,"n_rows":22,"n_cols":14,"rows_kept":22,"cut":false,"hidden":false,"merged":[[11,12,16,14],[3,10,3,14]]}
["a_ND"]
[null,null,null,null,null,null,null,"Analiza wydatków (Analiza/jdu_NM)",null,{"$f":"Tablice!F37","v":"Analiza wydatków poniesionych na wynagrodzenia nauczycieli 2023"}]
[null,null,null,null,null,null,null,"Arkusz wyliczeń JDU",null,"Arkusz wyliczeń jednorazowego dodatku uzupełniającego"]
[null,null,null,null,null,null,null,"Nauczyciele mianowani",null,"NM","Uwaga! Ten arkusz nie jest chroniony. "]
[null,null,null,null,null,null,null,null,"nazwa krótka","nazwa pełna"]
[null,null,null,null,null,null,null,"Nazwa JST",{"$f":"DanPar!D6","v":0},{"$f":"DanPar!F6","v":"Brak licencji. Aplikacja funkcjonuje z określonymi ograniczeniami."}]
[null,null,null,null,null,null,null,"Data"]
[]
[null,null,null,null,null,null,null,{"$f":"Tablice!F43","v":"Suma wydatków poniesionych na wynagrodzenia (od 1.1 do 31.12)"},null,{"$f":"Tablice!F52","v":"W12 ="},0,"[zł]"]
[null,null,null,null,null,null,null,{"$f":"Tablice!F44","v":"Suma wydatków poniesionych na wynagrodzenia (_)"},null,{"$f":"Tablice!F53","v":"W0 ="},0,"[zł]"]
[null,null,null,null,null,null,null,{"$f":"Tablice!F45","v":"Suma wydatków poniesionych na wynagrodzenia (od 01.01 do 31.12)"},null,{"$f":"Tablice!F54","v":"W12 ="},0,"[zł]"]
[null,null,null,null,null,null,null,{"$f":"Tablice!F46","v":"Średnioroczna liczba etatów nauczycieli (od 1.1 do 31.12)"},null,{"$f":"Tablice!F55","v":"N12 ="},0,null,"osobista stawka wynagrodzenia zasadniczego jest definiowana jako: \n1 - suma miesięcznych osobistych stawek wynagrodzenia zasadniczego, \n2 - średnia arytmetyczna miesięcznych osobistych stawek wynagrodzenia zasadniczego."]
[null,null,null,null,null,null,null,{"$f":"Tablice!F47","v":"Średnioroczna liczba etatów nauczycieli (_)"},null,{"$f":"Tablice!F56","v":"N0 ="},0]
[null,null,null,null,null,null,null,{"$f":"Tablice!F48","v":"Średnioroczna liczba etatów nauczycieli (od 01.01 do 31.12)"},null,{"$f":"Tablice!F57","v":"N12 ="},0]
[null,null,null,null,null,null,null,{"$f":"Tablice!F49","v":"Iloczyn śr. wynagr. i śr. liczby etatów  (S * N)"},null,{"$f":"Tablice!F58","v":"S * N ="},0,"[zł]"]
[null,null,null,null,null,null,null,{"$f":"Tablice!F50","v":"Różnica R = W - (S12 * E12 * 12 + S0 * E0 * 0)"},null,"R = W - S * N =",0,"[zł]"]
[null,null,null,null,null,null,null,"Suma miesięcznych osobistych stawek wynagrodzenia zasadniczego",null,"Suma Sj =",0,"[zł]"]
[null,null,null,null,null,null,null,"Suma średnich arytmetycznych mies. osobist. staw. wynagr. zasadniczego",null,"Suma śr. Sj =",0,"[zł]"]
[null,null,null,null,null,null,null,null,"policzono",0,{"$f":"IF(K17=0,0,J19/J20)","v":0},{"$f":"IF(K17=0,0,J19/J20)","v":0},null,1]
[null,null,null,null,null,null,null,null,"z",{"$f":"a_NM!A9","v":0},"Suma_JDU"]
[null,null,null,null,null,null,null,null,null,null,{"$f":"SUM(K23:K9999)","v":0}]
["NrW_BD","Nr_BD","Nr_ID_BD","Kod_BD","NP_BD","Plik_BD","lp","N","Kod nauczyciela (lub imię i nazwisko)","Sj [zł]","jdu"]

{"sheet":"a_ND","index":9,"n_rows":12,"n_cols":52,"rows_kept":12,"cut":false,"hidden":false,"merged":[[1,19,1,23],[6,3,7,17],[5,3,5,17],[1,1,1,2],[1,3,1,17],[2,1,2,2],[2,3,2,17],[3,1,3,2],[10,48,10,50],[10,3,10,14],[10,15,10,17],[10,18,10,29],[10,30,10,31],[10,32,10,35],[10,36,10,47]]}
[null,null,{"$f":"NOW()","v":"2023-12-27T07:09:56.320"}]
[null,"Analiza wydatków (Analiza/a_ND)",null,{"$f":"Tablice!F37","v":"Analiza wydatków poniesionych na wynagrodzenia nauczycieli 2023"},null,null,null,null,null,null,null,null,null,null,null,null,null,null,null,"Uwaga! Ten arkusz nie jest chroniony. "]
[null,"Arkusz wyliczeń StrZatr i OSWN",null,"Arkusz wyliczeń struktur zatrudnienia i osobistych stawek wynagrodzenia zasadniczego"]
[null,"Nauczyciele dyplomowani"]
[null,null,"nazwa krótka","nazwa pełna"]
[null,"Nazwa JST",{"$f":"DanPar!D6","v":0},{"$f":"DanPar!F6","v":"Brak licencji. Aplikacja funkcjonuje z określonymi ograniczeniami."}]
["nd","Data",null,"Koniec analizy (wykonanie musi być równe 100%)."]
[]
[{"$f":"Pliki!J4","v":0},null,null,{"$f":"MAX(D13:D999)","v":0},{"$f":"MAX(E13:E999)","v":0},0,0,0,0,0,0,0,0,0,0]
[null,null,"wykonano:",{"$f":"MIN(D13:D999)","v":0},{"$f":"MIN(E13:E999)","v":0},0,0,0,0,0,0,0,0,0,0]
[0,"nd",{"$f":"IFERROR(A11/Pliki!J4,0)","v":0},"Miesięczna struktura zatrudnienia",null,null,null,null,null,null,null,null,null,null,null,"średnioroczna struktura zatrudnienia (średnia arytmetyczna miesięczna)",null,null,"Miesięczna osobista stawka wynagrodzenia zasadniczego",null,null,null,null,null,null,null,null,null,null,null,"Osobista stawka wynagrodzenia zasadniczego",null,"Dane identyfikujące nauczyciela z podmiotem",null,null,null,"Wydatki poniesione na wynagrodzenia nauczycieli (układ wydatków zależny od sposobu gromadzenia danych o wydatkach: osobno dla każdego nauczyciela lub dla wszystkich nauczycieli w danym podmiocie - dane w wierszu ostatniego nauczeciela w danym podmiocie)",null,null,null,null,null,null,null,null,null,null,null,"Sumy wydatków"]
["Nr","NrID","Nauczyciel (imię i nazwisko lub kod)","styczeń","luty","marzec","kwiecień","maj","czerwiec","lipiec","sierpień","wrzesień","październik","listopad","grudzień","od 1.1 do 31.08","od 1.9 do 31.12","od 1.1 do 31.12","styczeń","luty","marzec","kwiecień","maj","czerwiec","lipiec","sierpień","wrzesień","październik","listopad","grudzień","średnia arytmetyczna miesięczna","suma","ID_Podmiot","ID_JST","Data","ID_Plik","styczeń","luty","marzec","kwiecień","maj","czerwiec","lipiec","sierpień","wrzesień","październik","listopad","grudzień","od 1.1 do 31.08","od 1.9 do 31.12","od 1.1 do 31.12","SW"]

{"sheet":"jdu_ND","index":10,"n_rows":22,"n_cols":14,"rows_kept":22,"cut":false,"hidden":false,"merged":[[11,12,16,14],[3,10,3,14]]}
["a_ND"]
[null,null,null,null,null,null,null,"Analiza wydatków (Analiza/jdu_ND)",null,{"$f":"Tablice!F37","v":"Analiza wydatków poniesionych na wynagrodzenia nauczycieli 2023"}]
[null,null,null,null,null,null,null,"Arkusz wyliczeń JDU",null,"Arkusz wyliczeń jednorazowego dodatku uzupełniającego"]
[null,null,null,null,null,null,null,"Nauczyciele dyplomowani",null,"ND","Uwaga! Ten arkusz nie jest chroniony. "]
[null,null,null,null,null,null,null,null,"nazwa krótka","nazwa pełna"]
[null,null,null,null,null,null,null,"Nazwa JST",{"$f":"DanPar!D6","v":0},{"$f":"DanPar!F6","v":"Brak licencji. Aplikacja funkcjonuje z określonymi ograniczeniami."}]
[null,null,null,null,null,null,null,"Data"]
[]
[null,null,null,null,null,null,null,{"$f":"Tablice!F43","v":"Suma wydatków poniesionych na wynagrodzenia (od 1.1 do 31.12)"},null,{"$f":"Tablice!F52","v":"W12 ="},0,"[zł]"]
[null,null,null,null,null,null,null,{"$f":"Tablice!F44","v":"Suma wydatków poniesionych na wynagrodzenia (_)"},null,{"$f":"Tablice!F53","v":"W0 ="},0,"[zł]"]
[null,null,null,null,null,null,null,{"$f":"Tablice!F45","v":"Suma wydatków poniesionych na wynagrodzenia (od 01.01 do 31.12)"},null,{"$f":"Tablice!F54","v":"W12 ="},0,"[zł]"]
[null,null,null,null,null,null,null,{"$f":"Tablice!F46","v":"Średnioroczna liczba etatów nauczycieli (od 1.1 do 31.12)"},null,{"$f":"Tablice!F55","v":"N12 ="},0,null,"osobista stawka wynagrodzenia zasadniczego jest definiowana jako: \n1 - suma miesięcznych osobistych stawek wynagrodzenia zasadniczego, \n2 - średnia arytmetyczna miesięcznych osobistych stawek wynagrodzenia zasadniczego."]
[null,null,null,null,null,null,null,{"$f":"Tablice!F47","v":"Średnioroczna liczba etatów nauczycieli (_)"},null,{"$f":"Tablice!F56","v":"N0 ="},0]
[null,null,null,null,null,null,null,{"$f":"Tablice!F48","v":"Średnioroczna liczba etatów nauczycieli (od 01.01 do 31.12)"},null,{"$f":"Tablice!F57","v":"N12 ="},0]
[null,null,null,null,null,null,null,{"$f":"Tablice!F49","v":"Iloczyn śr. wynagr. i śr. liczby etatów  (S * N)"},null,{"$f":"Tablice!F58","v":"S * N ="},0,"[zł]"]
[null,null,null,null,null,null,null,{"$f":"Tablice!F50","v":"Różnica R = W - (S12 * E12 * 12 + S0 * E0 * 0)"},null,"R = W - S * N =",0,"[zł]"]
[null,null,null,null,null,null,null,"Suma miesięcznych osobistych stawek wynagrodzenia zasadniczego",null,"Suma Sj =",0,"[zł]"]
[null,null,null,null,null,null,null,"Suma średnich arytmetycznych mies. osobist. staw. wynagr. zasadniczego",null,"Suma śr. Sj =",0,"[zł]"]
[null,null,null,null,null,null,null,null,"policzono",0,{"$f":"IF(K17=0,0,J19/J20)","v":0},{"$f":"IF(K17=0,0,J19/J20)","v":0},null,1]
[null,null,null,null,null,null,null,null,"z",{"$f":"a_ND!A9","v":0},"Suma_JDU"]
[null,null,null,null,null,null,null,null,null,null,{"$f":"SUM(K23:K9999)","v":0}]
["NrW_BD","Nr_BD","Nr_ID_BD","Kod_BD","NP_BD","Plik_BD","id","N","Kod nauczyciela (lub imię i nazwisko)","Sj [zł]","jdu"]

{"sheet":"Spraw","index":11,"n_rows":35,"n_cols":15,"rows_kept":35,"cut":false,"hidden":false,"merged":[[13,0,15,0],[13,1,15,1],[13,2,15,2],[13,3,13,4],[13,5,13,6],[14,3,15,3],[14,4,15,4],[27,4,27,6],[27,8,27,9],[15,11,15,13],[25,4,25,6],[25,8,25,9],[26,4,26,6],[26,8,26,9],[13,8,15,8],[13,9,14,9],[13,11,13,12],[13,13,14,13],[14,5,15,5],[14,6,15,6],[13,7,14,7],[23,4,23,8],[24,4,24,8],[2,1,2,3],[4,1,4,9],[3,1,3,5],[3,7,3,11],[10,5,10,7],[10,0,10,2],[10,11,11,13],[5,1,8,1],[7,8,7,13],[8,8,8,13],[10,3,10,4],[5,2,7,6]]}
[null,"Należy wypełnić kolejne pola kodu TERYT (pola z niebieskim tłem). Użycie przycisku [Przygotuj Sprawozdanie] pozwoli przygotować sprawozdanie zgodne z plikiem wzorcowym MEN."]
[null,"Plik sprawozdania w formacie XLSX jest już częścią Aplikacji. W przypadku skorzystania z pliku sprawozdania w formacie XLS (MEN) należy w polu [nazwa pliku sprawozdania] wpisać właściwą nazwę."]
[]
[null,"Uwaga! Ten arkusz nie jest chroniony. ",null,null,null,null,null,"W tej wersji (0306) jest wykorzystywany plik sprawozdania analogiczny do tych z lat minionych. \nW polu [nazwa pliku sprawozdania:] należy wpisać właściwą nazwę pliku."]
[null,"Tabela główna arkusza sprawozdania z wysokości średnich wynagrodzeń nauczycieli na poszczególnych stopniach awansu zawodowego \nw szkołach prowadzonych przez jednostkę samorządu terytorialnego"]
[null,"Zgodnie z:\nkatalogiem TERC\neteryt.stat.gov.pl\n","Weryfikacja kodu TERYT nastąpi w docelowym arkuszu sprawozdania, czyli po przeniesieniu [Przygotuj Sprawozdanie] lub po przekopiowaniu danych (niebieskie pola) do MEiN'owskiego arkusza sprawozdania",null,null,null,null,null,"…oznaczenie danego pola sprawi, że:"]
[null,null,null,null,null,null,null,{"$f":"HYPERLINK(\"http://bip.wroclaw.rio.gov.pl/sprawozdawczosc-systemy-informatyczne-i-formularze/wynagrodzenia-nauczycieli\",\"RIO, nazewnictwo plików\")","v":"RIO, nazewnictwo plików"},"Plik sprawozdania zostanie zapisany zgodnie z oczekiwaniem RIO (pod nazwą zgodną z kodem TERYT)",null,null,null,null,null,false]
[null,null,null,null,null,null,null,null,"Plik sprawozdania zostanie także zapisany w formacie XLS (format domyślny XLSX)",null,null,null,null,null,false]
[null,null,"kod TERYT","WK","PK","GK","GT",null,"Plik sprawozdania zostanie dodatkowo zapisany w formacie PDF",null,null,null,null,null,false]
[null,{"$f":"HYPERLINK(\"http://eteryt.stat.gov.pl/eTeryt/rejestr_teryt/udostepnianie_danych/baza_teryt/uzytkownicy_indywidualni/wyszukiwanie/wyszukiwanie.aspx?contrast=default\",\"Rejestr TERYT\")","v":"Rejestr TERYT"},{"$f":"TEXT(D10,\"00\")&TEXT(E10,\"00\")&TEXT(F10,\"00\")&TEXT(G10,\"0\")","v":"0000000"}]
[{"$f":"FOLDER()","v":"K:\\Analiza2023"},null,null,"nazwa pliku sprawozdania:",null,"20231220_Sprawozdanie-art30a_2023.xlsx",null,null,"od dnia 1 stycznia \ndo dnia 31 sierpnia (B1)","od dnia 1 września \ndo dnia 31 grudnia (B2)",null,"weryfikacja liczby miejsc po przecinku podanych w kolumnach: (6), (7), (9)\nliczba 1 na pomarańczowym tle\nwskazuje miejsce wystąpienia błędu \n(kol. sprawozdania oraz stopień awansu)"]
[null,null,"Rok podlegający analizie:  ",2023,null,null,null,"Kwota bazowa \n(zgodnie z ustawą budżetową na rok podlegający analizie)",3981.55,3981.55]
[]
["Lp.","Nauczyciele, o których mowa w art. 30 ust. 3 ustawy","Wskaźniki, o których mowaw art. 30 ust. 3 ustawy","Średnie  wynagrodzenie nauczycieli, o których mowa w art. 30 ust. 3 ustawy",null,"Średnia liczba etatów nauczycieli",null,"Suma iloczynów średniej liczby etatów nauczycieli i średnich wynagrodzeń, o których mowa w art. 30 ust. 3 ustawy, ustalonych dla okresów obowiązywania poszczególnych kwot bazowych","Wydatki poniesione w roku podlegającym analizie na wynagrodzenia w składnikach, o których mowa w art. 30 ust.1 ustawy","Kwota różnicy ",null,"Etaty",null,"Wydatki poniesione"]
[null,null,null,{"$f":"Tablice!F39","v":"od 1.1 do 31.12"},{"$f":"Tablice!F40","v":"_"},{"$f":"Tablice!F39","v":"od 1.1 do 31.12"},{"$f":"Tablice!F40","v":"_"},null,null,null,null,"od 1.I\n do 31.III","od 1.IV \ndo 31.XII "]
[null,null,null,null,null,null,null,null,null,null,null,"dotyczy kolumny:"]
[1,2,3,4,5,6,7,8,9,10,null,6,7,9]
[null,"nauczyciel stażysta",1,{"$f":"ROUND(C18*$I$12,2)","v":3981.55},{"$f":"IF(ISNUMBER($J$12),ROUND(C18*$J$12,2)+DanPar!I71,\"\")","v":3981.55},{"$f":"ROUND(jdu_NS!$K$12,2)","v":0},{"$f":"ROUND(jdu_NS!$K$13,2)","v":0},{"$f":"ROUND(12*F18*D18+(12-DanPar!$J$66)*IF(ISNUMBER(E18),E18,0)*G18,2)","v":0},{"$f":"ROUND(jdu_NS!$K$11,2)","v":0},{"$f":"I18-H18","v":0},null,{"$f":"+IF(ROUND(F18-INT(F18*100)/100,8)=0,0,1)","v":0},0,{"$f":"+IF(ROUND(I18-INT(I18*100)/100,8)=0,0,1)","v":0}]
[1,"nauczyciel kontraktowy",1.2,{"$f":"ROUND(C19*$I$12,2)","v":4777.8599999999997},{"$f":"IF(ISNUMBER($J$12),ROUND(C19*$J$12,2)+DanPar!I72,\"\")","v":4777.8599999999997},{"$f":"ROUND(jdu_NK!$K$12,2)","v":0},{"$f":"ROUND(jdu_NK!$K$13,2)","v":0},{"$f":"ROUND(DanPar!$J$66*F19*D19+(12-DanPar!$J$66)*IF(ISNUMBER(E19),E19,0)*G19,2)","v":0},{"$f":"ROUND(jdu_NK!$K$11,2)","v":0},{"$f":"I19-H19","v":0},null,0,0,{"$f":"+IF(ROUND(I19-INT(I19*100)/100,8)=0,0,1)","v":0}]
[2,"nauczyciel mianowany",1.44,{"$f":"ROUND(C20*$I$12,2)","v":5733.43},{"$f":"IF(ISNUMBER($J$12),ROUND(C20*$J$12,2)+DanPar!I73,\"\")","v":5733.43},{"$f":"ROUND(jdu_NM!$K$12,2)","v":0},{"$f":"ROUND(jdu_NM!$K$13,2)","v":0},{"$f":"ROUND(DanPar!$J$66*F20*D20+(12-DanPar!$J$66)*IF(ISNUMBER(E20),E20,0)*G20,2)","v":0},{"$f":"ROUND(jdu_NM!$K$11,2)","v":0},{"$f":"I20-H20","v":0},null,0,0,{"$f":"+IF(ROUND(I20-INT(I20*100)/100,8)=0,0,1)","v":0}]
[3,"nauczyciel dyplomowany",1.84,{"$f":"ROUND(C21*$I$12,2)","v":7326.05},{"$f":"IF(ISNUMBER($J$12),ROUND(C21*$J$12,2)+DanPar!I74,\"\")","v":7326.05},{"$f":"ROUND(jdu_ND!$K$12,2)","v":0},{"$f":"ROUND(jdu_ND!$K$13,2)","v":0},{"$f":"ROUND(DanPar!$J$66*F21*D21+(12-DanPar!$J$66)*IF(ISNUMBER(E21),E21,0)*G21,2)","v":0},{"$f":"ROUND(jdu_ND!$K$11,2)","v":0},{"$f":"I21-H21","v":0},null,0,0,{"$f":"+IF(ROUND(I21-INT(I21*100)/100,8)=0,0,1)","v":0}]
[null,null,null,null,null,{"$f":"+IF(SUM(L18:L21)=0,\"\",\"Za dużo cyfr po przecinku!\")","v":""},{"$f":"+IF(SUM(M18:M21)=0,\"\",\"Za dużo cyfr po przecinku!\")","v":""},null,{"$f":"+IF(SUM(N18:N21)=0,\"\",\"Za dużo cyfr po przecinku!\")","v":""}]
[]
[null,null,null,null,"Suma kwot różnic konieczna do wypłacenia w formie jednorazowych dodatków uzupełniających",null,null,null,null,{"$f":"-1*SUM(J32:J35)","v":0}]
[null,null,null,null,"Suma kwot różnic z uwzględnieniem wartości dodatnich i ujemnych",null,null,null,null,{"$f":"SUM(J18:J21)","v":0}]
[]
[null,"(data sporządzenia)",null,null,"(osoba sporządzająca1 (imię, nazwisko, stanowisko))",null,null,null,"(osoba zatwierdzająca2 (imię, nazwisko, stanowisko))"]
[null,{"$f":"IF(ISBLANK(B26),\"wpisz datę  \n(RRRR-MM-DD)\",\"\")","v":"wpisz datę  \n(RRRR-MM-DD)"}]
["1 Osoba, która faktycznie sporządziła sprawozdanie."]
["2 Przedstawiciel organu prowadzącego w rozumieniu art. 91d pkt 2 Karty Nauczyciela"]
[]
[null,null,null,null,null,null,null,null,null,{"$f":"IF(J18<0,J18,0)","v":0}]
[null,null,null,null,null,null,null,null,null,{"$f":"IF(J19<0,J19,0)","v":0}]
[null,null,null,null,null,null,null,null,null,0]
[null,null,null,null,null,null,null,null,null,0]

{"sheet":"Tablice","index":12,"n_rows":62,"n_cols":22,"rows_kept":62,"cut":false,"hidden":true,"merged":[]}
["Liczba dni roboczych","Liczba dni w miesiącu","Swieta w dni inne niż Sob i Niedz","Metoda obliczania struktury zatrudnienia",null,"styczeń","luty","marzec","kwiecień","maj","czerwiec","lipiec","sierpień","wrzesień","październik","listopad","grudzień",null,null,"Sposób gromadzenia danych o wydatkach","Metoda pobrania danych","Definicja osobistej stawki wynagr. Zasadn."]
[{"$f":"F$33","v":21},31,"2023-01-06",1,1,0,1,1,0,0,1,0,1,1,0,0,1,1,null,1,1,1]
[{"$f":"G$33","v":20},28,"2023-04-10",2,2,1,1,1,0,1,1,0,1,0,1,1,0,2,null,2,2,2]
[{"$f":"H$33","v":23},31,"2023-05-01",3,3,1,1,1,1,0,0,1,1,0,1,1,0,3,null,3,3]
[{"$f":"I$33","v":19},30,"2023-05-03",null,4,1,0,0,1,1,0,1,1,1,1,0,1,4,null,null,4]
[{"$f":"J$33","v":21},31,"2023-06-08",null,5,1,0,0,1,1,1,1,0,1,1,0,1,5]
[{"$f":"K$33","v":21},30,"2023-08-15",null,6,0,1,1,1,0,1,1,0,1,1,1,1,6]
[{"$f":"L$33","v":21},31,"2023-11-01",null,7,0,1,1,1,0,1,1,1,1,0,1,1,7]
[{"$f":"M$33","v":22},31,"2023-12-25",null,8,0,1,1,0,1,0,0,1,1,0,1,1,8]
[{"$f":"N$33","v":21},30,"2023-12-26",null,9,1,1,1,0,1,1,0,1,0,1,1,0,9]
[{"$f":"O$33","v":22},31,null,null,10,1,1,1,0,1,0,1,1,0,1,1,0,10]
[{"$f":"P$33","v":21},30,null,null,11,1,0,0,1,1,0,1,1,1,1,0,1,11]
[{"$f":"Q$33","v":19},31,null,null,12,1,0,0,1,1,1,1,0,1,1,0,1,12]
[null,null,null,null,13,1,1,1,1,0,1,1,0,1,1,1,1,13]
["Raporty",null,null,null,14,0,1,1,1,0,1,1,1,1,0,1,1,14]
["NS","?",null,null,15,0,1,1,0,1,1,0,0,1,0,1,1,15]
["NK","początkujący",null,null,16,1,1,1,0,1,1,0,1,0,1,1,0,16]
["NM","mianowani",null,null,17,1,1,1,1,1,0,1,1,0,1,1,0,17]
["ND","dyplomowani",null,null,18,1,0,0,1,1,0,1,1,1,1,0,1,18]
["NI","?",null,null,19,1,0,0,1,1,1,1,0,1,1,0,1,19]
[null,null,null,null,20,1,1,1,1,0,1,1,0,1,1,1,1,20]
["Dane do raportu",null,null,null,21,0,1,1,1,0,1,1,1,1,0,1,1,21]
[-0.03,null,null,null,22,0,1,1,0,1,1,0,1,1,0,1,1,22]
[1.02,null,null,null,23,1,1,1,0,1,1,0,1,0,1,1,0,23]
[3690,null,null,null,24,1,1,1,1,1,0,1,1,0,1,1,0,24]
[3690,null,null,null,25,1,0,0,1,1,0,1,1,1,1,0,0,25]
[3890,null,null,null,26,1,0,0,1,1,1,1,0,1,1,0,0,26]
[4550,null,null,null,27,1,1,1,1,0,1,1,0,1,1,1,1,27]
[null,null,null,null,28,0,1,1,1,0,1,1,1,1,0,1,1,28]
[null,null,null,null,29,0,null,1,0,1,1,0,1,1,0,1,1,29]
[null,null,null,null,30,1,null,1,0,1,1,0,1,0,1,1,0,30]
[null,null,null,null,31,1,null,1,null,1,null,1,1,null,1,null,0,31]
[null,null,null,null,null,{"$f":"SUM(F2:F32)","v":21},{"$f":"SUM(G2:G32)","v":20},23,19,21,21,21,22,21,22,21,19]
[]
[]
[]
[null,null,null,null,null,"Analiza wydatków poniesionych na wynagrodzenia nauczycieli 2023"]
[]
[null,null,null,null,null,{"$f":"CONCATENATE(\"od 1.1 do 31.\",DanPar!J66)","v":"od 1.1 do 31.12"}]
[null,null,null,null,null,{"$f":"IF(DanPar!J66=12,\"_\",CONCATENATE(\"od 1.\",DanPar!J66+1,\" do 31.12\"))","v":"_"}]
[null,null,null,null,null,"od 1.1 do 31.12"]
[]
[null,null,null,null,null,{"$f":"CONCATENATE(\"Suma wydatków poniesionych na wynagrodzenia (\",F39,\")\")","v":"Suma wydatków poniesionych na wynagrodzenia (od 1.1 do 31.12)"}]
[null,null,null,null,null,{"$f":"CONCATENATE(\"Suma wydatków poniesionych na wynagrodzenia (\",F40,\")\")","v":"Suma wydatków poniesionych na wynagrodzenia (_)"}]
[null,null,null,null,null,"Suma wydatków poniesionych na wynagrodzenia (od 01.01 do 31.12)"]
[null,null,null,null,null,{"$f":"CONCATENATE(\"Średnioroczna liczba etatów nauczycieli (\",F39,\")\")","v":"Średnioroczna liczba etatów nauczycieli (od 1.1 do 31.12)"}]
[null,null,null,null,null,{"$f":"CONCATENATE(\"Średnioroczna liczba etatów nauczycieli (\",F40,\")\")","v":"Średnioroczna liczba etatów nauczycieli (_)"}]
[null,null,null,null,null,"Średnioroczna liczba etatów nauczycieli (od 01.01 do 31.12)"]
[null,null,null,null,null,"Iloczyn śr. wynagr. i śr. liczby etatów  (S * N)"]
[null,null,null,null,null,{"$f":"CONCATENATE(\"Różnica R = W - (S\",DanPar!J66,\" * E\",DanPar!J66,\" * \",DanPar!J66,\" + S\",12-DanPar!J66,\" * E\",12-DanPar!J66,\" * \",12-DanPar!J66,\")\")","v":"Różnica R = W - (S12 * E12 * 12 + S0 * E0 * 0)"}]
[]
[null,null,null,null,null,{"$f":"CONCATENATE(\"W\",DanPar!J66,\" =\")","v":"W12 ="}]
[null,null,null,null,null,{"$f":"CONCATENATE(\"W\",12-DanPar!J66,\" =\")","v":"W0 ="}]
[null,null,null,null,null,"W12 ="]
[null,null,null,null,null,{"$f":"CONCATENATE(\"N\",DanPar!J66,\" =\")","v":"N12 ="}]
[null,null,null,null,null,{"$f":"CONCATENATE(\"N\",12-DanPar!J66,\" =\")","v":"N0 ="}]
[null,null,null,null,null,"N12 ="]
[null,null,null,null,null,"S * N ="]
[]
[null,null,null,null,null,{"$f":"CONCATENATE(\"Suma_jdu(\",DanPar!J66,\"/\",12-DanPar!J66,\") [zł]\")","v":"Suma_jdu(12/0) [zł]"}]
[]
[null,null,null,null,null,{"$f":"CONCATENATE(\"jdu(\",DanPar!J66,\"/\",12-DanPar!J66,\") [zł]\")","v":"jdu(12/0) [zł]"}]

{"sheet":"RW","index":13,"n_rows":9,"n_cols":15,"rows_kept":9,"cut":false,"hidden":false,"merged":[[0,11,0,13]]}
[{"$f":"CONCATENATE(\"Raport RW_\",M2)","v":"Raport RW_ND"},{"$f":"Tablice!F37","v":"Analiza wydatków poniesionych na wynagrodzenia nauczycieli 2023"},null,null,null,null,null,null,null,null,null,"Wybór grupy nauczycieli do raportu",null,null," Wyjaśnienia wyboru:"]
[{"$f":"CONCATENATE(\"n. \",N2)","v":"n. dyplomowani"},"Miesięczne wydatki (W) poniesione na wynagrodzenia nauczycieli w poszczególnych podmiotach",null,null,null,null,null,null,null,null,null,"=>","ND",{"$f":"VLOOKUP(M2,Tablice!A16:B20,2,FALSE)","v":"dyplomowani"}," NK - nauczyciele początkujący"]
[null,null,null,null,null,null,null,null,null,null,null,null,null,null," NM - nauczyciele mianowani"]
[null,null,null,null,null,null,null,null,null,null,null,null,null,null," ND - nauczyciele dyplomowani"]
[null,null,null,null,null,null,null,null,null,null,null,null,null,null," NS, NI - nie są aktywne"]
[null,"W [zł]"]
["Wybrane podmioty","W_sty","W_lut","W_mar","W_kwi","W_maj","W_cze","W_lip","W_sie","W_wrz","W_paź","W_lis","W_gru","Suma od 1.1 do 31.12"]
["(puste)"]
["Razem"]

{"sheet":"RWR","index":14,"n_rows":9,"n_cols":12,"rows_kept":9,"cut":false,"hidden":false,"merged":[[6,5,6,8],[0,6,0,8]]}
[{"$f":"CONCATENATE(\"Raport RW_\",H2)","v":"Raport RW_ND"},{"$f":"Tablice!F37","v":"Analiza wydatków poniesionych na wynagrodzenia nauczycieli 2023"},null,null,null,null,"Wybór grupy nauczycieli do raportu",null,null,null,null," Wyjaśnienia wyboru:"]
[{"$f":"CONCATENATE(\"n. \",I2)","v":"n. dyplomowani"},"Porównanie wydatków faktycznie poniesionych w poszczególnych podmiotach",null,null,null,null,"=>","ND",{"$f":"VLOOKUP(H2,Tablice!A16:B20,2,FALSE)","v":"dyplomowani"},null,null," NK - nauczyciele początkujący"]
[null,"z wydatkami jakie powinny być poniesione",null,null,null,null,null,null,null,null,null," NM - nauczyciele mianowani"]
[null,null,null,null,null,null,null,null,null,null,null," ND - nauczyciele dyplomowani"]
[null,null,null,null,null,null,null,null,null,null,null," NS, NI - nie są aktywne"]
[null,"W i R [zł]"]
["Wybrane podmioty","Wydatki faktycznie poniesione","Wydatki jakie powinny być poniesione","Różnica dla danego podmiotu"]
["(puste)",null,null,0]
["Razem",null,null,0]

{"sheet":"RWR2","index":15,"n_rows":23,"n_cols":15,"rows_kept":23,"cut":false,"hidden":false,"merged":[[0,11,0,13],[6,9,6,13],[8,8,21,14]]}
[{"$f":"CONCATENATE(\"Raport RW_\",M2)","v":"Raport RW_ND"},{"$f":"Tablice!F37","v":"Analiza wydatków poniesionych na wynagrodzenia nauczycieli 2023"},null,null,null,null,null,null,null,null,null,"Wybór grupy nauczycieli do raportu",null,null," Wyjaśnienia wyboru:"]
[{"$f":"CONCATENATE(\"n. \",N2)","v":"n. dyplomowani"},"Porównanie wydatków faktycznie poniesionych w poszczególnych podmiotach",null,null,null,null,null,null,null,null,null,"=>","ND",{"$f":"VLOOKUP(M2,Tablice!A16:B20,2,FALSE)","v":"dyplomowani"}," NK - nauczyciele początkujący"]
[null,"z wydatkami jakie powinny być poniesione",null,null,null,null,null,null,null,null,null,null,null,null," NM - nauczyciele mianowani"]
[null,null,null,null,null,null,null,null,null,null,null,null,null,null," ND - nauczyciele dyplomowani"]
[null,null,null,null,null,null,null,null,null,null,null,null,null,null," NS, NI - nie są aktywne"]
[null,"W i R [zł]"]
["Wybrane podmioty","Wydatki \nfaktycznie poniesione","Wydatki jakie powinny być poniesione","Różnica dla danego podmiotu","Wskaźnik analizy A",null,null,null,"Wyjaśnienia","Wyjaśnienia tu zawarte mają charakter wstępny. Sposób obliczania wskaźników i pełne wyjaśnienia ich znaczenia są przedmiotem szkoleń."]
["Razem",null,null,0,"Uwaga!",null,null,null,"Najważniejszym parametrem analizy w tym raporcie jest \"Różnica dla danego podmiotu\"."]
[null,null,null,null,null,null,null,null,"Wskaźniki A ma charakter pomocniczy. \nJeżeli wartość wskaźnika A oscyluje w pobliżu \"zera czerwonego\" lub \"zera czarnego\", to może to dowodzić prowadzenia \"najwłaściwszej polityki\" zatrudniania i wynagradzania nauczycieli w odniesieniu do danego podmiotu w konsekwencji obowiązków wynikających z art. 30a ustawy KN. \nWartość wskaźnika A zawarta w przedziale od 0,00 do 0,10 może wskazywać na prawidłową \"politykę\" zatrudniania i wynagradzania nauczycieli z postulatem drobnych korekt w przyszłości. Jeżeli wartość wskaźnika A przekracza 0,10, to może to także być uznane za wyraz prowadzenia akceptowalnej \"polityki\" zatrudniania i wynagradzania nauczycieli z potrzebnymi korektami w przyszłości w odniesieniu do art. 30a KN.\nJeżeli wartość wskaźnika A zbliża się do wartości 1,00, to może to być uznane za wyraz prowadzenia niewłaściwej \"polityki\" zatrudniania i wynagradzania nauczycieli w danym podmiocie. \nPrzekroczenie wartości 1,00 (wskaźnik A) może wskazywać na błędy w gromadzeniu danych na potrzeby analizy.\nPojawienie się zamiast wartości liczbowej komunikatu \"Uwaga!\" wymaga koniecznie przeanalizowania danych zgromadzonych w pliku gromadzenia danych w odniesieniu do danego podmiotu (najczęściej mimo takiego komunikatu wszystko jest Ok)."]
[]
[]
[]
[]
[]
[]
[]
[]
[]
[]
[]
[]
[]
[null,null,null,null,null,null,null,null,"Przy bardzo małej liczbie nauczycieli (poniżej 10 w danej grupie awansu) prawidła wskazane wyżej nie muszą być prawdziwe."]

{"sheet":"RS","index":16,"n_rows":8,"n_cols":17,"rows_kept":8,"cut":false,"hidden":false,"merged":[[0,13,0,15]]}
[{"$f":"CONCATENATE(\"Raport RS_\",O2)","v":"Raport RS_ND"},{"$f":"Tablice!F37","v":"Analiza wydatków poniesionych na wynagrodzenia nauczycieli 2023"},null,null,null,null,null,null,null,null,null,null,null,"Wybór grupy nauczycieli do raportu",null,null," Wyjaśnienia wyboru:"]
[{"$f":"CONCATENATE(\"n. \",P2)","v":"n. dyplomowani"},"Miesięczne struktury zatrudnienia (S) nauczycieli w poszczególnych podmiotach",null,null,null,null,null,null,null,null,null,null,null,"=>","ND",{"$f":"VLOOKUP(O2,Tablice!A16:B20,2,FALSE)","v":"dyplomowani"}," NK - nauczyciele początkujący"]
[null,null,null,null,null,null,null,null,null,null,null,null,null,null,null,null," NM - nauczyciele mianowani"]
[null,null,null,null,null,null,null,null,null,null,null,null,null,null,null,null," ND - nauczyciele dyplomowani"]
[null,null,null,null,null,null,null,null,null,null,null,null,null,null,null,null," NS, NI - nie są aktywne"]
[null,"S [-]"]
["Wybrane podmioty","S_sty","S_lut","S_mar","S_kwi","S_maj","S_cze","S_lip","S_sie","S_wrz","S_paź","S_lis","S_gru","średnia od 1.1 do 31.12"]
["Razem"]

{"sheet":"RSN","index":17,"n_rows":8,"n_cols":17,"rows_kept":8,"cut":false,"hidden":false,"merged":[[0,13,0,15]]}
[{"$f":"CONCATENATE(\"Raport RSN_\",O2)","v":"Raport RSN_ND"},{"$f":"Tablice!F37","v":"Analiza wydatków poniesionych na wynagrodzenia nauczycieli 2023"},null,null,null,null,null,null,null,null,null,null,null,"Wybór grupy nauczycieli do raportu",null,null," Wyjaśnienia wyboru:"]
[{"$f":"CONCATENATE(\"n. \",P2)","v":"n. dyplomowani"},"Miesięczne struktury zatrudnienia (S) nauczycieli w poszczególnych podmiotach",null,null,null,null,null,null,null,null,null,null,null,"=>","ND",{"$f":"VLOOKUP(O2,Tablice!A16:B20,2,FALSE)","v":"dyplomowani"}," NK - nauczyciele początkujący"]
[null,null,null,null,null,null,null,null,null,null,null,null,null,null,null,null," NM - nauczyciele mianowani"]
["ID_Podmiot","(Wiele elementów)",null,null,null,null,null,null,null,null,null,null,null,null,null,null," ND - nauczyciele dyplomowani"]
[null,null,null,null,null,null,null,null,null,null,null,null,null,null,null,null," NS, NI - nie są aktywne"]
[null,"S [-]"]
["Wybrani nauczyciele","S_sty","S_lut","S_mar","S_kwi","S_maj","S_cze","S_lip","S_sie","S_wrz","S_paź","S_lis","S_gru","średnia od 1.1 do 31.12"]
["Razem"]

{"sheet":"Rjdu","index":18,"n_rows":11,"n_cols":8,"rows_kept":11,"cut":false,"hidden":false,"merged":[[0,4,0,6]]}
[{"$f":"CONCATENATE(\"Raport jdu_\",F2)","v":"Raport jdu_ND"},{"$f":"Tablice!F37","v":"Analiza wydatków poniesionych na wynagrodzenia nauczycieli 2023"},null,null,"Wybór grupy nauczycieli do raportu",null,null," Wyjaśnienia wyboru:"]
[{"$f":"CONCATENATE(\"n. \",G2)","v":"n. dyplomowani"},"Osobiste stawki wynagrodzenia zasadniczego (Sj)",null,null,"=>","ND",{"$f":"VLOOKUP(F2,Tablice!A16:B20,2,FALSE)","v":"dyplomowani"}," NK - nauczyciele początkujący"]
[null,"Jednorazowy dodatek uzupełniający (Dj)",null,null,null,null,null," NM - nauczyciele mianowani"]
[null,null,null,null,null,null,null," ND - nauczyciele dyplomowani"]
[null,null,null,null,null,null,null," NS, NI - nie są aktywne"]
[null,"Wybór podmiotu","(puste)"]
[]
[null,null,"Wartości"]
[null,"Nauczyciele","osobista st. wyn. zasadn. Sj [zł]","jedn. dodatek uzup."]
[null,"(puste)"]
[null,"Suma końcowa"]

{"sheet":"DaneR","index":19,"n_rows":1,"n_cols":55,"rows_kept":1,"cut":false,"hidden":true,"merged":[]}
["Nr","NrID","Nauczyciel","str01","str02","str03","str04","str05","str06","str07","str08","str09","str10","str11","str12","str_0108","str_0912","str_0112","oswz01","oswz02","oswz03","oswz04","oswz05","oswz06","oswz07","oswz08","oswz09","oswz10","oswz11","oswz12","oszw_sred","oswz_suma","ID_Podmiot","ID_JST","Data","ID_Plik","wyd01","wyd02","wyd03","wyd04","wyd05","wyd06","wyd07","wyd08","wyd09","wyd10","wyd11","wyd12","wyd_0108","wyd_0912","wyd_0112","NGr","Podmiot_XN","wydSN_0108","wydSN_0912"]

{"sheet":"RZ1","index":20,"n_rows":8,"n_cols":5,"rows_kept":8,"cut":false,"hidden":false,"merged":[]}
[null,"Raport RZ1"]
[null,"Róznice i wydatki z podziałem na jednostki organizacyjne z wyborem grupy nauczycieli"]
[]
[null,"Wybór grupy Nauczycieli -->>","(Wszystko)"]
[]
[null,"Plik AWN i Jednostka organizacyjna","Wydatki faktycznie poniesione (W)\n[zł]","Wydatki, jakie powinny być poniesione (S*N)\n[zł]","Różnica (R=W-S*N)\n[zł]"]
[null,"(puste)",null,0,0]
[null,"Razem",null,0,0]

{"sheet":"RZ2","index":21,"n_rows":9,"n_cols":5,"rows_kept":9,"cut":false,"hidden":false,"merged":[]}
[null,"Raport RZ2"]
[null,"Róznice i wydatki z podziałem na jednostki organizacyjne z wyszczególnieniem nauczycieli z wyborem grupy nauczycieli"]
[]
[null,"Wybór grupy Nauczycieli -->>","(Wszystko)"]
[]
[null,"Plik AWN i Jednostka organizacyjna\nNauczyciel","Wydatki faktycznie poniesione (W)\n[zł]","Wydatki, jakie powinny być poniesione (S*N)\n[zł]","Różnica (R=W-S*N)\n[zł]"]
[null,"(puste)",null,0,0]
[null,"(puste)",null,0,0]
[null,"Razem",null,0,0]

{"sheet":"RZ3","index":22,"n_rows":9,"n_cols":5,"rows_kept":9,"cut":false,"hidden":false,"merged":[]}
[null,"Raport RZ3"]
[null,"Róznice i wydatki z podziałem na grupy nauczycieli z wyszczególnieniem nauczycieli z wyborem jednostki organizacyjnej"]
[]
[null,"Wybór pliku AWN","(Wszystko)"]
[]
[null,"Grupa Nauczycieli\nNauczyciel","Wydatki faktycznie poniesione (W)\n[zł]","Wydatki, jakie powinny być poniesione (S*N)\n[zł]","Różnica (R=W-S*N)\n[zł]"]
[null,"(puste)",null,0,0]
[null,"(puste)",null,0,0]
[null,"Razem",null,0,0]

{"sheet":"RZ4","index":23,"n_rows":8,"n_cols":5,"rows_kept":8,"cut":false,"hidden":false,"merged":[]}
[null,"Raport RZ4"]
[null,"Róznice i wydatki z podziałem na jednostki organizacyjne z wyborem grupy nauczycieli w podziale na okresy analityczne roku 2023"]
[]
[null,"Wybór grupy Nauczycieli -->>","(Wszystko)"]
[]
[null,"Plik AWN i Jednostka organizacyjna","Wydatki faktycznie poniesione (W)\n[zł]","Wydatki, jakie powinny być poniesione (S*N)\n[zł]","Różnica (R=W-S*N)\n[zł]"]
[null,"(puste)",null,0,0]
[null,"Razem",null,0,0]

{"sheet":"RZ5","index":24,"n_rows":8,"n_cols":5,"rows_kept":8,"cut":false,"hidden":false,"merged":[]}
[null,"Raport RZ5"]
[null,"Róznice i wydatki z podziałem na grupy nauczycieli z wyborem jednostki organizacyjnej"]
[]
[null,"Wybór pliku AWN","(Wszystko)"]
[]
[null,"Grupa Nauczycieli","Wydatki faktycznie poniesione (W)\n[zł]","Wydatki, jakie powinny być poniesione (S*N)\n[zł]","Różnica (R=W-S*N)\n[zł]"]
[null,"(puste)",null,0,0]
[null,"Razem",null,0,0]

{"sheet":"RZ6","index":25,"n_rows":9,"n_cols":5,"rows_kept":9,"cut":false,"hidden":false,"merged":[]}
[null,"Raport RZ6"]
[null,"Róznice i wydatki z podziałem na grupy nauczycieli z wyszczególnieniem jednostek organizacyjnych"]
[]
[]
[]
[null,"Grupa Nauczycieli\nJednostka organizacyjna","Wydatki faktycznie poniesione (W)\n[zł]","Wydatki, jakie powinny być poniesione (S*N)\n[zł]","Różnica (R=W-S*N)\n[zł]"]
[null,"(puste)",null,0,0]
[null,"(puste)",null,0,0]
[null,"Razem",null,0,0]

{"sheet":"RP8","index":26,"n_rows":42,"n_cols":20,"rows_kept":42,"cut":false,"hidden":false,"merged":[[4,19,10,19],[14,19,20,19],[24,19,30,19],[34,19,40,19]]}
[]
[null,"Prognoza różnicy (R=W-S*N) w danej grupie awansu zawodowego na styczeń po 8 miesiącach gromadzenia danych"]
[]
[]
[null,"N. Dyplomowani",null,null,null,"styczeń","luty","marzec","kwiecień","maj","czerwiec","lipiec","sierpień","wrzesień","październik","listopad","grudzień",null,null,"prognoza na styczeń po 8 miesiącach"]
[null,null,null,null,null,1,2,3,4,5,6,7,8,9,10,11,12]
[null,null,null,null,null,{"$f":"SUM(a_ND!AK:AK)","v":0},{"$f":"SUM(a_ND!AL:AL)","v":0},{"$f":"SUM(a_ND!AM:AM)","v":0},{"$f":"SUM(a_ND!AN:AN)","v":0},{"$f":"SUM(a_ND!AO:AO)","v":0},{"$f":"SUM(a_ND!AP:AP)","v":0},{"$f":"SUM(a_ND!AQ:AQ)","v":0},{"$f":"SUM(a_ND!AR:AR)","v":0},{"$f":"SUM(a_ND!AS:AS)","v":0},{"$f":"SUM(a_ND!AT:AT)","v":0},{"$f":"SUM(a_ND!AU:AU)","v":0},{"$f":"SUM(a_ND!AV:AV)","v":0}]
[null,null,null,null,null,{"$f":"SUM(a_ND!D13:D999)","v":0},{"$f":"SUM(a_ND!E13:E999)","v":0},{"$f":"SUM(a_ND!F13:F999)","v":0},{"$f":"SUM(a_ND!G13:G999)","v":0},{"$f":"SUM(a_ND!H13:H999)","v":0},{"$f":"SUM(a_ND!I13:I999)","v":0},{"$f":"SUM(a_ND!J13:J999)","v":0},{"$f":"SUM(a_ND!K13:K999)","v":0},{"$f":"SUM(a_ND!L:L)","v":0},{"$f":"SUM(a_ND!M:M)","v":0},{"$f":"SUM(a_ND!N:N)","v":0},{"$f":"SUM(a_ND!O:O)","v":0}]
[null,"Wartość po kolejnych miesiącach:"]
[null,null,"Suma wydatków",null,null,{"$f":"F7","v":0},{"$f":"F10+G7","v":0},{"$f":"G10+H7","v":0},0,0,0,0,0,0,0,0,0]
[null,null,"Średnioroczna liczba etatów",null,null,null,null,null,{"$f":"AVERAGE($F8:I8)","v":0},{"$f":"AVERAGE($F8:J8)","v":0},{"$f":"AVERAGE($F8:K8)","v":0},{"$f":"AVERAGE($F8:L8)","v":0},{"$f":"AVERAGE($F8:M8)","v":0},{"$f":"AVERAGE($F8:N8)","v":0},{"$f":"AVERAGE($F8:O8)","v":0},{"$f":"AVERAGE($F8:P8)","v":0},{"$f":"AVERAGE($F8:Q8)","v":0}]
[null,null,"Różnica",null,null,null,null,null,{"$f":"IF(I7=0,0,(I10-DanPar!$F$29*I11*I6))","v":0},{"$f":"IF(J7=0,0,(J10-DanPar!$F$29*J11*J6))","v":0},{"$f":"IF(K7=0,0,(K10-DanPar!$F$29*K11*K6))","v":0},{"$f":"IF(L7=0,0,(L10-DanPar!$F$29*L11*L6))","v":0},{"$f":"IF(M7=0,0,(M10-DanPar!$F$29*M11*M6))","v":0},{"$f":"IF(N7=0,0,(N10-DanPar!$F$29*N11*N6))","v":0},{"$f":"IF(O7=0,0,(O10-DanPar!$F$29*O11*O6))","v":0},{"$f":"IF(P7=0,0,(P10-DanPar!$F$29*P11*P6))","v":0},{"$f":"IF(Q7=0,0,(Q10-DanPar!$F$29*Q11*Q6))","v":0},{"$f":"LINEST(I12:M12,I6:M6)","v":0},0,{"$f":"R12*12+S12","v":0}]
[]
[]
[null,"N. Mianowani",null,null,null,"styczeń","luty","marzec","kwiecień","maj","czerwiec","lipiec","sierpień","wrzesień","październik","listopad","grudzień",null,null,"prognoza na styczeń po 8 miesiącach"]
[null,null,null,null,null,1,2,3,4,5,6,7,8,9,10,11,12]
[null,null,null,null,null,{"$f":"SUM(a_NM!AK:AK)","v":0},{"$f":"SUM(a_NM!AL:AL)","v":0},{"$f":"SUM(a_NM!AM:AM)","v":0},{"$f":"SUM(a_NM!AN:AN)","v":0},{"$f":"SUM(a_NM!AO:AO)","v":0},{"$f":"SUM(a_NM!AP:AP)","v":0},{"$f":"SUM(a_NM!AQ:AQ)","v":0},{"$f":"SUM(a_NM!AR:AR)","v":0},{"$f":"SUM(a_NM!AS:AS)","v":0},{"$f":"SUM(a_NM!AT:AT)","v":0},{"$f":"SUM(a_NM!AU:AU)","v":0},{"$f":"SUM(a_NM!AV:AV)","v":0}]
[null,null,null,null,null,{"$f":"SUM(a_NM!D13:D999)","v":0},{"$f":"SUM(a_NM!E13:E999)","v":0},{"$f":"SUM(a_NM!F13:F999)","v":0},{"$f":"SUM(a_NM!G13:G999)","v":0},{"$f":"SUM(a_NM!H13:H999)","v":0},{"$f":"SUM(a_NM!I13:I999)","v":0},{"$f":"SUM(a_NM!J13:J999)","v":0},{"$f":"SUM(a_NM!K13:K999)","v":0},{"$f":"SUM(a_NM!L:L)","v":0},{"$f":"SUM(a_NM!M:M)","v":0},{"$f":"SUM(a_NM!N:N)","v":0},{"$f":"SUM(a_NM!O:O)","v":0}]
[null,"Wartość po kolejnych miesiącach:"]
[null,null,"Suma wydatków",null,null,{"$f":"F17","v":0},{"$f":"F20+G17","v":0},{"$f":"G20+H17","v":0},0,0,0,0,0,0,0,0,0]
[null,null,"Średnioroczna liczba etatów",null,null,null,null,null,{"$f":"AVERAGE($F18:I18)","v":0},{"$f":"AVERAGE($F18:J18)","v":0},{"$f":"AVERAGE($F18:K18)","v":0},{"$f":"AVERAGE($F18:L18)","v":0},{"$f":"AVERAGE($F18:M18)","v":0},{"$f":"AVERAGE($F18:N18)","v":0},{"$f":"AVERAGE($F18:O18)","v":0},{"$f":"AVERAGE($F18:P18)","v":0},{"$f":"AVERAGE($F18:Q18)","v":0}]
[null,null,"Różnica",null,null,null,null,null,{"$f":"IF(I17=0,0,(I20-DanPar!$F$28*I21*I16))","v":0},{"$f":"IF(J17=0,0,(J20-DanPar!$F$28*J21*J16))","v":0},{"$f":"IF(K17=0,0,(K20-DanPar!$F$28*K21*K16))","v":0},{"$f":"IF(L17=0,0,(L20-DanPar!$F$28*L21*L16))","v":0},{"$f":"IF(M17=0,0,(M20-DanPar!$F$28*M21*M16))","v":0},{"$f":"IF(N17=0,0,(N20-DanPar!$F$28*N21*N16))","v":0},{"$f":"IF(O17=0,0,(O20-DanPar!$F$28*O21*O16))","v":0},{"$f":"IF(P17=0,0,(P20-DanPar!$F$28*P21*P16))","v":0},{"$f":"IF(Q17=0,0,(Q20-DanPar!$F$28*Q21*Q16))","v":0},{"$f":"LINEST(I22:M22,I16:M16)","v":0},0,{"$f":"R22*12+S22","v":0}]
[]
[]
[null,"N. Początkujący",null,null,null,"styczeń","luty","marzec","kwiecień","maj","czerwiec","lipiec","sierpień","wrzesień","październik","listopad","grudzień",null,null,"prognoza na styczeń po 8 miesiącach"]
[null,null,null,null,null,1,2,3,4,5,6,7,8,9,10,11,12]
[null,null,null,null,null,{"$f":"SUM(a_NK!AK:AK)","v":0},{"$f":"SUM(a_NK!AL:AL)","v":0},{"$f":"SUM(a_NK!AM:AM)","v":0},{"$f":"SUM(a_NK!AN:AN)","v":0},{"$f":"SUM(a_NK!AO:AO)","v":0},{"$f":"SUM(a_NK!AP:AP)","v":0},{"$f":"SUM(a_NK!AQ:AQ)","v":0},{"$f":"SUM(a_NK!AR:AR)","v":0},{"$f":"SUM(a_NK!AS:AS)","v":0},{"$f":"SUM(a_NK!AT:AT)","v":0},{"$f":"SUM(a_NK!AU:AU)","v":0},{"$f":"SUM(a_NK!AV:AV)","v":0}]
[null,null,null,null,null,{"$f":"SUM(a_NK!D13:D999)","v":0},{"$f":"SUM(a_NK!E13:E999)","v":0},{"$f":"SUM(a_NK!F13:F999)","v":0},{"$f":"SUM(a_NK!G13:G999)","v":0},{"$f":"SUM(a_NK!H13:H999)","v":0},{"$f":"SUM(a_NK!I13:I999)","v":0},{"$f":"SUM(a_NK!J13:J999)","v":0},{"$f":"SUM(a_NK!K13:K999)","v":0},{"$f":"SUM(a_NK!L:L)","v":0},{"$f":"SUM(a_NK!M:M)","v":0},{"$f":"SUM(a_NK!N:N)","v":0},{"$f":"SUM(a_NK!O:O)","v":0}]
[null,"Wartość po kolejnych miesiącach:"]
[null,null,"Suma wydatków",null,null,{"$f":"F27","v":0},{"$f":"F30+G27","v":0},{"$f":"G30+H27","v":0},0,0,0,0,0,0,0,0,0]
[null,null,"Średnioroczna liczba etatów",null,null,null,null,null,{"$f":"AVERAGE($F28:I28)","v":0},{"$f":"AVERAGE($F28:J28)","v":0},{"$f":"AVERAGE($F28:K28)","v":0},{"$f":"AVERAGE($F28:L28)","v":0},{"$f":"AVERAGE($F28:M28)","v":0},{"$f":"AVERAGE($F28:N28)","v":0},{"$f":"AVERAGE($F28:O28)","v":0},{"$f":"AVERAGE($F28:P28)","v":0},{"$f":"AVERAGE($F28:Q28)","v":0}]
[null,null,"Różnica",null,null,null,null,null,{"$f":"IF(I27=0,0,(I30-DanPar!$F$27*I31*I26))","v":0},{"$f":"IF(J27=0,0,(J30-DanPar!$F$27*J31*J26))","v":0},{"$f":"IF(K27=0,0,(K30-DanPar!$F$27*K31*K26))","v":0},{"$f":"IF(L27=0,0,(L30-DanPar!$F$27*L31*L26))","v":0},{"$f":"IF(M27=0,0,(M30-DanPar!$F$27*M31*M26))","v":0},{"$f":"IF(N27=0,0,(N30-DanPar!$F$27*N31*N26))","v":0},{"$f":"IF(O27=0,0,(O30-DanPar!$F$27*O31*O26))","v":0},{"$f":"IF(P27=0,0,(P30-DanPar!$F$27*P31*P26))","v":0},{"$f":"IF(Q27=0,0,(Q30-DanPar!$F$27*Q31*Q26))","v":0},{"$f":"LINEST(I32:M32,I26:M26)","v":0},0,{"$f":"R32*12+S32","v":0}]
[]
[]
[null,"N. Stażyści",null,null,null,"styczeń","luty","marzec","kwiecień","maj","czerwiec","lipiec","sierpień","wrzesień","październik","listopad","grudzień",null,null,"prognoza na styczeń po 8 miesiącach"]
[null,null,null,null,null,1,2,3,4,5,6,7,8,9,10,11,12]
[null,null,null,null,null,{"$f":"SUM(a_NS!AK:AK)","v":0},{"$f":"SUM(a_NS!AL:AL)","v":0},{"$f":"SUM(a_NS!AM:AM)","v":0},{"$f":"SUM(a_NS!AN:AN)","v":0},{"$f":"SUM(a_NS!AO:AO)","v":0},{"$f":"SUM(a_NS!AP:AP)","v":0},{"$f":"SUM(a_NS!AQ:AQ)","v":0},{"$f":"SUM(a_NS!AR:AR)","v":0},{"$f":"SUM(a_NS!AS:AS)","v":0},{"$f":"SUM(a_NS!AT:AT)","v":0},{"$f":"SUM(a_NS!AU:AU)","v":0},{"$f":"SUM(a_NS!AV:AV)","v":0}]
[null,null,null,null,null,{"$f":"SUM(a_NS!D13:D999)","v":0},{"$f":"SUM(a_NS!E13:E999)","v":0},{"$f":"SUM(a_NS!F13:F999)","v":0},{"$f":"SUM(a_NS!G13:G999)","v":0},{"$f":"SUM(a_NS!H13:H999)","v":0},{"$f":"SUM(a_NS!I13:I999)","v":0},{"$f":"SUM(a_NS!J13:J999)","v":0},{"$f":"SUM(a_NS!K13:K999)","v":0},{"$f":"SUM(a_NS!L:L)","v":0},{"$f":"SUM(a_NS!M:M)","v":0},{"$f":"SUM(a_NS!N:N)","v":0},{"$f":"SUM(a_NS!O:O)","v":0}]
[null,"Wartość po kolejnych miesiącach:"]
[null,null,"Suma wydatków",null,null,{"$f":"F37","v":0},{"$f":"F40+G37","v":0},{"$f":"G40+H37","v":0},0,0,0,0,0,0,0,0,0]
[null,null,"Średnioroczna liczba etatów",null,null,null,null,null,{"$f":"AVERAGE($F38:I38)","v":0},{"$f":"AVERAGE($F38:J38)","v":0},{"$f":"AVERAGE($F38:K38)","v":0},{"$f":"AVERAGE($F38:L38)","v":0},{"$f":"AVERAGE($F38:M38)","v":0},{"$f":"AVERAGE($F38:N38)","v":0},{"$f":"AVERAGE($F38:O38)","v":0},{"$f":"AVERAGE($F38:P38)","v":0},{"$f":"AVERAGE($F38:Q38)","v":0}]
[null,null,"Różnica",null,null,null,null,null,{"$f":"IF(I37=0,0,(I40-DanPar!$F$26*I41*I36))","v":0},{"$f":"IF(J37=0,0,(J40-DanPar!$F$26*J41*J36))","v":0},{"$f":"IF(K37=0,0,(K40-DanPar!$F$26*K41*K36))","v":0},{"$f":"IF(L37=0,0,(L40-DanPar!$F$26*L41*L36))","v":0},{"$f":"IF(M37=0,0,(M40-DanPar!$F$26*M41*M36))","v":0},{"$f":"IF(N37=0,0,(N40-DanPar!$F$26*N41*N36))","v":0},{"$f":"IF(O37=0,0,(O40-DanPar!$F$26*O41*O36))","v":0},{"$f":"IF(P37=0,0,(P40-DanPar!$F$26*P41*P36))","v":0},{"$f":"IF(Q37=0,0,(Q40-DanPar!$F$26*Q41*Q36))","v":0},{"$f":"LINEST(I42:M42,I36:M36)","v":0},0,{"$f":"R42*12+S42","v":0}]

{"sheet":"RP9","index":27,"n_rows":42,"n_cols":20,"rows_kept":42,"cut":false,"hidden":false,"merged":[[4,19,10,19],[14,19,20,19],[24,19,30,19],[34,19,40,19]]}
[]
[null,"Prognoza różnicy (R=W-S*N) w danej grupie awansu zawodowego na styczeń po 9 miesiącach gromadzenia danych"]
[]
[]
[null,"N. Dyplomowani",null,null,null,"styczeń","luty","marzec","kwiecień","maj","czerwiec","lipiec","sierpień","wrzesień","październik","listopad","grudzień",null,null,"prognoza na styczeń po 9 miesiącach"]
[null,null,null,null,null,1,2,3,4,5,6,7,8,9,10,11,12]
[null,null,null,null,null,{"$f":"SUM(a_ND!AK:AK)","v":0},{"$f":"SUM(a_ND!AL:AL)","v":0},{"$f":"SUM(a_ND!AM:AM)","v":0},{"$f":"SUM(a_ND!AN:AN)","v":0},{"$f":"SUM(a_ND!AO:AO)","v":0},{"$f":"SUM(a_ND!AP:AP)","v":0},{"$f":"SUM(a_ND!AQ:AQ)","v":0},{"$f":"SUM(a_ND!AR:AR)","v":0},{"$f":"SUM(a_ND!AS:AS)","v":0},{"$f":"SUM(a_ND!AT:AT)","v":0},{"$f":"SUM(a_ND!AU:AU)","v":0},{"$f":"SUM(a_ND!AV:AV)","v":0}]
[null,null,null,null,null,{"$f":"SUM(a_ND!D13:D999)","v":0},{"$f":"SUM(a_ND!E13:E999)","v":0},{"$f":"SUM(a_ND!F13:F999)","v":0},{"$f":"SUM(a_ND!G13:G999)","v":0},{"$f":"SUM(a_ND!H13:H999)","v":0},{"$f":"SUM(a_ND!I13:I999)","v":0},{"$f":"SUM(a_ND!J13:J999)","v":0},{"$f":"SUM(a_ND!K13:K999)","v":0},{"$f":"SUM(a_ND!L13:L999)","v":0},{"$f":"SUM(a_ND!M:M)","v":0},{"$f":"SUM(a_ND!N:N)","v":0},{"$f":"SUM(a_ND!O:O)","v":0}]
[null,"Wartość po kolejnych miesiącach:"]
[null,null,"Suma wydatków",null,null,{"$f":"F7","v":0},{"$f":"F10+G7","v":0},{"$f":"G10+H7","v":0},0,0,0,0,0,0,0,0,0]
[null,null,"Średnioroczna liczba etatów",null,null,null,null,null,{"$f":"AVERAGE($F8:I8)","v":0},{"$f":"AVERAGE($F8:J8)","v":0},{"$f":"AVERAGE($F8:K8)","v":0},{"$f":"AVERAGE($F8:L8)","v":0},{"$f":"AVERAGE($F8:M8)","v":0},{"$f":"AVERAGE($F8:N8)","v":0},{"$f":"AVERAGE($F8:O8)","v":0},{"$f":"AVERAGE($F8:P8)","v":0},{"$f":"AVERAGE($F8:Q8)","v":0}]
[null,null,"Różnica",null,null,null,null,null,{"$f":"IF(I7=0,0,(I10-DanPar!$F$29*I11*I6))","v":0},{"$f":"IF(J7=0,0,(J10-DanPar!$F$29*J11*J6))","v":0},{"$f":"IF(K7=0,0,(K10-DanPar!$F$29*K11*K6))","v":0},{"$f":"IF(L7=0,0,(L10-DanPar!$F$29*L11*L6))","v":0},{"$f":"IF(M7=0,0,(M10-DanPar!$F$29*M11*M6))","v":0},{"$f":"IF(N7=0,0,(N10-DanPar!$F$29*N11*N6))","v":0},{"$f":"IF(O7=0,0,(O10-DanPar!$F$29*O11*O6))","v":0},{"$f":"IF(P7=0,0,(P10-DanPar!$F$29*P11*P6))","v":0},{"$f":"IF(Q7=0,0,(Q10-DanPar!$F$29*Q11*Q6))","v":0},{"$f":"LINEST(I12:N12,I6:N6)","v":0},0,{"$f":"R12*12+S12","v":0}]
[]
[]
[null,"N. Mianowani",null,null,null,"styczeń","luty","marzec","kwiecień","maj","czerwiec","lipiec","sierpień","wrzesień","październik","listopad","grudzień",null,null,"prognoza na styczeń po 9 miesiącach"]
[null,null,null,null,null,1,2,3,4,5,6,7,8,9,10,11,12]
[null,null,null,null,null,{"$f":"SUM(a_NM!AK:AK)","v":0},{"$f":"SUM(a_NM!AL:AL)","v":0},{"$f":"SUM(a_NM!AM:AM)","v":0},{"$f":"SUM(a_NM!AN:AN)","v":0},{"$f":"SUM(a_NM!AO:AO)","v":0},{"$f":"SUM(a_NM!AP:AP)","v":0},{"$f":"SUM(a_NM!AQ:AQ)","v":0},{"$f":"SUM(a_NM!AR:AR)","v":0},{"$f":"SUM(a_NM!AS:AS)","v":0},{"$f":"SUM(a_NM!AT:AT)","v":0},{"$f":"SUM(a_NM!AU:AU)","v":0},{"$f":"SUM(a_NM!AV:AV)","v":0}]
[null,null,null,null,null,{"$f":"SUM(a_NM!D13:D999)","v":0},{"$f":"SUM(a_NM!E13:E999)","v":0},{"$f":"SUM(a_NM!F13:F999)","v":0},{"$f":"SUM(a_NM!G13:G999)","v":0},{"$f":"SUM(a_NM!H13:H999)","v":0},{"$f":"SUM(a_NM!I13:I999)","v":0},{"$f":"SUM(a_NM!J13:J999)","v":0},{"$f":"SUM(a_NM!K13:K999)","v":0},{"$f":"SUM(a_NM!L13:L999)","v":0},{"$f":"SUM(a_NM!M:M)","v":0},{"$f":"SUM(a_NM!N:N)","v":0},{"$f":"SUM(a_NM!O:O)","v":0}]
[null,"Wartość po kolejnych miesiącach:"]
[null,null,"Suma wydatków",null,null,{"$f":"F17","v":0},{"$f":"F20+G17","v":0},{"$f":"G20+H17","v":0},0,0,0,0,0,0,0,0,0]
[null,null,"Średnioroczna liczba etatów",null,null,null,null,null,{"$f":"AVERAGE($F18:I18)","v":0},{"$f":"AVERAGE($F18:J18)","v":0},{"$f":"AVERAGE($F18:K18)","v":0},{"$f":"AVERAGE($F18:L18)","v":0},{"$f":"AVERAGE($F18:M18)","v":0},{"$f":"AVERAGE($F18:N18)","v":0},{"$f":"AVERAGE($F18:O18)","v":0},{"$f":"AVERAGE($F18:P18)","v":0},{"$f":"AVERAGE($F18:Q18)","v":0}]
[null,null,"Różnica",null,null,null,null,null,{"$f":"IF(I17=0,0,(I20-DanPar!$F$28*I21*I16))","v":0},{"$f":"IF(J17=0,0,(J20-DanPar!$F$28*J21*J16))","v":0},{"$f":"IF(K17=0,0,(K20-DanPar!$F$28*K21*K16))","v":0},{"$f":"IF(L17=0,0,(L20-DanPar!$F$28*L21*L16))","v":0},{"$f":"IF(M17=0,0,(M20-DanPar!$F$28*M21*M16))","v":0},{"$f":"IF(N17=0,0,(N20-DanPar!$F$28*N21*N16))","v":0},{"$f":"IF(O17=0,0,(O20-DanPar!$F$28*O21*O16))","v":0},{"$f":"IF(P17=0,0,(P20-DanPar!$F$28*P21*P16))","v":0},{"$f":"IF(Q17=0,0,(Q20-DanPar!$F$28*Q21*Q16))","v":0},{"$f":"LINEST(I22:N22,I16:N16)","v":0},0,{"$f":"R22*12+S22","v":0}]
[]
[]
[null,"N. Początkujący",null,null,null,"styczeń","luty","marzec","kwiecień","maj","czerwiec","lipiec","sierpień","wrzesień","październik","listopad","grudzień",null,null,"prognoza na styczeń po 9 miesiącach"]
[null,null,null,null,null,1,2,3,4,5,6,7,8,9,10,11,12]
[null,null,null,null,null,{"$f":"SUM(a_NK!AK:AK)","v":0},{"$f":"SUM(a_NK!AL:AL)","v":0},{"$f":"SUM(a_NK!AM:AM)","v":0},{"$f":"SUM(a_NK!AN:AN)","v":0},{"$f":"SUM(a_NK!AO:AO)","v":0},{"$f":"SUM(a_NK!AP:AP)","v":0},{"$f":"SUM(a_NK!AQ:AQ)","v":0},{"$f":"SUM(a_NK!AR:AR)","v":0},{"$f":"SUM(a_NK!AS:AS)","v":0},{"$f":"SUM(a_NK!AT:AT)","v":0},{"$f":"SUM(a_NK!AU:AU)","v":0},{"$f":"SUM(a_NK!AV:AV)","v":0}]
[null,null,null,null,null,{"$f":"SUM(a_NK!D13:D999)","v":0},{"$f":"SUM(a_NK!E13:E999)","v":0},{"$f":"SUM(a_NK!F13:F999)","v":0},{"$f":"SUM(a_NK!G13:G999)","v":0},{"$f":"SUM(a_NK!H13:H999)","v":0},{"$f":"SUM(a_NK!I13:I999)","v":0},{"$f":"SUM(a_NK!J13:J999)","v":0},{"$f":"SUM(a_NK!K13:K999)","v":0},{"$f":"SUM(a_NK!L13:L999)","v":0},{"$f":"SUM(a_NK!M:M)","v":0},{"$f":"SUM(a_NK!N:N)","v":0},{"$f":"SUM(a_NK!O:O)","v":0}]
[null,"Wartość po kolejnych miesiącach:"]
[null,null,"Suma wydatków",null,null,{"$f":"F27","v":0},{"$f":"F30+G27","v":0},{"$f":"G30+H27","v":0},0,0,0,0,0,0,0,0,0]
[null,null,"Średnioroczna liczba etatów",null,null,null,null,null,{"$f":"AVERAGE($F28:I28)","v":0},{"$f":"AVERAGE($F28:J28)","v":0},{"$f":"AVERAGE($F28:K28)","v":0},{"$f":"AVERAGE($F28:L28)","v":0},{"$f":"AVERAGE($F28:M28)","v":0},{"$f":"AVERAGE($F28:N28)","v":0},{"$f":"AVERAGE($F28:O28)","v":0},{"$f":"AVERAGE($F28:P28)","v":0},{"$f":"AVERAGE($F28:Q28)","v":0}]
[null,null,"Różnica",null,null,null,null,null,{"$f":"IF(I27=0,0,(I30-DanPar!$F$27*I31*I26))","v":0},{"$f":"IF(J27=0,0,(J30-DanPar!$F$27*J31*J26))","v":0},{"$f":"IF(K27=0,0,(K30-DanPar!$F$27*K31*K26))","v":0},{"$f":"IF(L27=0,0,(L30-DanPar!$F$27*L31*L26))","v":0},{"$f":"IF(M27=0,0,(M30-DanPar!$F$27*M31*M26))","v":0},{"$f":"IF(N27=0,0,(N30-DanPar!$F$27*N31*N26))","v":0},{"$f":"IF(O27=0,0,(O30-DanPar!$F$27*O31*O26))","v":0},{"$f":"IF(P27=0,0,(P30-DanPar!$F$27*P31*P26))","v":0},{"$f":"IF(Q27=0,0,(Q30-DanPar!$F$27*Q31*Q26))","v":0},{"$f":"LINEST(I32:N32,I26:N26)","v":0},0,{"$f":"R32*12+S32","v":0}]
[]
[]
[null,"N. Stażyści",null,null,null,"styczeń","luty","marzec","kwiecień","maj","czerwiec","lipiec","sierpień","wrzesień","październik","listopad","grudzień",null,null,"prognoza na styczeń po 9 miesiącach"]
[null,null,null,null,null,1,2,3,4,5,6,7,8,9,10,11,12]
[null,null,null,null,null,{"$f":"SUM(a_NS!AK:AK)","v":0},{"$f":"SUM(a_NS!AL:AL)","v":0},{"$f":"SUM(a_NS!AM:AM)","v":0},{"$f":"SUM(a_NS!AN:AN)","v":0},{"$f":"SUM(a_NS!AO:AO)","v":0},{"$f":"SUM(a_NS!AP:AP)","v":0},{"$f":"SUM(a_NS!AQ:AQ)","v":0},{"$f":"SUM(a_NS!AR:AR)","v":0},{"$f":"SUM(a_NS!AS:AS)","v":0},{"$f":"SUM(a_NS!AT:AT)","v":0},{"$f":"SUM(a_NS!AU:AU)","v":0},{"$f":"SUM(a_NS!AV:AV)","v":0}]
[null,null,null,null,null,{"$f":"SUM(a_NS!D13:D999)","v":0},{"$f":"SUM(a_NS!E13:E999)","v":0},{"$f":"SUM(a_NS!F13:F999)","v":0},{"$f":"SUM(a_NS!G13:G999)","v":0},{"$f":"SUM(a_NS!H13:H999)","v":0},{"$f":"SUM(a_NS!I13:I999)","v":0},{"$f":"SUM(a_NS!J13:J999)","v":0},{"$f":"SUM(a_NS!K13:K999)","v":0},{"$f":"SUM(a_NS!L13:L999)","v":0},{"$f":"SUM(a_NS!M:M)","v":0},{"$f":"SUM(a_NS!N:N)","v":0},{"$f":"SUM(a_NS!O:O)","v":0}]
[null,"Wartość po kolejnych miesiącach:"]
[null,null,"Suma wydatków",null,null,{"$f":"F37","v":0},{"$f":"F40+G37","v":0},{"$f":"G40+H37","v":0},0,0,0,0,0,0,0,0,0]
[null,null,"Średnioroczna liczba etatów",null,null,null,null,null,{"$f":"AVERAGE($F38:I38)","v":0},{"$f":"AVERAGE($F38:J38)","v":0},{"$f":"AVERAGE($F38:K38)","v":0},{"$f":"AVERAGE($F38:L38)","v":0},{"$f":"AVERAGE($F38:M38)","v":0},{"$f":"AVERAGE($F38:N38)","v":0},{"$f":"AVERAGE($F38:O38)","v":0},{"$f":"AVERAGE($F38:P38)","v":0},{"$f":"AVERAGE($F38:Q38)","v":0}]
[null,null,"Różnica",null,null,null,null,null,{"$f":"IF(I37=0,0,(I40-DanPar!$F$26*I41*I36))","v":0},{"$f":"IF(J37=0,0,(J40-DanPar!$F$26*J41*J36))","v":0},{"$f":"IF(K37=0,0,(K40-DanPar!$F$26*K41*K36))","v":0},{"$f":"IF(L37=0,0,(L40-DanPar!$F$26*L41*L36))","v":0},{"$f":"IF(M37=0,0,(M40-DanPar!$F$26*M41*M36))","v":0},{"$f":"IF(N37=0,0,(N40-DanPar!$F$26*N41*N36))","v":0},{"$f":"IF(O37=0,0,(O40-DanPar!$F$26*O41*O36))","v":0},{"$f":"IF(P37=0,0,(P40-DanPar!$F$26*P41*P36))","v":0},{"$f":"IF(Q37=0,0,(Q40-DanPar!$F$26*Q41*Q36))","v":0},{"$f":"LINEST(I42:N42,I36:N36)","v":0},0,{"$f":"R42*12+S42","v":0}]

{"sheet":"RP10","index":28,"n_rows":42,"n_cols":20,"rows_kept":42,"cut":false,"hidden":false,"merged":[[4,19,10,19],[14,19,20,19],[24,19,30,19],[34,19,40,19]]}
[]
[null,"Prognoza różnicy (R=W-S*N) w danej grupie awansu zawodowego na styczeń po 10 miesiącach gromadzenia danych"]
[]
[]
[null,"N. Dyplomowani",null,null,null,"styczeń","luty","marzec","kwiecień","maj","czerwiec","lipiec","sierpień","wrzesień","październik","listopad","grudzień",null,null,"prognoza na styczeń po 10 miesiącach"]
[null,null,null,null,null,1,2,3,4,5,6,7,8,9,10,11,12]
[null,null,null,null,null,{"$f":"SUM(a_ND!AK:AK)","v":0},{"$f":"SUM(a_ND!AL:AL)","v":0},{"$f":"SUM(a_ND!AM:AM)","v":0},{"$f":"SUM(a_ND!AN:AN)","v":0},{"$f":"SUM(a_ND!AO:AO)","v":0},{"$f":"SUM(a_ND!AP:AP)","v":0},{"$f":"SUM(a_ND!AQ:AQ)","v":0},{"$f":"SUM(a_ND!AR:AR)","v":0},{"$f":"SUM(a_ND!AS:AS)","v":0},{"$f":"SUM(a_ND!AT:AT)","v":0},{"$f":"SUM(a_ND!AU:AU)","v":0},{"$f":"SUM(a_ND!AV:AV)","v":0}]
[null,null,null,null,null,{"$f":"SUM(a_ND!D13:D999)","v":0},{"$f":"SUM(a_ND!E13:E999)","v":0},{"$f":"SUM(a_ND!F13:F999)","v":0},{"$f":"SUM(a_ND!G13:G999)","v":0},{"$f":"SUM(a_ND!H13:H999)","v":0},{"$f":"SUM(a_ND!I13:I999)","v":0},{"$f":"SUM(a_ND!J13:J999)","v":0},{"$f":"SUM(a_ND!K13:K999)","v":0},{"$f":"SUM(a_ND!L13:L999)","v":0},{"$f":"SUM(a_ND!M13:M999)","v":0},{"$f":"SUM(a_ND!N:N)","v":0},{"$f":"SUM(a_ND!O:O)","v":0}]
[null,"Wartość po kolejnych miesiącach:"]
[null,null,"Suma wydatków",null,null,{"$f":"F7","v":0},{"$f":"F10+G7","v":0},{"$f":"G10+H7","v":0},0,0,0,0,0,0,0,0,0]
[null,null,"Średnioroczna liczba etatów",null,null,null,null,null,{"$f":"AVERAGE($F8:I8)","v":0},{"$f":"AVERAGE($F8:J8)","v":0},{"$f":"AVERAGE($F8:K8)","v":0},{"$f":"AVERAGE($F8:L8)","v":0},{"$f":"AVERAGE($F8:M8)","v":0},{"$f":"AVERAGE($F8:N8)","v":0},{"$f":"AVERAGE($F8:O8)","v":0},{"$f":"AVERAGE($F8:P8)","v":0},{"$f":"AVERAGE($F8:Q8)","v":0}]
[null,null,"Różnica",null,null,null,null,null,{"$f":"IF(I7=0,0,(I10-DanPar!$F$29*I11*I6))","v":0},{"$f":"IF(J7=0,0,(J10-DanPar!$F$29*J11*J6))","v":0},{"$f":"IF(K7=0,0,(K10-DanPar!$F$29*K11*K6))","v":0},{"$f":"IF(L7=0,0,(L10-DanPar!$F$29*L11*L6))","v":0},{"$f":"IF(M7=0,0,(M10-DanPar!$F$29*M11*M6))","v":0},{"$f":"IF(N7=0,0,(N10-DanPar!$F$29*N11*N6))","v":0},{"$f":"IF(O7=0,0,(O10-DanPar!$F$29*O11*O6))","v":0},{"$f":"IF(P7=0,0,(P10-DanPar!$F$29*P11*P6))","v":0},{"$f":"IF(Q7=0,0,(Q10-DanPar!$F$29*Q11*Q6))","v":0},{"$f":"LINEST(I12:O12,I6:O6)","v":0},0,{"$f":"R12*12+S12","v":0}]
[]
[]
[null,"N. Mianowani",null,null,null,"styczeń","luty","marzec","kwiecień","maj","czerwiec","lipiec","sierpień","wrzesień","październik","listopad","grudzień",null,null,"prognoza na styczeń po 10 miesiącach"]
[null,null,null,null,null,1,2,3,4,5,6,7,8,9,10,11,12]
[null,null,null,null,null,{"$f":"SUM(a_NM!AK:AK)","v":0},{"$f":"SUM(a_NM!AL:AL)","v":0},{"$f":"SUM(a_NM!AM:AM)","v":0},{"$f":"SUM(a_NM!AN:AN)","v":0},{"$f":"SUM(a_NM!AO:AO)","v":0},{"$f":"SUM(a_NM!AP:AP)","v":0},{"$f":"SUM(a_NM!AQ:AQ)","v":0},{"$f":"SUM(a_NM!AR:AR)","v":0},{"$f":"SUM(a_NM!AS:AS)","v":0},{"$f":"SUM(a_NM!AT:AT)","v":0},{"$f":"SUM(a_NM!AU:AU)","v":0},{"$f":"SUM(a_NM!AV:AV)","v":0}]
[null,null,null,null,null,{"$f":"SUM(a_NM!D13:D999)","v":0},{"$f":"SUM(a_NM!E13:E999)","v":0},{"$f":"SUM(a_NM!F13:F999)","v":0},{"$f":"SUM(a_NM!G13:G999)","v":0},{"$f":"SUM(a_NM!H13:H999)","v":0},{"$f":"SUM(a_NM!I13:I999)","v":0},{"$f":"SUM(a_NM!J13:J999)","v":0},{"$f":"SUM(a_NM!K13:K999)","v":0},{"$f":"SUM(a_NM!L13:L999)","v":0},{"$f":"SUM(a_NM!M13:M999)","v":0},{"$f":"SUM(a_NM!N:N)","v":0},{"$f":"SUM(a_NM!O:O)","v":0}]
[null,"Wartość po kolejnych miesiącach:"]
[null,null,"Suma wydatków",null,null,{"$f":"F17","v":0},{"$f":"F20+G17","v":0},{"$f":"G20+H17","v":0},0,0,0,0,0,0,0,0,0]
[null,null,"Średnioroczna liczba etatów",null,null,null,null,null,{"$f":"AVERAGE($F18:I18)","v":0},{"$f":"AVERAGE($F18:J18)","v":0},{"$f":"AVERAGE($F18:K18)","v":0},{"$f":"AVERAGE($F18:L18)","v":0},{"$f":"AVERAGE($F18:M18)","v":0},{"$f":"AVERAGE($F18:N18)","v":0},{"$f":"AVERAGE($F18:O18)","v":0},{"$f":"AVERAGE($F18:P18)","v":0},{"$f":"AVERAGE($F18:Q18)","v":0}]
[null,null,"Różnica",null,null,null,null,null,{"$f":"IF(I17=0,0,(I20-DanPar!$F$28*I21*I16))","v":0},{"$f":"IF(J17=0,0,(J20-DanPar!$F$28*J21*J16))","v":0},{"$f":"IF(K17=0,0,(K20-DanPar!$F$28*K21*K16))","v":0},{"$f":"IF(L17=0,0,(L20-DanPar!$F$28*L21*L16))","v":0},{"$f":"IF(M17=0,0,(M20-DanPar!$F$28*M21*M16))","v":0},{"$f":"IF(N17=0,0,(N20-DanPar!$F$28*N21*N16))","v":0},{"$f":"IF(O17=0,0,(O20-DanPar!$F$28*O21*O16))","v":0},{"$f":"IF(P17=0,0,(P20-DanPar!$F$28*P21*P16))","v":0},{"$f":"IF(Q17=0,0,(Q20-DanPar!$F$28*Q21*Q16))","v":0},{"$f":"LINEST(I22:O22,I16:O16)","v":0},0,{"$f":"R22*12+S22","v":0}]
[]
[]
[null,"N. Początkujący",null,null,null,"styczeń","luty","marzec","kwiecień","maj","czerwiec","lipiec","sierpień","wrzesień","październik","listopad","grudzień",null,null,"prognoza na styczeń po 10 miesiącach"]
[null,null,null,null,null,1,2,3,4,5,6,7,8,9,10,11,12]
[null,null,null,null,null,{"$f":"SUM(a_NK!AK:AK)","v":0},{"$f":"SUM(a_NK!AL:AL)","v":0},{"$f":"SUM(a_NK!AM:AM)","v":0},{"$f":"SUM(a_NK!AN:AN)","v":0},{"$f":"SUM(a_NK!AO:AO)","v":0},{"$f":"SUM(a_NK!AP:AP)","v":0},{"$f":"SUM(a_NK!AQ:AQ)","v":0},{"$f":"SUM(a_NK!AR:AR)","v":0},{"$f":"SUM(a_NK!AS:AS)","v":0},{"$f":"SUM(a_NK!AT:AT)","v":0},{"$f":"SUM(a_NK!AU:AU)","v":0},{"$f":"SUM(a_NK!AV:AV)","v":0}]
[null,null,null,null,null,{"$f":"SUM(a_NK!D13:D999)","v":0},{"$f":"SUM(a_NK!E13:E999)","v":0},{"$f":"SUM(a_NK!F13:F999)","v":0},{"$f":"SUM(a_NK!G13:G999)","v":0},{"$f":"SUM(a_NK!H13:H999)","v":0},{"$f":"SUM(a_NK!I13:I999)","v":0},{"$f":"SUM(a_NK!J13:J999)","v":0},{"$f":"SUM(a_NK!K13:K999)","v":0},{"$f":"SUM(a_NK!L13:L999)","v":0},{"$f":"SUM(a_NK!M13:M999)","v":0},{"$f":"SUM(a_NK!N:N)","v":0},{"$f":"SUM(a_NK!O:O)","v":0}]
[null,"Wartość po kolejnych miesiącach:"]
[null,null,"Suma wydatków",null,null,{"$f":"F27","v":0},{"$f":"F30+G27","v":0},{"$f":"G30+H27","v":0},0,0,0,0,0,0,0,0,0]
[null,null,"Średnioroczna liczba etatów",null,null,null,null,null,{"$f":"AVERAGE($F28:I28)","v":0},{"$f":"AVERAGE($F28:J28)","v":0},{"$f":"AVERAGE($F28:K28)","v":0},{"$f":"AVERAGE($F28:L28)","v":0},{"$f":"AVERAGE($F28:M28)","v":0},{"$f":"AVERAGE($F28:N28)","v":0},{"$f":"AVERAGE($F28:O28)","v":0},{"$f":"AVERAGE($F28:P28)","v":0},{"$f":"AVERAGE($F28:Q28)","v":0}]
[null,null,"Różnica",null,null,null,null,null,{"$f":"IF(I27=0,0,(I30-DanPar!$F$27*I31*I26))","v":0},{"$f":"IF(J27=0,0,(J30-DanPar!$F$27*J31*J26))","v":0},{"$f":"IF(K27=0,0,(K30-DanPar!$F$27*K31*K26))","v":0},{"$f":"IF(L27=0,0,(L30-DanPar!$F$27*L31*L26))","v":0},{"$f":"IF(M27=0,0,(M30-DanPar!$F$27*M31*M26))","v":0},{"$f":"IF(N27=0,0,(N30-DanPar!$F$27*N31*N26))","v":0},{"$f":"IF(O27=0,0,(O30-DanPar!$F$27*O31*O26))","v":0},{"$f":"IF(P27=0,0,(P30-DanPar!$F$27*P31*P26))","v":0},{"$f":"IF(Q27=0,0,(Q30-DanPar!$F$27*Q31*Q26))","v":0},{"$f":"LINEST(I32:O32,I26:O26)","v":0},0,{"$f":"R32*12+S32","v":0}]
[]
[]
[null,"N. Stażyści",null,null,null,"styczeń","luty","marzec","kwiecień","maj","czerwiec","lipiec","sierpień","wrzesień","październik","listopad","grudzień",null,null,"prognoza na styczeń po 10 miesiącach"]
[null,null,null,null,null,1,2,3,4,5,6,7,8,9,10,11,12]
[null,null,null,null,null,{"$f":"SUM(a_NS!AK:AK)","v":0},{"$f":"SUM(a_NS!AL:AL)","v":0},{"$f":"SUM(a_NS!AM:AM)","v":0},{"$f":"SUM(a_NS!AN:AN)","v":0},{"$f":"SUM(a_NS!AO:AO)","v":0},{"$f":"SUM(a_NS!AP:AP)","v":0},{"$f":"SUM(a_NS!AQ:AQ)","v":0},{"$f":"SUM(a_NS!AR:AR)","v":0},{"$f":"SUM(a_NS!AS:AS)","v":0},{"$f":"SUM(a_NS!AT:AT)","v":0},{"$f":"SUM(a_NS!AU:AU)","v":0},{"$f":"SUM(a_NS!AV:AV)","v":0}]
[null,null,null,null,null,{"$f":"SUM(a_NS!D13:D999)","v":0},{"$f":"SUM(a_NS!E13:E999)","v":0},{"$f":"SUM(a_NS!F13:F999)","v":0},{"$f":"SUM(a_NS!G13:G999)","v":0},{"$f":"SUM(a_NS!H13:H999)","v":0},{"$f":"SUM(a_NS!I13:I999)","v":0},{"$f":"SUM(a_NS!J13:J999)","v":0},{"$f":"SUM(a_NS!K13:K999)","v":0},{"$f":"SUM(a_NS!L13:L999)","v":0},{"$f":"SUM(a_NS!M13:M999)","v":0},{"$f":"SUM(a_NS!N:N)","v":0},{"$f":"SUM(a_NS!O:O)","v":0}]
[null,"Wartość po kolejnych miesiącach:"]
[null,null,"Suma wydatków",null,null,{"$f":"F37","v":0},{"$f":"F40+G37","v":0},{"$f":"G40+H37","v":0},0,0,0,0,0,0,0,0,0]
[null,null,"Średnioroczna liczba etatów",null,null,null,null,null,{"$f":"AVERAGE($F38:I38)","v":0},{"$f":"AVERAGE($F38:J38)","v":0},{"$f":"AVERAGE($F38:K38)","v":0},{"$f":"AVERAGE($F38:L38)","v":0},{"$f":"AVERAGE($F38:M38)","v":0},{"$f":"AVERAGE($F38:N38)","v":0},{"$f":"AVERAGE($F38:O38)","v":0},{"$f":"AVERAGE($F38:P38)","v":0},{"$f":"AVERAGE($F38:Q38)","v":0}]
[null,null,"Różnica",null,null,null,null,null,{"$f":"IF(I37=0,0,(I40-DanPar!$F$26*I41*I36))","v":0},{"$f":"IF(J37=0,0,(J40-DanPar!$F$26*J41*J36))","v":0},{"$f":"IF(K37=0,0,(K40-DanPar!$F$26*K41*K36))","v":0},{"$f":"IF(L37=0,0,(L40-DanPar!$F$26*L41*L36))","v":0},{"$f":"IF(M37=0,0,(M40-DanPar!$F$26*M41*M36))","v":0},{"$f":"IF(N37=0,0,(N40-DanPar!$F$26*N41*N36))","v":0},{"$f":"IF(O37=0,0,(O40-DanPar!$F$26*O41*O36))","v":0},{"$f":"IF(P37=0,0,(P40-DanPar!$F$26*P41*P36))","v":0},{"$f":"IF(Q37=0,0,(Q40-DanPar!$F$26*Q41*Q36))","v":0},{"$f":"LINEST(I42:O42,I36:O36)","v":0},0,{"$f":"R42*12+S42","v":0}]

{"sheet":"RP11","index":29,"n_rows":42,"n_cols":20,"rows_kept":42,"cut":false,"hidden":false,"merged":[[4,19,10,19],[14,19,20,19],[24,19,30,19],[34,19,40,19]]}
[]
[null,"Prognoza różnicy (R=W-S*N) w danej grupie awansu zawodowego na styczeń po 11 miesiącach gromadzenia danych"]
[]
[]
[null,"N. Dyplomowani",null,null,null,"styczeń","luty","marzec","kwiecień","maj","czerwiec","lipiec","sierpień","wrzesień","październik","listopad","grudzień",null,null,"prognoza na styczeń po 11 miesiącach"]
[null,null,null,null,null,1,2,3,4,5,6,7,8,9,10,11,12]
[null,null,null,null,null,{"$f":"SUM(a_ND!AK:AK)","v":0},{"$f":"SUM(a_ND!AL:AL)","v":0},{"$f":"SUM(a_ND!AM:AM)","v":0},{"$f":"SUM(a_ND!AN:AN)","v":0},{"$f":"SUM(a_ND!AO:AO)","v":0},{"$f":"SUM(a_ND!AP:AP)","v":0},{"$f":"SUM(a_ND!AQ:AQ)","v":0},{"$f":"SUM(a_ND!AR:AR)","v":0},{"$f":"SUM(a_ND!AS:AS)","v":0},{"$f":"SUM(a_ND!AT:AT)","v":0},{"$f":"SUM(a_ND!AU:AU)","v":0},{"$f":"SUM(a_ND!AV:AV)","v":0}]
[null,null,null,null,null,{"$f":"SUM(a_ND!D13:D999)","v":0},{"$f":"SUM(a_ND!E13:E999)","v":0},{"$f":"SUM(a_ND!F13:F999)","v":0},{"$f":"SUM(a_ND!G13:G999)","v":0},{"$f":"SUM(a_ND!H13:H999)","v":0},{"$f":"SUM(a_ND!I13:I999)","v":0},{"$f":"SUM(a_ND!J13:J999)","v":0},{"$f":"SUM(a_ND!K13:K999)","v":0},{"$f":"SUM(a_ND!L13:L999)","v":0},{"$f":"SUM(a_ND!M13:M999)","v":0},{"$f":"SUM(a_ND!N13:N999)","v":0},{"$f":"SUM(a_ND!O:O)","v":0}]
[null,"Wartość po kolejnych miesiącach:"]
[null,null,"Suma wydatków",null,null,{"$f":"F7","v":0},{"$f":"F10+G7","v":0},{"$f":"G10+H7","v":0},0,0,0,0,0,0,0,0,0]
[null,null,"Średnioroczna liczba etatów",null,null,null,null,null,{"$f":"AVERAGE($F8:I8)","v":0},{"$f":"AVERAGE($F8:J8)","v":0},{"$f":"AVERAGE($F8:K8)","v":0},{"$f":"AVERAGE($F8:L8)","v":0},{"$f":"AVERAGE($F8:M8)","v":0},{"$f":"AVERAGE($F8:N8)","v":0},{"$f":"AVERAGE($F8:O8)","v":0},{"$f":"AVERAGE($F8:P8)","v":0},{"$f":"AVERAGE($F8:Q8)","v":0}]
[null,null,"Różnica",null,null,null,null,null,{"$f":"IF(I7=0,0,(I10-DanPar!$F$29*I11*I6))","v":0},{"$f":"IF(J7=0,0,(J10-DanPar!$F$29*J11*J6))","v":0},{"$f":"IF(K7=0,0,(K10-DanPar!$F$29*K11*K6))","v":0},{"$f":"IF(L7=0,0,(L10-DanPar!$F$29*L11*L6))","v":0},{"$f":"IF(M7=0,0,(M10-DanPar!$F$29*M11*M6))","v":0},{"$f":"IF(N7=0,0,(N10-DanPar!$F$29*N11*N6))","v":0},{"$f":"IF(O7=0,0,(O10-DanPar!$F$29*O11*O6))","v":0},{"$f":"IF(P7=0,0,(P10-DanPar!$F$29*P11*P6))","v":0},{"$f":"IF(Q7=0,0,(Q10-DanPar!$F$29*Q11*Q6))","v":0},{"$f":"LINEST(I12:P12,I6:P6)","v":0},0,{"$f":"R12*12+S12","v":0}]
[]
[]
[null,"N. Mianowani",null,null,null,"styczeń","luty","marzec","kwiecień","maj","czerwiec","lipiec","sierpień","wrzesień","październik","listopad","grudzień",null,null,"prognoza na styczeń po 11 miesiącach"]
[null,null,null,null,null,1,2,3,4,5,6,7,8,9,10,11,12]
[null,null,null,null,null,{"$f":"SUM(a_NM!AK:AK)","v":0},{"$f":"SUM(a_NM!AL:AL)","v":0},{"$f":"SUM(a_NM!AM:AM)","v":0},{"$f":"SUM(a_NM!AN:AN)","v":0},{"$f":"SUM(a_NM!AO:AO)","v":0},{"$f":"SUM(a_NM!AP:AP)","v":0},{"$f":"SUM(a_NM!AQ:AQ)","v":0},{"$f":"SUM(a_NM!AR:AR)","v":0},{"$f":"SUM(a_NM!AS:AS)","v":0},{"$f":"SUM(a_NM!AT:AT)","v":0},{"$f":"SUM(a_NM!AU:AU)","v":0},{"$f":"SUM(a_NM!AV:AV)","v":0}]
[null,null,null,null,null,{"$f":"SUM(a_NM!D13:D999)","v":0},{"$f":"SUM(a_NM!E13:E999)","v":0},{"$f":"SUM(a_NM!F13:F999)","v":0},{"$f":"SUM(a_NM!G13:G999)","v":0},{"$f":"SUM(a_NM!H13:H999)","v":0},{"$f":"SUM(a_NM!I13:I999)","v":0},{"$f":"SUM(a_NM!J13:J999)","v":0},{"$f":"SUM(a_NM!K13:K999)","v":0},{"$f":"SUM(a_NM!L13:L999)","v":0},{"$f":"SUM(a_NM!M13:M999)","v":0},{"$f":"SUM(a_NM!N13:N999)","v":0},{"$f":"SUM(a_NM!O:O)","v":0}]
[null,"Wartość po kolejnych miesiącach:"]
[null,null,"Suma wydatków",null,null,{"$f":"F17","v":0},{"$f":"F20+G17","v":0},{"$f":"G20+H17","v":0},0,0,0,0,0,0,0,0,0]
[null,null,"Średnioroczna liczba etatów",null,null,null,null,null,{"$f":"AVERAGE($F18:I18)","v":0},{"$f":"AVERAGE($F18:J18)","v":0},{"$f":"AVERAGE($F18:K18)","v":0},{"$f":"AVERAGE($F18:L18)","v":0},{"$f":"AVERAGE($F18:M18)","v":0},{"$f":"AVERAGE($F18:N18)","v":0},{"$f":"AVERAGE($F18:O18)","v":0},{"$f":"AVERAGE($F18:P18)","v":0},{"$f":"AVERAGE($F18:Q18)","v":0}]
[null,null,"Różnica",null,null,null,null,null,{"$f":"IF(I17=0,0,(I20-DanPar!$F$28*I21*I16))","v":0},{"$f":"IF(J17=0,0,(J20-DanPar!$F$28*J21*J16))","v":0},{"$f":"IF(K17=0,0,(K20-DanPar!$F$28*K21*K16))","v":0},{"$f":"IF(L17=0,0,(L20-DanPar!$F$28*L21*L16))","v":0},{"$f":"IF(M17=0,0,(M20-DanPar!$F$28*M21*M16))","v":0},{"$f":"IF(N17=0,0,(N20-DanPar!$F$28*N21*N16))","v":0},{"$f":"IF(O17=0,0,(O20-DanPar!$F$28*O21*O16))","v":0},{"$f":"IF(P17=0,0,(P20-DanPar!$F$28*P21*P16))","v":0},{"$f":"IF(Q17=0,0,(Q20-DanPar!$F$28*Q21*Q16))","v":0},{"$f":"LINEST(I22:P22,I16:P16)","v":0},0,{"$f":"R22*12+S22","v":0}]
[]
[]
[null,"N. Początkujący",null,null,null,"styczeń","luty","marzec","kwiecień","maj","czerwiec","lipiec","sierpień","wrzesień","październik","listopad","grudzień",null,null,"prognoza na styczeń po 11 miesiącach"]
[null,null,null,null,null,1,2,3,4,5,6,7,8,9,10,11,12]
[null,null,null,null,null,{"$f":"SUM(a_NK!AK:AK)","v":0},{"$f":"SUM(a_NK!AL:AL)","v":0},{"$f":"SUM(a_NK!AM:AM)","v":0},{"$f":"SUM(a_NK!AN:AN)","v":0},{"$f":"SUM(a_NK!AO:AO)","v":0},{"$f":"SUM(a_NK!AP:AP)","v":0},{"$f":"SUM(a_NK!AQ:AQ)","v":0},{"$f":"SUM(a_NK!AR:AR)","v":0},{"$f":"SUM(a_NK!AS:AS)","v":0},{"$f":"SUM(a_NK!AT:AT)","v":0},{"$f":"SUM(a_NK!AU:AU)","v":0},{"$f":"SUM(a_NK!AV:AV)","v":0}]
[null,null,null,null,null,{"$f":"SUM(a_NK!D13:D999)","v":0},{"$f":"SUM(a_NK!E13:E999)","v":0},{"$f":"SUM(a_NK!F13:F999)","v":0},{"$f":"SUM(a_NK!G13:G999)","v":0},{"$f":"SUM(a_NK!H13:H999)","v":0},{"$f":"SUM(a_NK!I13:I999)","v":0},{"$f":"SUM(a_NK!J13:J999)","v":0},{"$f":"SUM(a_NK!K13:K999)","v":0},{"$f":"SUM(a_NK!L13:L999)","v":0},{"$f":"SUM(a_NK!M13:M999)","v":0},{"$f":"SUM(a_NK!N13:N999)","v":0},{"$f":"SUM(a_NK!O:O)","v":0}]
[null,"Wartość po kolejnych miesiącach:"]
[null,null,"Suma wydatków",null,null,{"$f":"F27","v":0},{"$f":"F30+G27","v":0},{"$f":"G30+H27","v":0},0,0,0,0,0,0,0,0,0]
[null,null,"Średnioroczna liczba etatów",null,null,null,null,null,{"$f":"AVERAGE($F28:I28)","v":0},{"$f":"AVERAGE($F28:J28)","v":0},{"$f":"AVERAGE($F28:K28)","v":0},{"$f":"AVERAGE($F28:L28)","v":0},{"$f":"AVERAGE($F28:M28)","v":0},{"$f":"AVERAGE($F28:N28)","v":0},{"$f":"AVERAGE($F28:O28)","v":0},{"$f":"AVERAGE($F28:P28)","v":0},{"$f":"AVERAGE($F28:Q28)","v":0}]
[null,null,"Różnica",null,null,null,null,null,{"$f":"IF(I27=0,0,(I30-DanPar!$F$27*I31*I26))","v":0},{"$f":"IF(J27=0,0,(J30-DanPar!$F$27*J31*J26))","v":0},{"$f":"IF(K27=0,0,(K30-DanPar!$F$27*K31*K26))","v":0},{"$f":"IF(L27=0,0,(L30-DanPar!$F$27*L31*L26))","v":0},{"$f":"IF(M27=0,0,(M30-DanPar!$F$27*M31*M26))","v":0},{"$f":"IF(N27=0,0,(N30-DanPar!$F$27*N31*N26))","v":0},{"$f":"IF(O27=0,0,(O30-DanPar!$F$27*O31*O26))","v":0},{"$f":"IF(P27=0,0,(P30-DanPar!$F$27*P31*P26))","v":0},{"$f":"IF(Q27=0,0,(Q30-DanPar!$F$27*Q31*Q26))","v":0},{"$f":"LINEST(I32:P32,I26:P26)","v":0},0,{"$f":"R32*12+S32","v":0}]
[]
[]
[null,"N. Stażyści",null,null,null,"styczeń","luty","marzec","kwiecień","maj","czerwiec","lipiec","sierpień","wrzesień","październik","listopad","grudzień",null,null,"prognoza na styczeń po 11 miesiącach"]
[null,null,null,null,null,1,2,3,4,5,6,7,8,9,10,11,12]
[null,null,null,null,null,{"$f":"SUM(a_NS!AK:AK)","v":0},{"$f":"SUM(a_NS!AL:AL)","v":0},{"$f":"SUM(a_NS!AM:AM)","v":0},{"$f":"SUM(a_NS!AN:AN)","v":0},{"$f":"SUM(a_NS!AO:AO)","v":0},{"$f":"SUM(a_NS!AP:AP)","v":0},{"$f":"SUM(a_NS!AQ:AQ)","v":0},{"$f":"SUM(a_NS!AR:AR)","v":0},{"$f":"SUM(a_NS!AS:AS)","v":0},{"$f":"SUM(a_NS!AT:AT)","v":0},{"$f":"SUM(a_NS!AU:AU)","v":0},{"$f":"SUM(a_NS!AV:AV)","v":0}]
[null,null,null,null,null,{"$f":"SUM(a_NS!D13:D999)","v":0},{"$f":"SUM(a_NS!E13:E999)","v":0},{"$f":"SUM(a_NS!F13:F999)","v":0},{"$f":"SUM(a_NS!G13:G999)","v":0},{"$f":"SUM(a_NS!H13:H999)","v":0},{"$f":"SUM(a_NS!I13:I999)","v":0},{"$f":"SUM(a_NS!J13:J999)","v":0},{"$f":"SUM(a_NS!K13:K999)","v":0},{"$f":"SUM(a_NS!L13:L999)","v":0},{"$f":"SUM(a_NS!M13:M999)","v":0},{"$f":"SUM(a_NS!N13:N999)","v":0},{"$f":"SUM(a_NS!O:O)","v":0}]
[null,"Wartość po kolejnych miesiącach:"]
[null,null,"Suma wydatków",null,null,{"$f":"F37","v":0},{"$f":"F40+G37","v":0},{"$f":"G40+H37","v":0},0,0,0,0,0,0,0,0,0]
[null,null,"Średnioroczna liczba etatów",null,null,null,null,null,{"$f":"AVERAGE($F38:I38)","v":0},{"$f":"AVERAGE($F38:J38)","v":0},{"$f":"AVERAGE($F38:K38)","v":0},{"$f":"AVERAGE($F38:L38)","v":0},{"$f":"AVERAGE($F38:M38)","v":0},{"$f":"AVERAGE($F38:N38)","v":0},{"$f":"AVERAGE($F38:O38)","v":0},{"$f":"AVERAGE($F38:P38)","v":0},{"$f":"AVERAGE($F38:Q38)","v":0}]
[null,null,"Różnica",null,null,null,null,null,{"$f":"IF(I37=0,0,(I40-DanPar!$F$26*I41*I36))","v":0},{"$f":"IF(J37=0,0,(J40-DanPar!$F$26*J41*J36))","v":0},{"$f":"IF(K37=0,0,(K40-DanPar!$F$26*K41*K36))","v":0},{"$f":"IF(L37=0,0,(L40-DanPar!$F$26*L41*L36))","v":0},{"$f":"IF(M37=0,0,(M40-DanPar!$F$26*M41*M36))","v":0},{"$f":"IF(N37=0,0,(N40-DanPar!$F$26*N41*N36))","v":0},{"$f":"IF(O37=0,0,(O40-DanPar!$F$26*O41*O36))","v":0},{"$f":"IF(P37=0,0,(P40-DanPar!$F$26*P41*P36))","v":0},{"$f":"IF(Q37=0,0,(Q40-DanPar!$F$26*Q41*Q36))","v":0},{"$f":"LINEST(I42:P42,I36:P36)","v":0},0,{"$f":"R42*12+S42","v":0}]

{"sheet":"DnZ","index":30,"n_rows":0,"n_cols":0,"rows_kept":0,"cut":false,"hidden":true,"merged":[]}

{"sheet":"DnWZ","index":31,"n_rows":0,"n_cols":0,"rows_kept":0,"cut":false,"hidden":true,"merged":[]}

{"sheet":"RAP","index":32,"n_rows":59,"n_cols":3,"rows_kept":59,"cut":false,"hidden":true,"merged":[]}
[]
[null,{"$f":"DanPar!L2","v":"Prawo do użytkowania bez ograniczeń można nabyć poprzez uzyskanie licencji poprzez udział w szkoleniu lub zawarcie umowy licencyjnej."}]
[null,"Raport analizy poprawaności"]
[null,{"$f":"Pulpit!D50","v":"ND"},"<== grupa raportowana"]
[null,{"$f":"INDIRECT(\"a_\" & B4 &\"!C1\")","v":"2023-12-27T07:09:56.320"}]
[]
[]
[]
[]
[]
[]
[]
[]
[]
[]
[]
[]
[]
[]
[]
[]
[]
[]
[]
[]
[]
[]
[]
[]
[]
[]
[]
[]
[]
[]
[]
[]
[]
[]
[]
[]
[]
[]
[]
[]
[]
[]
[]
[]
[]
[]
[]
[]
[]
[]
[]
[]
[]
[null,null,"-----------------------------------------------------------"]

{"sheet":"Info","index":33,"n_rows":50,"n_cols":15,"rows_kept":50,"cut":false,"hidden":false,"merged":[[26,2,26,4],[26,5,26,9],[26,10,26,14],[27,2,27,4],[27,5,27,9],[27,10,27,14],[24,2,24,4],[24,5,24,9],[24,10,24,14],[25,2,25,4],[25,5,25,9],[25,10,25,14],[1,2,1,14],[20,2,20,14],[21,2,21,14],[22,2,22,14],[23,2,23,4],[23,5,23,9],[23,10,23,14],[14,2,17,14],[18,13,18,14],[3,1,7,15],[12,2,12,14],[28,2,28,4],[28,5,28,9],[28,10,28,14],[29,2,29,4],[29,5,29,9],[29,10,29,14],[30,2,30,4],[30,5,30,9],[30,10,30,14],[33,2,33,14],[34,2,34,7],[31,11,31,14],[35,2,35,7],[36,2,36,7],[37,2,37,7],[38,2,38,7],[39,2,39,7],[41,8,41,14],[42,8,42,14],[44,8,44,14],[45,8,45,14],[46,8,46,14],[47,8,47,14],[48,8,48,14],[49,8,49,14],[43,8,43,14],[9,2,9,14],[40,2,40,7],[41,2,41,7],[42,2,42,7],[43,2,49,7],[34,8,34,14],[35,8,35,14],[36,8,36,14],[37,8,37,14],[38,8,38,14],[39,8,39,14],[40,8,40,14]]}
[]
[null,null,"Analiza wydatków na wynagrodzenia nauczycieli - 2023 - art. 30a KN"]
[]
[null,"art30a.ucoz.pl"]
[]
[]
[]
[]
[]
[null,null,"Najwłaściwsza kolejność używania arkuszy skoroszytu tej Aplikacji (od Arkusza [DanPar] kolejne zakładki arkuszy widoczne na dole ekranu…)"]
[null,null,"DanPar","Pliki","a_NK","jdu_NK","a_NM","jdu_NM","a_ND","jdu_ND","Spraw","Raporty…","Raporty…","Raporty…","Raporty…"]
[]
[null,null,"Przed rozpoczęciem użytkowania warto zapoznać się ze skrótem instrukcji obsługi zawartym w dołączonym pliku [Info_SkrotInstrukcjiObslugi.pdf]"]
[]
[null,null,"Narzędzia (Aplikacja) wspomagania przeprowadzania analizy wydatków na wynagrodzenia nauczycieli za rok 2023 są znacząco szybsze od dotychczasowych (jest to bardzo ważne w odniesieniu do większych jst – kilka tysięcy nauczycieli do przeanalizowania); ze względu na ciągły i obecny stan nieprzewidywalności poczynań po stronie MEiN oraz głębokie rozumienie zakresu tematycznego po stronie zobowiązanych i uprawnionych do kontrolowania, działanie Aplikacji (w szczególności \"Analizatora\") może być odpowiednio do potrzeb sparametryzowane w celu zapewnienia poprawnej pracy w zgodności z przepisami prawa i także w zgodności z właściwymi lokalnymi oczekiwaniami i wymaganiami oraz w ramach dających się dziś przewidzieć ewentualnych modyfikacji art. 30a (nawet w odniesieniu do kwestii wyjątkowo skrajnych i obecnie bardzo mało prawdopodobnych); zostały uwzględnione wybrane istotne spostrzeżenia i oczekiwania wielu dotychczasowych użytkowników (z lat 2015-2022) oraz uwzględniono niektóre wskazania strony uprawnionej do kontrolowania (wynikające głównie z lektury wniosków pokontrolnych); z perspektywy kodu programu obok zaawansowanych skryptów VBA zostały także wykorzystane skrypty SQL, co pozwoliło zwiększyć szybkość dokonywania analizy; zrezygnowano z dostosowywania do „starego” formatu zapisu reprezentowanego symboliką „XLS” na rzecz tego reprezentowanego symboliką „XLSX” (wynika to z przeprowadzonych badań ankietowych) – dzięki temu znacząco zmniejszyła się objętość plików gromadzenia danych. Nowa wersja narzędzi (2023) jest jeszcze bardziej \"odporna\" na ewentualne błędy wprowadzania danych, konsekwencje konfiguracji środowiskowych oraz jest jeszcze bardziej prostsza w obsłudze."]
[]
[]
[]
[null,null,null,null,null,null,null,null,null,null,null,null,null,"art30a.ucoz.pl"]
[]
[null,null,"Prawo do użytkowania Aplikacji: Licencja (wybór preferowany i zalecany) lub Umowa Licencyjna"]
[null,null,"Prawo do użytkowania Aplikacji uzyskuje się poprzez udział w szkoleniu (Licencja - tylko w przypadku szkoleń tradycyjnych) lub bez udziału w szkoleniu (wtedy poprzez zakup Licencji). Poprzez zawartą niżej tabelę porównawczą oraz wyszczególnione pod nią powtarzające się pytania i odpowiedzi, propozycje i zamierzenia dotyczące uzyskania Licencji lub Umowy Licencyjnej mogą stać się wystarczająco jasnymi w potrzebie podjęcia po Państwa stronie najwłaściwszych decyzji."]
[null,null,"Porównanie sposobów nabycia prawa do użytkowania Aplikacji \n(Narzędzi wspomagania gromadzenia danych i dokonania analizy wydatków na wynagrodzenia nauczycieli 2020)"]
[null,null,"Sygnalizowana kwestia",null,null,"Udział w szkoleniu (dotyczy tylko szkoleń tradycyjnych)",null,null,null,null,"Bez udziału w szkoleniu (forma obecnie preferowana)"]
[null,null,"1) Prawo do użytkowania pełnej wersji Aplikacji",null,null,"Jest skutkiem wzięcia udziału w szkoleniu ()",null,null,null,null,"Jest skutkiem zakupu Licencji (forma preferowana) lub zawarcia Umowy Licencyjnej"]
[null,null,"2) Dokument normujący prawo do użytkowania Aplikacji",null,null,"Licencja (propozycja treści dostępna poprzez serwis art30a.ucoz.pl)\nJest dostępna w wersji elektronicznej do Aplikacji generowanej dla danego podmiotu i udostępnianej od dnia szkolenia",null,null,null,null,"Licencja (L) lub Umowa Licencyjna (UL) (propozycje treści dostępne poprzez serwis art30a.ucoz.pl). UL Jest zawierana w formie elektronicznej (forma zalecana) lub papierowej po dokonaniu zamówienia poprzez formularz elektroniczny"]
[null,null,"3) Aplikacja jest dostępna od dnia…",null,null,"Wzięcia udziału w szkoleniu (po opłaceniu faktury)",null,null,null,null,"Dokonania zamówienia poprzez formularz elektroniczny (po zweryfikowaniu danych i wygenerowaniu plików Aplikacji)"]
[null,null,"4) Dowolność użytkowania",null,null,"Instalowanie, używanie, wyświetlanie, kopiowanie, rozpowszechnianie lub użytkowanie Aplikacji w inny sposób na dowolnej liczbie urządzeń na obszarze tylko właściwym dla jednostki samorządu terytorialnego właściwego dla Licencjobiorcy w rozumieniu przepisów regulujących obowiązek dokonania Analizy z ograniczeniem do liczby plików gromadzenia danych",null,null,null,null,"Instalowanie, używanie, wyświetlanie, kopiowanie, rozpowszechnianie lub użytkowanie Aplikacji w inny sposób na dowolnej liczbie urządzeń na obszarze tylko właściwym dla jednostki samorządu terytorialnego właściwego dla Licencjobiorcy w rozumieniu przepisów regulujących obowiązek dokonania Analizy z ograniczeniem do liczby plików gromadzenia danych"]
[null,null,"5) Ograniczenie",null,null,"Liczby plików gromadzenia danych wynikającej z deklaracji dokonanej w formularzu zgłoszenia na szkolenie (w rozumieniu wskazanych niżej zakresów)",null,null,null,null,"Liczby plików gromadzenia danych wynikającej z deklaracji dokonanej w formularzu zamówienia (w rozumieniu wskazanych niżej zakresów)"]
[null,null,"6) Cena nabycia prawa do użytkowania pełnej wersji Aplikacji",null,null,"właściwe tu informacje są dostępne i odpowiednio aktualizowane w serwisie art30a.ucoz.pl",null,null,null,null,"właściwe tu informacje są dostępne i odpowiednio aktualizowane w serwisie art30a.ucoz.pl"]
[null,null,"7) Pomoc",null,null,"W maksymalnym możliwym zakresie w czasie szkolenia;\n+ ograniczona (w rozumieniu zobowiązań wynikających z Licencji) w zakresie usług drogą elektroniczną i telefoniczną;\n+ możliwość, w ramach odrębnych ustaleń, realizacji szkoleń wewnętrznych itp.",null,null,null,null,"Ograniczona (w rozumieniu zobowiązań wynikających z Licencji lub Umowy Licencyjnej) w zakresie usług drogą elektroniczną i telefoniczną;\n+ możliwość, w ramach odrębnych ustaleń, realizacji szkoleń wewnętrznych itp."]
[null,null,"Krzysztof Sługocki, Wrocław, 01.03.2023, eGocki.pl",null,null,null,null,null,null,null,null,"Krzysztof.Slugocki@gmail.com"]
[]
[null,null,"10 istotnych pytań i odpowiedzi"]
[null,null,"Pyt. 1. Jeżeli wezmę udział w szkoleniu lub dokonam zamówienia Aplikacji – reprezentując daną jednostkę samorządu terytorialnego – i uzyskam Licencję na użytkowanie Aplikacji, to czy Aplikacja będzie mogła być także użytkowana w moich jednostkach organizacyjnych (szkołach)?",null,null,null,null,null,"Odp.: Tak, bez żadnych dodatkowych opłat ani innych czynności w rozumieniu pkt 4) w zawartej tu wyżej tabeli – w ramach ograniczenia wskazanego w pkt 5)."]
[null,null,"Pyt. 2. Jeżeli wezmę udział w szkoleniu lub dokonam zamówienia Aplikacji – reprezentując daną szkołę – i uzyskam Licencję na użytkowanie Aplikacji, to czy Aplikacja będzie mogła być także użytkowana we właściwej dla mnie jednostce samorządu terytorialnego oraz w innych jednostkach organizacyjnych (szkołach) mojej jst?",null,null,null,null,null,"Odp.: Tak, bez żadnych dodatkowych opłat ani innych czynności w rozumieniu pkt 4) w zawartej tu wyżej tabeli – w ramach ograniczenia wskazanego w pkt 5)."]
[null,null,"Pyt. 3. Jeżeli zamówię Aplikację (bez udziału w szkoleniu) – reprezentując daną jednostkę samorządu terytorialnego – i zawrę Umowę Licencyjną na użytkowanie Aplikacji (jako jst), to czy Aplikacja będzie mogła być także użytkowana w moich jednostkach organizacyjnych (szkołach)?",null,null,null,null,null,"Odp.: Tak, bez żadnych dodatkowych opłat ani innych czynności w rozumieniu pkt 4) w zawartej tu wyżej tabeli – w ramach ograniczenia wskazanego w pkt 5)."]
[null,null,"Pyt. 4. Jeżeli zamówię Aplikację (bez udziału w szkoleniu) – reprezentując daną szkołę – i zawrę Umowę Licencyjną na użytkowanie Aplikacji, to czy Aplikacja będzie mogła być także użytkowana we właściwej dla mnie jednostce samorządu terytorialnego oraz w innych jednostkach organizacyjnych (szkołach) mojej jst?",null,null,null,null,null,"Odp.: Tak, bez żadnych dodatkowych opłat ani innych czynności w rozumieniu pkt 4) w zawartej tu wyżej tabeli – w ramach ograniczenia wskazanego w pkt 5)."]
[null,null,"Pyt. 5. Jeżeli w proponowanym szkoleniu weźmie udział 5 osób (w rozumieniu wystawienia faktury na jeden podmiot), to jaki będzie koszt udziału w szkoleniu dla każdej z tych 5 osób?",null,null,null,null,null,"Odp.: Cena zostanie zaproponowana i wzajemnie ustalona w drodze stosownych negocjacji przeprowadzonych poprzez rozmowę telefoniczną i/lub wymianę wiadomości elektronicznych."]
[null,null,"Pyt. 6. Jaki będzie koszt udziału w szkoleniu jednej osoby w przypadku organizowania szkolenia wewnętrznego dla 30 osób?",null,null,null,null,null,"Odp. Cena zostanie zaproponowana i wzajemnie ustalona w drodze stosownych negocjacji przeprowadzonych poprzez rozmowę telefoniczną i/lub wymianę wiadomości elektronicznych."]
[null,null,"Pyt. 7. Jeżeli zamówię Aplikację i będziemy ją użytkować, ale na przykład po wakacjach MEiN tak mocno zmieni prawo, że dalsze jej użytkowanie nie będzie możliwe, to co wtedy? Czy będziemy musieli zamawiać nową Aplikację?",null,null,null,null,null,"Odp.: Nie da się dziś (06.03.2023) udzielić w tym przypadku w pełni satysfakcjonującej odpowiedzi. Aplikacja jest przygotowana na wiele dających się dziś przewidzieć możliwych „pomysłów” po stronie MEiN. Sądzę jednak, że w roku 2023 nie zajdą żadne daleko idące zmiany w realizacji obowiązków wynikających z art. 30a ustawy KN."]
[null,null,"Pyt. 8. Jeżeli dziś zadeklaruję/zgłoszę, że Aplikacja ma u mnie obsłużyć 12 podmiotów, ale za jakiś czas się okaże, że będzie musiała obsłużyć na przykład 16 plików gromadzenia danych, to co wtedy – czy trzeba będzie tu coś na nowo zamawiać?",null,null,null,null,null,"Odp.: Nie, rzecz będzie rozstrzygana w rozumieniu § 14 ust. 2 Licencji (także Umowy Licencyjnej) – „Strony dołożą wszelkich starań w celu ugodowego rozwiązywania problemów i powikłań towarzyszących korzystaniu z tej Licencji.” – co oznacza, że z mojej perspektywy wystarczy zgłoszenie wskazywanej potrzeby (w drodze na przykład telefonicznej lub mailowej) dla konieczności wygenerowania i przekazania właściwie do nowych warunków funkcjonującej Aplikacji."]
[null,null,"Pyt. 9. Czy korzystanie z aktualizacji będzie wymagało ponoszenia dodatkowych kosztów?",null,null,null,null,null,"Odp.: Nie, rozstrzyga tę kwestię w szczególności § 9 ust. 3 Licencji (także Umowy Licencyjnej) - „Uaktualnienie Aplikacji nie podlega żadnym dodatkowym opłatom i czynnościom (z wyłączeniem czynności technicznych i organizacyjnych po stronie Licencjobiorcy) z tytułu uaktualnienia. Uaktualnienie Aplikacji czyni ją ponownie tą samą Aplikacją w rozumieniu Licencji. Licencjobiorca jest zobowiązany używać uaktualnionej Aplikacji. Licencjobiorca jest zobowiązany używać uaktualnionej Aplikacji wyłącznie w sposób określony w Licencji.”"]
[null,null,"Pyt. 10. Czy te licencje są konieczne? Czy nie mogło pozostać tak, jak było do tej pory (2010-2015)?",null,null,null,null,null,"Odp.: Dlaczego Licencja lub Umowa Licencyjna?"]
[null,null,null,null,null,null,null,null,"    Liczba podmiotów, w których zwłaszcza w latach 2016-2018 stosowano proponowane tu rozwiązanie (Narzędzia, Aplikacja), wymusiła konieczność uporządkowania w sposób dopuszczalnie i koniecznie umowny, w rozumieniu prawa cywilnego, wybranych propozycji, działań, zamierzeń i możliwych realizacji."]
[null,null,null,null,null,null,null,null,"    Doświadczam znacznego stopnia komercjalizacji (tu rzecz rozumiem jako głównie niezamierzona wcześniej konieczność realizacji różnych dodatkowych usług, które stają się wysoce absorbujące w zakresie czasu i innych zasobów)."]
[null,null,null,null,null,null,null,null,"    W wielu przypadkach rzecz staje się źródłem różnie definiowanej miarodajności w szczególności w zakresie czynności analitycznych, sprawozdawczych, raportujących i kontrolnych."]
[null,null,null,null,null,null,null,null,"    Zaistniał wysoce nieprzewidywalny stan możliwych działań po stronie MEiN, które w szczególności mogą generować nie tylko inną metodologię dokonania analizy za dany rok względem już koniecznie teraz gromadzonych danych, ale także różnorodne (etapowe, śródroczne) i zmienne potrzeby natury analitycznej w trakcie trwania roku."]
[null,null,null,null,null,null,null,null,"    Zaistniała sygnalizowana głownie po Państwa stronie potrzeba zdefiniowania zakresu czynności i odpowiedzialności."]
[null,null,null,null,null,null,null,null,"    Przewiduje się, że w roku 2023 zaistnieje potrzeba znacznego rozbudowania proponowanych tu Narzędzi – jeżeli te przewidywania są słuszne, to już dziś istnieje konieczność wdrożenia, przetestowania i oceny systemu porządkowania wielu warstw istnienia, dostępności i dystrybucji tego rodzaju propozycji."]

{"sheet":"Uwaga","index":34,"n_rows":4,"n_cols":3,"rows_kept":4,"cut":false,"hidden":true,"merged":[]}
[]
[]
[null,null,"Proszę czekać - trwa naprawa…"]
[null,null,"w oknie komunikatu proszę kliknąć [Ok]"]

{"sheet":"nxD","index":35,"n_rows":85,"n_cols":233,"rows_kept":85,"cut":false,"hidden":true,"merged":[]}
[]
[0,"ZPO TRZCIANA",0,"awn105.xlsx",2,"BĘBENEK JOLANTA",4046,4046,4046,4046,4224,4224,4224,4224,4224,4224,4224,4224,1,1,1,1,1,1,1,1,1,1,1,1,3,3,3,3,0,0,0,0,0,0,0,0,0,0,0,0,0,0,0,0,0,0,0,0,0,0,0,0,0,0,0,0,0,44659,44682,44713,44743,0,0,0,0,0,0,0,0,0,0,0,0,0,0,0,0,0,0,0,0,0,0,0,0,0,0,0,0,0,44681,44712,44742,44747,0,0,0,0,0,0,0,0,0,0,0,0,0,0,0,0,0,0,0,0,0,0,0,0,0,0,0,0,0,12187.45,6853.52,20049.2,5920.46,968.22,53.53,2273.77,6495.47,7260.03,7906.56,7420.44,6778.8,0,0,0,0,0,0,0,0,0,0,0,0,0,0,0,0,0,0,0,0,0,0,0,0,0,0,0,0,0,0,0,0,0,0,0,0,0,0,0,0,0,0,0,0,0,0,0,0,0,0,0,0,0,0,0,0,0,0,0,0,0,0,0,0,0,0,0,0,0,0,0,0,1,105,18,18,32,0,4,1,244332.05,133192.31,144371.66,128025.54,142015.26999999999,146025.04999999999,145594.9,131187.88,146399.75,173996.79,148077.45000000001,141271.70000000001]
[null,null,null,null,null,"BIELAK ANNA",4046,4046,4046,4046,4224,4224,4224,4224,4224,4224,4224,4224,1,1,1,1,1,1,1,1,1,1,1,1,1,1,1,3,3,0,0,0,0,0,0,0,0,0,0,0,0,0,0,0,0,0,0,0,0,0,0,0,0,0,0,0,0,44571,44620,44627,44631,44676,0,0,0,0,0,0,0,0,0,0,0,0,0,0,0,0,0,0,0,0,0,0,0,0,0,0,0,0,44575,44624,44630,44631,44694,0,0,0,0,0,0,0,0,0,0,0,0,0,0,0,0,0,0,0,0,0,0,0,0,0,0,0,0,9865.08,4748.5200000000004,4698.16,4648.66,2429.1999999999998,5068.8,5120.8999999999996,5112.45,5068.8,5111.04,5491.2,5406.72,0,0,0,0,0,0,0,0,0,0,0,0,null,null,null,null,null,null,null,null,null,null,null,null,null,null,null,null,null,null,null,null,null,null,null,null,null,null,null,null,null,null,null,null,null,null,null,null,null,null,null,null,null,null,null,null,null,null,null,null,null,null,null,null,null,null,null,null,null,null,null,null,null,null,null,null,null,null,5,2]
[null,null,null,null,null,"BŁASIŃSKA MARTA",4046,4046,4046,4046,4224,4224,4224,4224,4224,4224,4224,4224,1,1,1,1,1,1,1,1,1,1,1,1,1,1,0,0,0,0,0,0,0,0,0,0,0,0,0,0,0,0,0,0,0,0,0,0,0,0,0,0,0,0,0,0,0,44616,44886,0,0,0,0,0,0,0,0,0,0,0,0,0,0,0,0,0,0,0,0,0,0,0,0,0,0,0,0,0,0,0,44617,44890,0,0,0,0,0,0,0,0,0,0,0,0,0,0,0,0,0,0,0,0,0,0,0,0,0,0,0,0,0,0,0,12983.45,7940.75,7865.97,7043.44,7621.6,7171.04,7938.34,7549.06,6748.64,17496.759999999998,6354.4,6446.09,0,0,0,0,0,0,0,0,0,0,0,0,null,null,null,null,null,null,null,null,null,null,null,null,null,null,null,null,null,null,null,null,null,null,null,null,null,null,null,null,null,null,null,null,null,null,null,null,null,null,null,null,null,null,null,null,null,null,null,null,null,null,null,null,null,null,null,null,null,null,null,null,null,null,null,null,null,null,2,3]
[null,null,null,null,null,"BURKOWICZ BARBARA",4046,4046,4046,4046,4224,4224,4224,4224,4224,4224,4224,4224,0.33333333333333298,0.33333333333333298,0.33333333333333298,0.33333333333333298,0.33333333333333298,0.33333333333333298,0.33333333333333298,0.33333333333333298,0.22222222222222199,0.22222222222222199,0.22222222222222199,0.22222222222222199,1,1,1,3,3,0,0,0,0,0,0,0,0,0,0,0,0,0,0,0,0,0,0,0,0,0,0,0,0,0,0,0,0,44620,44625,44811,44813,44821,0,0,0,0,0,0,0,0,0,0,0,0,0,0,0,0,0,0,0,0,0,0,0,0,0,0,0,0,44624,44631,44812,44813,44848,0,0,0,0,0,0,0,0,0,0,0,0,0,0,0,0,0,0,0,0,0,0,0,0,0,0,0,0,5590.67,1658.86,1589.49,1838.1,1731.84,1731.84,1731.84,1731.84,1145.17,236.17,1145.17,1145.17,0,0,0,0,0,0,0,0,0,0,0,0,null,null,null,null,null,null,null,null,null,null,null,null,null,null,null,null,null,null,null,null,null,null,null,null,null,null,null,null,null,null,null,null,null,null,null,null,null,null,null,null,null,null,null,null,null,null,null,null,null,null,null,null,null,null,null,null,null,null,null,null,null,null,null,null,null,null,5,4]
[null,null,null,null,null,"CEGLARZ KRZYSZTOF",4046,4046,4046,4046,4224,4224,4224,4224,4224,4224,4224,4224,0.63157894736842102,0.63157894736842102,0.63157894736842102,0.63157894736842102,0.63157894736842102,0.63157894736842102,0.63157894736842102,0.63157894736842102,0.55555555555555602,0.55555555555555602,0.55555555555555602,5.31914893617021E-2,1,1,1,1,1,1,0,0,0,0,0,0,0,0,0,0,0,0,0,0,0,0,0,0,0,0,0,0,0,0,0,0,0,44622,44630,44635,44652,44659,44721,0,0,0,0,0,0,0,0,0,0,0,0,0,0,0,0,0,0,0,0,0,0,0,0,0,0,0,44623,44631,44637,44652,44664,44725,0,0,0,0,0,0,0,0,0,0,0,0,0,0,0,0,0,0,0,0,0,0,0,0,0,0,0,4996.76,2695.09,2695.09,2549.23,2667.79,3438.62,2783.48,2907.9,2534.41,2557.87,2557.87,2557.87,0,0,0,0,0,0,0,0,0,0,0,0,null,null,null,null,null,null,null,null,null,null,null,null,null,null,null,null,null,null,null,null,null,null,null,null,null,null,null,null,null,null,null,null,null,null,null,null,null,null,null,null,null,null,null,null,null,null,null,null,null,null,null,null,null,null,null,null,null,null,null,null,null,null,null,null,null,null,6,5]
[null,null,null,null,null,"DZIURDZIA ANNA",0,0,0,0,0,0,0,0,4224,4224,4224,4224,0,0,0,0,0,0,0,0,0.55555555555555602,0.55555555555555602,0.55555555555555602,0.55555555555555602,3,3,0,0,0,0,0,0,0,0,0,0,0,0,0,0,0,0,0,0,0,0,0,0,0,0,0,0,0,0,0,0,0,44872,44915,0,0,0,0,0,0,0,0,0,0,0,0,0,0,0,0,0,0,0,0,0,0,0,0,0,0,0,0,0,0,0,44875,44917,0,0,0,0,0,0,0,0,0,0,0,0,0,0,0,0,0,0,0,0,0,0,0,0,0,0,0,0,0,0,0,0,0,0,0,0,0,0,0,2346.67,2346.67,2346.67,2033.78,0,0,0,0,0,0,0,0,0,0,0,0,null,null,null,null,null,null,null,null,null,null,null,null,null,null,null,null,null,null,null,null,null,null,null,null,null,null,null,null,null,null,null,null,null,null,null,null,null,null,null,null,null,null,null,null,null,null,null,null,null,null,null,null,null,null,null,null,null,null,null,null,null,null,null,null,null,null,2,6]
[null,null,null,null,null,"FOŁTA IRENEUSZ",4046,4046,4046,4046,4224,4224,4224,4224,4224,4224,4224,4224,1,1,1,1,1,1,1,1,1,1,1,1,1,0,0,0,0,0,0,0,0,0,0,0,0,0,0,0,0,0,0,0,0,0,0,0,0,0,0,0,0,0,0,0,0,44888,0,0,0,0,0,0,0,0,0,0,0,0,0,0,0,0,0,0,0,0,0,0,0,0,0,0,0,0,0,0,0,0,44894,0,0,0,0,0,0,0,0,0,0,0,0,0,0,0,0,0,0,0,0,0,0,0,0,0,0,0,0,0,0,0,0,11246.97,6677.43,6280.04,5506.93,5974.43,5711.41,6440.2,6169.86,5852.21,5514.29,4857.6000000000004,4816.41,0,0,0,0,0,0,0,0,0,0,0,0,null,null,null,null,null,null,null,null,null,null,null,null,null,null,null,null,null,null,null,null,null,null,null,null,null,null,null,null,null,null,null,null,null,null,null,null,null,null,null,null,null,null,null,null,null,null,null,null,null,null,null,null,null,null,null,null,null,null,null,null,null,null,null,null,null,null,1,7]
[null,null,null,null,null,"GICALA MAŁGORZATA",4046,4046,4046,4046,4224,4224,4224,4224,4224,4224,4224,4224,0.22222222222222199,0.22222222222222199,0.22222222222222199,0.22222222222222199,0.22222222222222199,0.22222222222222199,0.22222222222222199,0.22222222222222199,0.26010101010101,0.27777777777777801,0.29444444444444401,0.32275132275132301,3,1,1,0,0,0,0,0,0,0,0,0,0,0,0,0,0,0,0,0,0,0,0,0,0,0,0,0,0,0,0,0,0,44627,44651,44687,0,0,0,0,0,0,0,0,0,0,0,0,0,0,0,0,0,0,0,0,0,0,0,0,0,0,0,0,0,0,44628,44652,44692,0,0,0,0,0,0,0,0,0,0,0,0,0,0,0,0,0,0,0,0,0,0,0,0,0,0,0,0,0,0,2506.56,1042.96,1042.96,966.4,1088.8599999999999,1044.4100000000001,1088.8599999999999,1088.8599999999999,1263.47,1361.07,1442.74,1559.04,0,0,0,0,0,0,0,0,0,0,0,0,null,null,null,null,null,null,null,null,null,null,null,null,null,null,null,null,null,null,null,null,null,null,null,null,null,null,null,null,null,null,null,null,null,null,null,null,null,null,null,null,null,null,null,null,null,null,null,null,null,null,null,null,null,null,null,null,null,null,null,null,null,null,null,null,null,null,3,8]
[null,null,null,null,null,"GRUSZOWSKA MONIKA",0,4046,4046,4046,4224,4224,0,0,0,0,0,0,0,0.5,0.5,0.5,0.5,0.5,0,0,0,0,0,0,2,0,0,0,0,0,0,0,0,0,0,0,0,0,0,0,0,0,0,0,0,0,0,0,0,0,0,0,0,0,0,0,0,44737,0,0,0,0,0,0,0,0,0,0,0,0,0,0,0,0,0,0,0,0,0,0,0,0,0,0,0,0,0,0,0,0,44742,0,0,0,0,0,0,0,0,0,0,0,0,0,0,0,0,0,0,0,0,0,0,0,0,0,0,0,0,0,0,0,0,0,2225.3000000000002,2225.3000000000002,2202.33,2225.3000000000002,3878.38,0,0,0,0,0,0,0,0,0,0,0,0,0,0,0,0,0,0,null,null,null,null,null,null,null,null,null,null,null,null,null,null,null,null,null,null,null,null,null,null,null,null,null,null,null,null,null,null,null,null,null,null,null,null,null,null,null,null,null,null,null,null,null,null,null,null,null,null,null,null,null,null,null,null,null,null,null,null,null,null,null,null,null,null,1,9]
[null,null,null,null,null,"GURGUL MATEUSZ",4046,4046,4046,4046,4224,4224,4224,4224,4224,4224,4224,4224,0.38888888888888901,0.38888888888888901,0.38888888888888901,0.38888888888888901,0.38888888888888901,0.38888888888888901,0.38888888888888901,0.38888888888888901,0.5,0.5,0.5,0.5,1,2,2,2,2,0,0,0,0,0,0,0,0,0,0,0,0,0,0,0,0,0,0,0,0,0,0,0,0,0,0,0,0,44571,44805,44835,44866,44896,0,0,0,0,0,0,0,0,0,0,0,0,0,0,0,0,0,0,0,0,0,0,0,0,0,0,0,0,44573,44834,44865,44895,44926,0,0,0,0,0,0,0,0,0,0,0,0,0,0,0,0,0,0,0,0,0,0,0,0,0,0,0,0,3288.15,1697.81,1746.52,1746.52,1823.36,1823.36,1823.36,1823.36,0,0,0,0,0,0,0,0,0,0,0,0,0,0,0,0,null,null,null,null,null,null,null,null,null,null,null,null,null,null,null,null,null,null,null,null,null,null,null,null,null,null,null,null,null,null,null,null,null,null,null,null,null,null,null,null,null,null,null,null,null,null,null,null,null,null,null,null,null,null,null,null,null,null,null,null,null,null,null,null,null,null,5,10]
[null,null,null,null,null,"HOFFMANN ELŻBIETA",4046,4046,4046,4046,4224,4224,4224,4224,4224,4224,4224,4224,1,1,1,1,1,1,1,1,1,1,1,1,0,0,0,0,0,0,0,0,0,0,0,0,0,0,0,0,0,0,0,0,0,0,0,0,0,0,0,0,0,0,0,0,0,0,0,0,0,0,0,0,0,0,0,0,0,0,0,0,0,0,0,0,0,0,0,0,0,0,0,0,0,0,0,0,0,0,0,0,0,0,0,0,0,0,0,0,0,0,0,0,0,0,0,0,0,0,0,0,0,0,0,0,0,0,0,0,0,0,0,10917.27,5421.64,5421.64,5745.34,5626.49,5966.65,5649.59,5712.17,6716.16,6600.48,6152.96,6130.7,0,0,0,0,0,0,0,0,0,0,0,0,null,null,null,null,null,null,null,null,null,null,null,null,null,null,null,null,null,null,null,null,null,null,null,null,null,null,null,null,null,null,null,null,null,null,null,null,null,null,null,null,null,null,null,null,null,null,null,null,null,null,null,null,null,null,null,null,null,null,null,null,null,null,null,null,null,null,0,11]
[null,null,null,null,null,"KACKA MARTA",4046,4046,4046,4046,4224,4224,4224,4224,4224,4224,4224,4224,1,1,1,1,1,1,1,1,1,1,1,1,1,1,3,0,0,0,0,0,0,0,0,0,0,0,0,0,0,0,0,0,0,0,0,0,0,0,0,0,0,0,0,0,0,44592,44593,44606,0,0,0,0,0,0,0,0,0,0,0,0,0,0,0,0,0,0,0,0,0,0,0,0,0,0,0,0,0,0,44592,44605,44606,0,0,0,0,0,0,0,0,0,0,0,0,0,0,0,0,0,0,0,0,0,0,0,0,0,0,0,0,0,0,12315.29,6732.94,7134.73,6527.64,7152.64,6645.76,7267.58,6938.42,7392,7923.04,7166.72,6885.12,0,0,0,0,0,0,0,0,0,0,0,0,null,null,null,null,null,null,null,null,null,null,null,null,null,null,null,null,null,null,null,null,null,null,null,null,null,null,null,null,null,null,null,null,null,null,null,null,null,null,null,null,null,null,null,null,null,null,null,null,null,null,null,null,null,null,null,null,null,null,null,null,null,null,null,null,null,null,3,12]
[null,null,null,null,null,"KĄCKI ANDRZEJ",4046,4046,4046,4046,4224,4224,4224,4224,4224,4224,4224,4224,1,1,1,1,1,1,1,1,1,1,1,1,0,0,0,0,0,0,0,0,0,0,0,0,0,0,0,0,0,0,0,0,0,0,0,0,0,0,0,0,0,0,0,0,0,0,0,0,0,0,0,0,0,0,0,0,0,0,0,0,0,0,0,0,0,0,0,0,0,0,0,0,0,0,0,0,0,0,0,0,0,0,0,0,0,0,0,0,0,0,0,0,0,0,0,0,0,0,0,0,0,0,0,0,0,0,0,0,0,0,0,14835.65,7870.28,8078.58,8456.23,20945.52,8475.36,7236.32,7686.02,7983.36,8208.64,8321.2800000000007,7927.04,0,0,0,0,0,0,0,0,0,0,0,0,null,null,null,null,null,null,null,null,null,null,null,null,null,null,null,null,null,null,null,null,null,null,null,null,null,null,null,null,null,null,null,null,null,null,null,null,null,null,null,null,null,null,null,null,null,null,null,null,null,null,null,null,null,null,null,null,null,null,null,null,null,null,null,null,null,null,0,13]
[null,null,null,null,null,"KUKLA JADWIGA",4046,4046,4046,4046,4224,4224,4224,4224,4224,4224,4224,4224,1,1,1,1,1,1,1,1,1,1,1,1,2,0,0,0,0,0,0,0,0,0,0,0,0,0,0,0,0,0,0,0,0,0,0,0,0,0,0,0,0,0,0,0,0,44911,0,0,0,0,0,0,0,0,0,0,0,0,0,0,0,0,0,0,0,0,0,0,0,0,0,0,0,0,0,0,0,0,44911,0,0,0,0,0,0,0,0,0,0,0,0,0,0,0,0,0,0,0,0,0,0,0,0,0,0,0,0,0,0,0,0,10766.3,5317.04,5317.04,5317.04,5537.76,5537.76,5537.76,5537.76,5195.5200000000004,5895.52,5195.5200000000004,5195.5200000000004,0,0,0,0,0,0,0,0,0,0,0,0,null,null,null,null,null,null,null,null,null,null,null,null,null,null,null,null,null,null,null,null,null,null,null,null,null,null,null,null,null,null,null,null,null,null,null,null,null,null,null,null,null,null,null,null,null,null,null,null,null,null,null,null,null,null,null,null,null,null,null,null,null,null,null,null,null,null,1,14]
[null,null,null,null,null,"KUPIEC DANUTA",4046,4046,4046,4046,4224,4224,4224,4224,4224,4224,4224,4224,1,1,1,1,1,1,1,1,1,1,1,1,1,0,0,0,0,0,0,0,0,0,0,0,0,0,0,0,0,0,0,0,0,0,0,0,0,0,0,0,0,0,0,0,0,44593,0,0,0,0,0,0,0,0,0,0,0,0,0,0,0,0,0,0,0,0,0,0,0,0,0,0,0,0,0,0,0,0,44599,0,0,0,0,0,0,0,0,0,0,0,0,0,0,0,0,0,0,0,0,0,0,0,0,0,0,0,0,0,0,0,0,11528.96,5917.98,5488.98,5340.74,5688.32,5575.68,6056.01,5923.32,5195.5200000000004,5895.52,5251.84,5364.48,0,0,0,0,0,0,0,0,0,0,0,0,null,null,null,null,null,null,null,null,null,null,null,null,null,null,null,null,null,null,null,null,null,null,null,null,null,null,null,null,null,null,null,null,null,null,null,null,null,null,null,null,null,null,null,null,null,null,null,null,null,null,null,null,null,null,null,null,null,null,null,null,null,null,null,null,null,null,1,15]
[null,null,null,null,null,"ŁUKASIK MARIA",4046,4046,4046,4046,4224,4224,4224,4224,4224,4224,4224,4224,1,1,1,1,1,1,1,1,1,1,1,1,1,1,3,3,3,0,0,0,0,0,0,0,0,0,0,0,0,0,0,0,0,0,0,0,0,0,0,0,0,0,0,0,0,44588,44597,44602,44802,44805,0,0,0,0,0,0,0,0,0,0,0,0,0,0,0,0,0,0,0,0,0,0,0,0,0,0,0,0,44596,44601,44610,44804,44818,0,0,0,0,0,0,0,0,0,0,0,0,0,0,0,0,0,0,0,0,0,0,0,0,0,0,0,0,13097.92,5626.91,5776.41,6975.44,7527.52,7000.08,6723.15,6881.2,5307.22,5745.41,7431.75,6785.68,0,0,0,0,0,0,0,0,0,0,0,0,null,null,null,null,null,null,null,null,null,null,null,null,null,null,null,null,null,null,null,null,null,null,null,null,null,null,null,null,null,null,null,null,null,null,null,null,null,null,null,null,null,null,null,null,null,null,null,null,null,null,null,null,null,null,null,null,null,null,null,null,null,null,null,null,null,null,5,16]
[null,null,null,null,null,"MACHAJ WOJCIECH",4046,4046,4046,4046,4224,4224,4224,4224,4224,4224,4224,4224,1,1,1,1,1,1,1,1,1,1,1,1,0,0,0,0,0,0,0,0,0,0,0,0,0,0,0,0,0,0,0,0,0,0,0,0,0,0,0,0,0,0,0,0,0,0,0,0,0,0,0,0,0,0,0,0,0,0,0,0,0,0,0,0,0,0,0,0,0,0,0,0,0,0,0,0,0,0,0,0,0,0,0,0,0,0,0,0,0,0,0,0,0,0,0,0,0,0,0,0,0,0,0,0,0,0,0,0,0,0,0,10099.39,5220.25,5246.33,4976.58,5195.5200000000004,5195.5200000000004,5357.37,5331.12,5153.28,5153.28,5209.6000000000004,5153.28,0,0,0,0,0,0,0,0,0,0,0,0,null,null,null,null,null,null,null,null,null,null,null,null,null,null,null,null,null,null,null,null,null,null,null,null,null,null,null,null,null,null,null,null,null,null,null,null,null,null,null,null,null,null,null,null,null,null,null,null,null,null,null,null,null,null,null,null,null,null,null,null,null,null,null,null,null,null,0,17]
[null,null,null,null,null,"MŁYŃSKA JOLANTA",4046,4046,4046,4046,4224,4224,4224,4224,4224,4224,4224,4224,1,1,1,1,1,1,1,1,1,1,1,1,0,0,0,0,0,0,0,0,0,0,0,0,0,0,0,0,0,0,0,0,0,0,0,0,0,0,0,0,0,0,0,0,0,0,0,0,0,0,0,0,0,0,0,0,0,0,0,0,0,0,0,0,0,0,0,0,0,0,0,0,0,0,0,0,0,0,0,0,0,0,0,0,0,0,0,0,0,0,0,0,0,0,0,0,0,0,0,0,0,0,0,0,0,0,0,0,0,0,0,13319.4,7644,7512.06,6896.34,7460.07,22086.67,6826.39,7010.48,7286.01,8307.3799999999992,7653.29,7331.92,0,0,0,0,0,0,0,0,0,0,0,0,null,null,null,null,null,null,null,null,null,null,null,null,null,null,null,null,null,null,null,null,null,null,null,null,null,null,null,null,null,null,null,null,null,null,null,null,null,null,null,null,null,null,null,null,null,null,null,null,null,null,null,null,null,null,null,null,null,null,null,null,null,null,null,null,null,null,0,18]
[null,null,null,null,null,"MROCZEK PIOTR",0,0,0,0,0,0,0,0,4224,4224,4224,4224,0,0,0,0,0,0,0,0,0.88888888888888895,0.88888888888888895,0.88888888888888895,0.88888888888888895,0,0,0,0,0,0,0,0,0,0,0,0,0,0,0,0,0,0,0,0,0,0,0,0,0,0,0,0,0,0,0,0,0,0,0,0,0,0,0,0,0,0,0,0,0,0,0,0,0,0,0,0,0,0,0,0,0,0,0,0,0,0,0,0,0,0,0,0,0,0,0,0,0,0,0,0,0,0,0,0,0,0,0,0,0,0,0,0,0,0,0,0,0,0,0,0,0,0,0,0,0,0,0,0,0,0,0,3884.67,3754.67,4014.67,3884.67,0,0,0,0,0,0,0,0,0,0,0,0,null,null,null,null,null,null,null,null,null,null,null,null,null,null,null,null,null,null,null,null,null,null,null,null,null,null,null,null,null,null,null,null,null,null,null,null,null,null,null,null,null,null,null,null,null,null,null,null,null,null,null,null,null,null,null,null,null,null,null,null,null,null,null,null,null,null,0,19]
[null,null,null,null,null,"MUCHA AGNIESZKA",4046,4046,4046,4046,4224,4224,4224,4224,4224,4224,4224,4224,1,1,1,1,1,1,1,1,1,1,1,1,0,0,0,0,0,0,0,0,0,0,0,0,0,0,0,0,0,0,0,0,0,0,0,0,0,0,0,0,0,0,0,0,0,0,0,0,0,0,0,0,0,0,0,0,0,0,0,0,0,0,0,0,0,0,0,0,0,0,0,0,0,0,0,0,0,0,0,0,0,0,0,0,0,0,0,0,0,0,0,0,0,0,0,0,0,0,0,0,0,0,0,0,0,0,0,0,0,0,0,12472.73,7704.32,7367.14,6719.74,7340,7002.08,7451.8,7141.42,6678.24,7241.44,7185.12,6903.52,0,0,0,0,0,0,0,0,0,0,0,0,null,null,null,null,null,null,null,null,null,null,null,null,null,null,null,null,null,null,null,null,null,null,null,null,null,null,null,null,null,null,null,null,null,null,null,null,null,null,null,null,null,null,null,null,null,null,null,null,null,null,null,null,null,null,null,null,null,null,null,null,null,null,null,null,null,null,0,20]
[null,null,null,null,null,"NATANEK ANNA",0,0,0,0,0,0,0,0,4224,4224,4224,4224,0,0,0,0,0,0,0,0,0.95,0.96277777777777795,0.96277777777777795,0.96277777777777795,1,0,0,0,0,0,0,0,0,0,0,0,0,0,0,0,0,0,0,0,0,0,0,0,0,0,0,0,0,0,0,0,0,44831,0,0,0,0,0,0,0,0,0,0,0,0,0,0,0,0,0,0,0,0,0,0,0,0,0,0,0,0,0,0,0,0,44837,0,0,0,0,0,0,0,0,0,0,0,0,0,0,0,0,0,0,0,0,0,0,0,0,0,0,0,0,0,0,0,0,0,0,0,0,0,0,0,0,4016.75,3771.54,4066.77,4066.77,0,0,0,0,0,0,0,0,0,0,0,0,null,null,null,null,null,null,null,null,null,null,null,null,null,null,null,null,null,null,null,null,null,null,null,null,null,null,null,null,null,null,null,null,null,null,null,null,null,null,null,null,null,null,null,null,null,null,null,null,null,null,null,null,null,null,null,null,null,null,null,null,null,null,null,null,null,null,1,21]
[null,null,null,null,null,"PAWLIŃSKA JUSTYNA",4046,4046,4046,4046,4224,4224,4224,4224,4224,4224,4224,4224,0.55555555555555602,0.55555555555555602,0.55555555555555602,0.55555555555555602,0.55555555555555602,0.55555555555555602,0.55555555555555602,0.55555555555555602,0.24747474747474699,0.27777777777777801,0.33838383838383801,0.39898989898989901,1,3,3,0,0,0,0,0,0,0,0,0,0,0,0,0,0,0,0,0,0,0,0,0,0,0,0,0,0,0,0,0,0,44657,44910,44914,0,0,0,0,0,0,0,0,0,0,0,0,0,0,0,0,0,0,0,0,0,0,0,0,0,0,0,0,0,0,44659,44911,44915,0,0,0,0,0,0,0,0,0,0,0,0,0,0,0,0,0,0,0,0,0,0,0,0,0,0,0,0,0,0,5011.7,2554.11,2382.64,2382.64,2466.5500000000002,2487.4699999999998,2757.91,2717.86,1108.05,1243.73,1467.73,1786.45,0,0,0,0,0,0,0,0,0,0,0,0,null,null,null,null,null,null,null,null,null,null,null,null,null,null,null,null,null,null,null,null,null,null,null,null,null,null,null,null,null,null,null,null,null,null,null,null,null,null,null,null,null,null,null,null,null,null,null,null,null,null,null,null,null,null,null,null,null,null,null,null,null,null,null,null,null,null,3,22]
[null,null,null,null,null,"PIJANOWSKA MARIA",4046,4046,4046,4046,4224,4224,4224,4224,4224,4224,4224,4224,1,1,1,1,1,1,1,1,1,1,1,1,1,0,0,0,0,0,0,0,0,0,0,0,0,0,0,0,0,0,0,0,0,0,0,0,0,0,0,0,0,0,0,0,0,44840,0,0,0,0,0,0,0,0,0,0,0,0,0,0,0,0,0,0,0,0,0,0,0,0,0,0,0,0,0,0,0,0,44841,0,0,0,0,0,0,0,0,0,0,0,0,0,0,0,0,0,0,0,0,0,0,0,0,0,0,0,0,0,0,0,0,11108.43,6347.9,6597.89,6651.84,7661.6,7436.32,6705.11,6522.3,7765.68,7033.52,7569,6920.88,0,0,0,0,0,0,0,0,0,0,0,0,null,null,null,null,null,null,null,null,null,null,null,null,null,null,null,null,null,null,null,null,null,null,null,null,null,null,null,null,null,null,null,null,null,null,null,null,null,null,null,null,null,null,null,null,null,null,null,null,null,null,null,null,null,null,null,null,null,null,null,null,null,null,null,null,null,null,1,23]
[null,null,null,null,null,"RECHULICZ RYSZARD",0,0,0,0,0,0,0,0,4224,4224,4224,4224,0,0,0,0,0,0,0,0,0.37,0.37,0.37,0.37,1,0,0,0,0,0,0,0,0,0,0,0,0,0,0,0,0,0,0,0,0,0,0,0,0,0,0,0,0,0,0,0,0,44844,0,0,0,0,0,0,0,0,0,0,0,0,0,0,0,0,0,0,0,0,0,0,0,0,0,0,0,0,0,0,0,0,44845,0,0,0,0,0,0,0,0,0,0,0,0,0,0,0,0,0,0,0,0,0,0,0,0,0,0,0,0,0,0,0,0,0,0,0,0,0,0,0,0,1766.06,1766.06,1725.25,1766.06,0,0,0,0,0,0,0,0,0,0,0,0,null,null,null,null,null,null,null,null,null,null,null,null,null,null,null,null,null,null,null,null,null,null,null,null,null,null,null,null,null,null,null,null,null,null,null,null,null,null,null,null,null,null,null,null,null,null,null,null,null,null,null,null,null,null,null,null,null,null,null,null,null,null,null,null,null,null,1,24]
[null,null,null,null,null,"SADZIKOWSKI DARIUSZ",4046,4046,4046,4046,4224,4224,4224,4224,4224,4224,4224,4224,1,1,1,1,1,1,1,1,1,1,1,1,1,1,1,0,0,0,0,0,0,0,0,0,0,0,0,0,0,0,0,0,0,0,0,0,0,0,0,0,0,0,0,0,0,44644,44880,44886,0,0,0,0,0,0,0,0,0,0,0,0,0,0,0,0,0,0,0,0,0,0,0,0,0,0,0,0,0,0,44645,44883,44888,0,0,0,0,0,0,0,0,0,0,0,0,0,0,0,0,0,0,0,0,0,0,0,0,0,0,0,0,0,0,9028.64,4496.92,4531.5200000000004,4463.26,4730.88,4730.88,4730.88,4730.88,5653.87,6223.87,5464.53,5033.13,0,0,0,0,0,0,0,0,0,0,0,0,null,null,null,null,null,null,null,null,null,null,null,null,null,null,null,null,null,null,null,null,null,null,null,null,null,null,null,null,null,null,null,null,null,null,null,null,null,null,null,null,null,null,null,null,null,null,null,null,null,null,null,null,null,null,null,null,null,null,null,null,null,null,null,null,null,null,3,25]
[null,null,null,null,null,"SZLACHTA MARCIN",0,0,0,0,0,0,0,0,4224,4224,4224,4224,0,0,0,0,0,0,0,0,0.96277777777777795,0.96277777777777795,0.96277777777777795,0.96277777777777795,0,0,0,0,0,0,0,0,0,0,0,0,0,0,0,0,0,0,0,0,0,0,0,0,0,0,0,0,0,0,0,0,0,0,0,0,0,0,0,0,0,0,0,0,0,0,0,0,0,0,0,0,0,0,0,0,0,0,0,0,0,0,0,0,0,0,0,0,0,0,0,0,0,0,0,0,0,0,0,0,0,0,0,0,0,0,0,0,0,0,0,0,0,0,0,0,0,0,0,0,0,0,0,0,0,0,0,4514.1099999999997,3815.98,3955.6,4514.1099999999997,0,0,0,0,0,0,0,0,0,0,0,0,null,null,null,null,null,null,null,null,null,null,null,null,null,null,null,null,null,null,null,null,null,null,null,null,null,null,null,null,null,null,null,null,null,null,null,null,null,null,null,null,null,null,null,null,null,null,null,null,null,null,null,null,null,null,null,null,null,null,null,null,null,null,null,null,null,null,0,26]
[null,null,null,null,null,"SZPILKA LUCYNA",4046,4046,4046,4046,4224,4224,4224,4224,4224,4224,4224,4224,1,1,1,1,1,1,1,1,1,1,1,1,1,1,0,0,0,0,0,0,0,0,0,0,0,0,0,0,0,0,0,0,0,0,0,0,0,0,0,0,0,0,0,0,0,44813,44914,0,0,0,0,0,0,0,0,0,0,0,0,0,0,0,0,0,0,0,0,0,0,0,0,0,0,0,0,0,0,0,44816,44917,0,0,0,0,0,0,0,0,0,0,0,0,0,0,0,0,0,0,0,0,0,0,0,0,0,0,0,0,0,0,0,13123.12,7578.52,7221.59,6682.09,7229.44,6947.84,7413.55,7164.5,7333.52,7934.41,7389.84,6714,0,0,0,0,0,0,0,0,0,0,0,0,null,null,null,null,null,null,null,null,null,null,null,null,null,null,null,null,null,null,null,null,null,null,null,null,null,null,null,null,null,null,null,null,null,null,null,null,null,null,null,null,null,null,null,null,null,null,null,null,null,null,null,null,null,null,null,null,null,null,null,null,null,null,null,null,null,null,2,27]
[null,null,null,null,null,"ŚLIWA MARTA",0,0,0,0,0,0,0,0,4224,4224,4224,4224,0,0,0,0,0,0,0,0,1,1,1,1,1,1,1,1,0,0,0,0,0,0,0,0,0,0,0,0,0,0,0,0,0,0,0,0,0,0,0,0,0,0,0,0,0,44867,44895,44907,44915,0,0,0,0,0,0,0,0,0,0,0,0,0,0,0,0,0,0,0,0,0,0,0,0,0,0,0,0,0,44870,44898,44908,44917,0,0,0,0,0,0,0,0,0,0,0,0,0,0,0,0,0,0,0,0,0,0,0,0,0,0,0,0,0,0,0,0,0,0,0,0,0,5463.04,6164.83,5502.04,4914.5200000000004,0,0,0,0,0,0,0,0,0,0,0,0,null,null,null,null,null,null,null,null,null,null,null,null,null,null,null,null,null,null,null,null,null,null,null,null,null,null,null,null,null,null,null,null,null,null,null,null,null,null,null,null,null,null,null,null,null,null,null,null,null,null,null,null,null,null,null,null,null,null,null,null,null,null,null,null,null,null,4,28]
[null,null,null,null,null,"WIŚNIEWSKA KAZIMIERA",4046,4046,4046,4046,4224,4224,4224,4224,4224,4224,4224,4224,1,1,1,1,1,1,1,1,1,1,1,1,1,0,0,0,0,0,0,0,0,0,0,0,0,0,0,0,0,0,0,0,0,0,0,0,0,0,0,0,0,0,0,0,0,44916,0,0,0,0,0,0,0,0,0,0,0,0,0,0,0,0,0,0,0,0,0,0,0,0,0,0,0,0,0,0,0,0,44917,0,0,0,0,0,0,0,0,0,0,0,0,0,0,0,0,0,0,0,0,0,0,0,0,0,0,0,0,0,0,0,0,11505.43,5812.77,5848.68,6552.36,7573.26,7619.17,6725.13,6490.42,5648.71,19402.59,5694.62,5602.8,0,0,0,0,0,0,0,0,0,0,0,0,null,null,null,null,null,null,null,null,null,null,null,null,null,null,null,null,null,null,null,null,null,null,null,null,null,null,null,null,null,null,null,null,null,null,null,null,null,null,null,null,null,null,null,null,null,null,null,null,null,null,null,null,null,null,null,null,null,null,null,null,null,null,null,null,null,null,1,29]
[null,null,null,null,null,"WOJS ANNA",0,0,0,4046,4224,4224,0,0,0,0,0,0,0,0,0,9.0909090909090898E-2,9.0909090909090898E-2,9.0909090909090898E-2,0,0,0,0,0,0,0,0,0,0,0,0,0,0,0,0,0,0,0,0,0,0,0,0,0,0,0,0,0,0,0,0,0,0,0,0,0,0,0,0,0,0,0,0,0,0,0,0,0,0,0,0,0,0,0,0,0,0,0,0,0,0,0,0,0,0,0,0,0,0,0,0,0,0,0,0,0,0,0,0,0,0,0,0,0,0,0,0,0,0,0,0,0,0,0,0,0,0,0,0,0,0,0,0,0,0,0,0,367.82,384,528.46,0,0,0,0,0,0,0,0,0,0,0,0,0,0,0,0,0,0,null,null,null,null,null,null,null,null,null,null,null,null,null,null,null,null,null,null,null,null,null,null,null,null,null,null,null,null,null,null,null,null,null,null,null,null,null,null,null,null,null,null,null,null,null,null,null,null,null,null,null,null,null,null,null,null,null,null,null,null,null,null,null,null,null,null,0,30]
[null,null,null,null,null,"WRONA LUCYNA",4046,4046,4046,4046,4224,4224,4224,4224,4224,4224,4224,4224,1,1,1,1,1,1,1,1,1,1,1,1,0,0,0,0,0,0,0,0,0,0,0,0,0,0,0,0,0,0,0,0,0,0,0,0,0,0,0,0,0,0,0,0,0,0,0,0,0,0,0,0,0,0,0,0,0,0,0,0,0,0,0,0,0,0,0,0,0,0,0,0,0,0,0,0,0,0,0,0,0,0,0,0,0,0,0,0,0,0,0,0,0,0,0,0,0,0,0,0,0,0,0,0,0,0,0,0,0,0,0,15418.94,9912.4,8417.08,7889.32,8841.56,8749.74,25799.73,8365.34,10118.58,9384.4500000000007,10043.23,7647.17,0,0,0,0,0,0,0,0,0,0,0,0,null,null,null,null,null,null,null,null,null,null,null,null,null,null,null,null,null,null,null,null,null,null,null,null,null,null,null,null,null,null,null,null,null,null,null,null,null,null,null,null,null,null,null,null,null,null,null,null,null,null,null,null,null,null,null,null,null,null,null,null,null,null,null,null,null,null,0,31]
[null,null,null,null,null,"YAKYBENIA SKIBA TATSIANA",4046,4046,4046,4046,4224,4224,4224,4224,0,0,0,0,0.83333333333333304,0.87,0.87,0.87,0.87,0.87,0.87,0.87,0,0,0,0,1,1,1,1,1,0,0,0,0,0,0,0,0,0,0,0,0,0,0,0,0,0,0,0,0,0,0,0,0,0,0,0,0,44564,44617,44621,44663,44712,0,0,0,0,0,0,0,0,0,0,0,0,0,0,0,0,0,0,0,0,0,0,0,0,0,0,0,0,44575,44620,44631,44663,44712,0,0,0,0,0,0,0,0,0,0,0,0,0,0,0,0,0,0,0,0,0,0,0,0,0,0,0,0,7117.79,3494.09,3836.62,3659.05,4123.54,4118.22,4155.87,4155.87,0,0,0,0,0,0,0,0,0,0,0,0,0,0,0,0,null,null,null,null,null,null,null,null,null,null,null,null,null,null,null,null,null,null,null,null,null,null,null,null,null,null,null,null,null,null,null,null,null,null,null,null,null,null,null,null,null,null,null,null,null,null,null,null,null,null,null,null,null,null,null,null,null,null,null,null,null,null,null,null,null,null,5,32]
[null,null,null,null,null,"0",0,0,0,0,0,0,0,0,0,0,0,0,0,0,0,0,0,0,0,0,0,0,0,0,0,0,0,0,0,0,0,0,0,0,0,0,0,0,0,0,0,0,0,0,0,0,0,0,0,0,0,0,0,0,0,0,0,0,0,0,0,0,0,0,0,0,0,0,0,0,0,0,0,0,0,0,0,0,0,0,0,0,0,0,0,0,0,0,0,0,0,0,0,0,0,0,0,0,0,0,0,0,0,0,0,0,0,0,0,0,0,0,0,0,0,0,0,0,0,0,0,0,0,0,0,0,0,0,0,0,0,0,0,0,0,0,0,0,0,0,0,0,0,0,0,0,0,null,null,null,null,null,null,null,null,null,null,null,null,null,null,null,null,null,null,null,null,null,null,null,null,null,null,null,null,null,null,null,null,null,null,null,null,null,null,null,null,null,null,null,null,null,null,null,null,null,null,null,null,null,null,null,null,null,null,null,null,null,null,null,null,null,null,0]
[null,null,null,null,null,"0",0,0,0,0,0,0,0,0,0,0,0,0,0,0,0,0,0,0,0,0,0,0,0,0,0,0,0,0,0,0,0,0,0,0,0,0,0,0,0,0,0,0,0,0,0,0,0,0,0,0,0,0,0,0,0,0,0,0,0,0,0,0,0,0,0,0,0,0,0,0,0,0,0,0,0,0,0,0,0,0,0,0,0,0,0,0,0,0,0,0,0,0,0,0,0,0,0,0,0,0,0,0,0,0,0,0,0,0,0,0,0,0,0,0,0,0,0,0,0,0,0,0,0,0,0,0,0,0,0,0,0,0,0,0,0,0,0,0,0,0,0,0,0,0,0,0,0,null,null,null,null,null,null,null,null,null,null,null,null,null,null,null,null,null,null,null,null,null,null,null,null,null,null,null,null,null,null,null,null,null,null,null,null,null,null,null,null,null,null,null,null,null,null,null,null,null,null,null,null,null,null,null,null,null,null,null,null,null,null,null,null,null,null,0]
[null,null,null,null,null,"0",0,0,0,0,0,0,0,0,0,0,0,0,0,0,0,0,0,0,0,0,0,0,0,0,0,0,0,0,0,0,0,0,0,0,0,0,0,0,0,0,0,0,0,0,0,0,0,0,0,0,0,0,0,0,0,0,0,0,0,0,0,0,0,0,0,0,0,0,0,0,0,0,0,0,0,0,0,0,0,0,0,0,0,0,0,0,0,0,0,0,0,0,0,0,0,0,0,0,0,0,0,0,0,0,0,0,0,0,0,0,0,0,0,0,0,0,0,0,0,0,0,0,0,0,0,0,0,0,0,0,0,0,0,0,0,0,0,0,0,0,0,0,0,0,0,0,0,null,null,null,null,null,null,null,null,null,null,null,null,null,null,null,null,null,null,null,null,null,null,null,null,null,null,null,null,null,null,null,null,null,null,null,null,null,null,null,null,null,null,null,null,null,null,null,null,null,null,null,null,null,null,null,null,null,null,null,null,null,null,null,null,null,null,0]
[null,null,null,null,null,"0",0,0,0,0,0,0,0,0,0,0,0,0,0,0,0,0,0,0,0,0,0,0,0,0,0,0,0,0,0,0,0,0,0,0,0,0,0,0,0,0,0,0,0,0,0,0,0,0,0,0,0,0,0,0,0,0,0,0,0,0,0,0,0,0,0,0,0,0,0,0,0,0,0,0,0,0,0,0,0,0,0,0,0,0,0,0,0,0,0,0,0,0,0,0,0,0,0,0,0,0,0,0,0,0,0,0,0,0,0,0,0,0,0,0,0,0,0,0,0,0,0,0,0,0,0,0,0,0,0,0,0,0,0,0,0,0,0,0,0,0,0,0,0,0,0,0,0,null,null,null,null,null,null,null,null,null,null,null,null,null,null,null,null,null,null,null,null,null,null,null,null,null,null,null,null,null,null,null,null,null,null,null,null,null,null,null,null,null,null,null,null,null,null,null,null,null,null,null,null,null,null,null,null,null,null,null,null,null,null,null,null,null,null,0]
[null,null,null,null,null,"0",0,0,0,0,0,0,0,0,0,0,0,0,0,0,0,0,0,0,0,0,0,0,0,0,0,0,0,0,0,0,0,0,0,0,0,0,0,0,0,0,0,0,0,0,0,0,0,0,0,0,0,0,0,0,0,0,0,0,0,0,0,0,0,0,0,0,0,0,0,0,0,0,0,0,0,0,0,0,0,0,0,0,0,0,0,0,0,0,0,0,0,0,0,0,0,0,0,0,0,0,0,0,0,0,0,0,0,0,0,0,0,0,0,0,0,0,0,0,0,0,0,0,0,0,0,0,0,0,0,0,0,0,0,0,0,0,0,0,0,0,0,0,0,0,0,0,0,null,null,null,null,null,null,null,null,null,null,null,null,null,null,null,null,null,null,null,null,null,null,null,null,null,null,null,null,null,null,null,null,null,null,null,null,null,null,null,null,null,null,null,null,null,null,null,null,null,null,null,null,null,null,null,null,null,null,null,null,null,null,null,null,null,null,0]
[null,null,null,null,null,"0",0,0,0,0,0,0,0,0,0,0,0,0,0,0,0,0,0,0,0,0,0,0,0,0,0,0,0,0,0,0,0,0,0,0,0,0,0,0,0,0,0,0,0,0,0,0,0,0,0,0,0,0,0,0,0,0,0,0,0,0,0,0,0,0,0,0,0,0,0,0,0,0,0,0,0,0,0,0,0,0,0,0,0,0,0,0,0,0,0,0,0,0,0,0,0,0,0,0,0,0,0,0,0,0,0,0,0,0,0,0,0,0,0,0,0,0,0,0,0,0,0,0,0,0,0,0,0,0,0,0,0,0,0,0,0,0,0,0,0,0,0,0,0,0,0,0,0,null,null,null,null,null,null,null,null,null,null,null,null,null,null,null,null,null,null,null,null,null,null,null,null,null,null,null,null,null,null,null,null,null,null,null,null,null,null,null,null,null,null,null,null,null,null,null,null,null,null,null,null,null,null,null,null,null,null,null,null,null,null,null,null,null,null,0]
[null,null,null,null,null,"0",0,0,0,0,0,0,0,0,0,0,0,0,0,0,0,0,0,0,0,0,0,0,0,0,0,0,0,0,0,0,0,0,0,0,0,0,0,0,0,0,0,0,0,0,0,0,0,0,0,0,0,0,0,0,0,0,0,0,0,0,0,0,0,0,0,0,0,0,0,0,0,0,0,0,0,0,0,0,0,0,0,0,0,0,0,0,0,0,0,0,0,0,0,0,0,0,0,0,0,0,0,0,0,0,0,0,0,0,0,0,0,0,0,0,0,0,0,0,0,0,0,0,0,0,0,0,0,0,0,0,0,0,0,0,0,0,0,0,0,0,0,0,0,0,0,0,0,null,null,null,null,null,null,null,null,null,null,null,null,null,null,null,null,null,null,null,null,null,null,null,null,null,null,null,null,null,null,null,null,null,null,null,null,null,null,null,null,null,null,null,null,null,null,null,null,null,null,null,null,null,null,null,null,null,null,null,null,null,null,null,null,null,null,0]
[null,null,null,null,null,"0",0,0,0,0,0,0,0,0,0,0,0,0,0,0,0,0,0,0,0,0,0,0,0,0,0,0,0,0,0,0,0,0,0,0,0,0,0,0,0,0,0,0,0,0,0,0,0,0,0,0,0,0,0,0,0,0,0,0,0,0,0,0,0,0,0,0,0,0,0,0,0,0,0,0,0,0,0,0,0,0,0,0,0,0,0,0,0,0,0,0,0,0,0,0,0,0,0,0,0,0,0,0,0,0,0,0,0,0,0,0,0,0,0,0,0,0,0,0,0,0,0,0,0,0,0,0,0,0,0,0,0,0,0,0,0,0,0,0,0,0,0,0,0,0,0,0,0,null,null,null,null,null,null,null,null,null,null,null,null,null,null,null,null,null,null,null,null,null,null,null,null,null,null,null,null,null,null,null,null,null,null,null,null,null,null,null,null,null,null,null,null,null,null,null,null,null,null,null,null,null,null,null,null,null,null,null,null,null,null,null,null,null,null,0]
[null,null,null,null,null,"0",0,0,0,0,0,0,0,0,0,0,0,0,0,0,0,0,0,0,0,0,0,0,0,0,0,0,0,0,0,0,0,0,0,0,0,0,0,0,0,0,0,0,0,0,0,0,0,0,0,0,0,0,0,0,0,0,0,0,0,0,0,0,0,0,0,0,0,0,0,0,0,0,0,0,0,0,0,0,0,0,0,0,0,0,0,0,0,0,0,0,0,0,0,0,0,0,0,0,0,0,0,0,0,0,0,0,0,0,0,0,0,0,0,0,0,0,0,0,0,0,0,0,0,0,0,0,0,0,0,0,0,0,0,0,0,0,0,0,0,0,0,0,0,0,0,0,0,null,null,null,null,null,null,null,null,null,null,null,null,null,null,null,null,null,null,null,null,null,null,null,null,null,null,null,null,null,null,null,null,null,null,null,null,null,null,null,null,null,null,null,null,null,null,null,null,null,null,null,null,null,null,null,null,null,null,null,null,null,null,null,null,null,null,0]
[null,null,null,null,null,"0",0,0,0,0,0,0,0,0,0,0,0,0,0,0,0,0,0,0,0,0,0,0,0,0,0,0,0,0,0,0,0,0,0,0,0,0,0,0,0,0,0,0,0,0,0,0,0,0,0,0,0,0,0,0,0,0,0,0,0,0,0,0,0,0,0,0,0,0,0,0,0,0,0,0,0,0,0,0,0,0,0,0,0,0,0,0,0,0,0,0,0,0,0,0,0,0,0,0,0,0,0,0,0,0,0,0,0,0,0,0,0,0,0,0,0,0,0,0,0,0,0,0,0,0,0,0,0,0,0,0,0,0,0,0,0,0,0,0,0,0,0,0,0,0,0,0,0,null,null,null,null,null,null,null,null,null,null,null,null,null,null,null,null,null,null,null,null,null,null,null,null,null,null,null,null,null,null,null,null,null,null,null,null,null,null,null,null,null,null,null,null,null,null,null,null,null,null,null,null,null,null,null,null,null,null,null,null,null,null,null,null,null,null,0]
[null,null,null,null,null,"0",0,0,0,0,0,0,0,0,0,0,0,0,0,0,0,0,0,0,0,0,0,0,0,0,0,0,0,0,0,0,0,0,0,0,0,0,0,0,0,0,0,0,0,0,0,0,0,0,0,0,0,0,0,0,0,0,0,0,0,0,0,0,0,0,0,0,0,0,0,0,0,0,0,0,0,0,0,0,0,0,0,0,0,0,0,0,0,0,0,0,0,0,0,0,0,0,0,0,0,0,0,0,0,0,0,0,0,0,0,0,0,0,0,0,0,0,0,0,0,0,0,0,0,0,0,0,0,0,0,0,0,0,0,0,0,0,0,0,0,0,0,0,0,0,0,0,0,null,null,null,null,null,null,null,null,null,null,null,null,null,null,null,null,null,null,null,null,null,null,null,null,null,null,null,null,null,null,null,null,null,null,null,null,null,null,null,null,null,null,null,null,null,null,null,null,null,null,null,null,null,null,null,null,null,null,null,null,null,null,null,null,null,null,0]
[null,null,null,null,null,"0",0,0,0,0,0,0,0,0,0,0,0,0,0,0,0,0,0,0,0,0,0,0,0,0,0,0,0,0,0,0,0,0,0,0,0,0,0,0,0,0,0,0,0,0,0,0,0,0,0,0,0,0,0,0,0,0,0,0,0,0,0,0,0,0,0,0,0,0,0,0,0,0,0,0,0,0,0,0,0,0,0,0,0,0,0,0,0,0,0,0,0,0,0,0,0,0,0,0,0,0,0,0,0,0,0,0,0,0,0,0,0,0,0,0,0,0,0,0,0,0,0,0,0,0,0,0,0,0,0,0,0,0,0,0,0,0,0,0,0,0,0,0,0,0,0,0,0,null,null,null,null,null,null,null,null,null,null,null,null,null,null,null,null,null,null,null,null,null,null,null,null,null,null,null,null,null,null,null,null,null,null,null,null,null,null,null,null,null,null,null,null,null,null,null,null,null,null,null,null,null,null,null,null,null,null,null,null,null,null,null,null,null,null,0]
[null,null,null,null,null,"0",0,0,0,0,0,0,0,0,0,0,0,0,0,0,0,0,0,0,0,0,0,0,0,0,0,0,0,0,0,0,0,0,0,0,0,0,0,0,0,0,0,0,0,0,0,0,0,0,0,0,0,0,0,0,0,0,0,0,0,0,0,0,0,0,0,0,0,0,0,0,0,0,0,0,0,0,0,0,0,0,0,0,0,0,0,0,0,0,0,0,0,0,0,0,0,0,0,0,0,0,0,0,0,0,0,0,0,0,0,0,0,0,0,0,0,0,0,0,0,0,0,0,0,0,0,0,0,0,0,0,0,0,0,0,0,0,0,0,0,0,0,0,0,0,0,0,0,null,null,null,null,null,null,null,null,null,null,null,null,null,null,null,null,null,null,null,null,null,null,null,null,null,null,null,null,null,null,null,null,null,null,null,null,null,null,null,null,null,null,null,null,null,null,null,null,null,null,null,null,null,null,null,null,null,null,null,null,null,null,null,null,null,null,0]
[null,null,null,null,null,"0",0,0,0,0,0,0,0,0,0,0,0,0,0,0,0,0,0,0,0,0,0,0,0,0,0,0,0,0,0,0,0,0,0,0,0,0,0,0,0,0,0,0,0,0,0,0,0,0,0,0,0,0,0,0,0,0,0,0,0,0,0,0,0,0,0,0,0,0,0,0,0,0,0,0,0,0,0,0,0,0,0,0,0,0,0,0,0,0,0,0,0,0,0,0,0,0,0,0,0,0,0,0,0,0,0,0,0,0,0,0,0,0,0,0,0,0,0,0,0,0,0,0,0,0,0,0,0,0,0,0,0,0,0,0,0,0,0,0,0,0,0,0,0,0,0,0,0,null,null,null,null,null,null,null,null,null,null,null,null,null,null,null,null,null,null,null,null,null,null,null,null,null,null,null,null,null,null,null,null,null,null,null,null,null,null,null,null,null,null,null,null,null,null,null,null,null,null,null,null,null,null,null,null,null,null,null,null,null,null,null,null,null,null,0]
[null,null,null,null,null,"0",0,0,0,0,0,0,0,0,0,0,0,0,0,0,0,0,0,0,0,0,0,0,0,0,0,0,0,0,0,0,0,0,0,0,0,0,0,0,0,0,0,0,0,0,0,0,0,0,0,0,0,0,0,0,0,0,0,0,0,0,0,0,0,0,0,0,0,0,0,0,0,0,0,0,0,0,0,0,0,0,0,0,0,0,0,0,0,0,0,0,0,0,0,0,0,0,0,0,0,0,0,0,0,0,0,0,0,0,0,0,0,0,0,0,0,0,0,0,0,0,0,0,0,0,0,0,0,0,0,0,0,0,0,0,0,0,0,0,0,0,0,0,0,0,0,0,0,null,null,null,null,null,null,null,null,null,null,null,null,null,null,null,null,null,null,null,null,null,null,null,null,null,null,null,null,null,null,null,null,null,null,null,null,null,null,null,null,null,null,null,null,null,null,null,null,null,null,null,null,null,null,null,null,null,null,null,null,null,null,null,null,null,null,0]
[null,null,null,null,null,"0",0,0,0,0,0,0,0,0,0,0,0,0,0,0,0,0,0,0,0,0,0,0,0,0,0,0,0,0,0,0,0,0,0,0,0,0,0,0,0,0,0,0,0,0,0,0,0,0,0,0,0,0,0,0,0,0,0,0,0,0,0,0,0,0,0,0,0,0,0,0,0,0,0,0,0,0,0,0,0,0,0,0,0,0,0,0,0,0,0,0,0,0,0,0,0,0,0,0,0,0,0,0,0,0,0,0,0,0,0,0,0,0,0,0,0,0,0,0,0,0,0,0,0,0,0,0,0,0,0,0,0,0,0,0,0,0,0,0,0,0,0,0,0,0,0,0,0,null,null,null,null,null,null,null,null,null,null,null,null,null,null,null,null,null,null,null,null,null,null,null,null,null,null,null,null,null,null,null,null,null,null,null,null,null,null,null,null,null,null,null,null,null,null,null,null,null,null,null,null,null,null,null,null,null,null,null,null,null,null,null,null,null,null,0]
[null,null,null,null,null,"0",0,0,0,0,0,0,0,0,0,0,0,0,0,0,0,0,0,0,0,0,0,0,0,0,0,0,0,0,0,0,0,0,0,0,0,0,0,0,0,0,0,0,0,0,0,0,0,0,0,0,0,0,0,0,0,0,0,0,0,0,0,0,0,0,0,0,0,0,0,0,0,0,0,0,0,0,0,0,0,0,0,0,0,0,0,0,0,0,0,0,0,0,0,0,0,0,0,0,0,0,0,0,0,0,0,0,0,0,0,0,0,0,0,0,0,0,0,0,0,0,0,0,0,0,0,0,0,0,0,0,0,0,0,0,0,0,0,0,0,0,0,0,0,0,0,0,0,null,null,null,null,null,null,null,null,null,null,null,null,null,null,null,null,null,null,null,null,null,null,null,null,null,null,null,null,null,null,null,null,null,null,null,null,null,null,null,null,null,null,null,null,null,null,null,null,null,null,null,null,null,null,null,null,null,null,null,null,null,null,null,null,null,null,0]
[null,null,null,null,null,"0",0,0,0,0,0,0,0,0,0,0,0,0,0,0,0,0,0,0,0,0,0,0,0,0,0,0,0,0,0,0,0,0,0,0,0,0,0,0,0,0,0,0,0,0,0,0,0,0,0,0,0,0,0,0,0,0,0,0,0,0,0,0,0,0,0,0,0,0,0,0,0,0,0,0,0,0,0,0,0,0,0,0,0,0,0,0,0,0,0,0,0,0,0,0,0,0,0,0,0,0,0,0,0,0,0,0,0,0,0,0,0,0,0,0,0,0,0,0,0,0,0,0,0,0,0,0,0,0,0,0,0,0,0,0,0,0,0,0,0,0,0,0,0,0,0,0,0,null,null,null,null,null,null,null,null,null,null,null,null,null,null,null,null,null,null,null,null,null,null,null,null,null,null,null,null,null,null,null,null,null,null,null,null,null,null,null,null,null,null,null,null,null,null,null,null,null,null,null,null,null,null,null,null,null,null,null,null,null,null,null,null,null,null,0]
[null,null,null,null,null,"0",0,0,0,0,0,0,0,0,0,0,0,0,0,0,0,0,0,0,0,0,0,0,0,0,0,0,0,0,0,0,0,0,0,0,0,0,0,0,0,0,0,0,0,0,0,0,0,0,0,0,0,0,0,0,0,0,0,0,0,0,0,0,0,0,0,0,0,0,0,0,0,0,0,0,0,0,0,0,0,0,0,0,0,0,0,0,0,0,0,0,0,0,0,0,0,0,0,0,0,0,0,0,0,0,0,0,0,0,0,0,0,0,0,0,0,0,0,0,0,0,0,0,0,0,0,0,0,0,0,0,0,0,0,0,0,0,0,0,0,0,0,0,0,0,0,0,0,null,null,null,null,null,null,null,null,null,null,null,null,null,null,null,null,null,null,null,null,null,null,null,null,null,null,null,null,null,null,null,null,null,null,null,null,null,null,null,null,null,null,null,null,null,null,null,null,null,null,null,null,null,null,null,null,null,null,null,null,null,null,null,null,null,null,0]
[null,null,null,null,null,"0",0,0,0,0,0,0,0,0,0,0,0,0,0,0,0,0,0,0,0,0,0,0,0,0,0,0,0,0,0,0,0,0,0,0,0,0,0,0,0,0,0,0,0,0,0,0,0,0,0,0,0,0,0,0,0,0,0,0,0,0,0,0,0,0,0,0,0,0,0,0,0,0,0,0,0,0,0,0,0,0,0,0,0,0,0,0,0,0,0,0,0,0,0,0,0,0,0,0,0,0,0,0,0,0,0,0,0,0,0,0,0,0,0,0,0,0,0,0,0,0,0,0,0,0,0,0,0,0,0,0,0,0,0,0,0,0,0,0,0,0,0,0,0,0,0,0,0,null,null,null,null,null,null,null,null,null,null,null,null,null,null,null,null,null,null,null,null,null,null,null,null,null,null,null,null,null,null,null,null,null,null,null,null,null,null,null,null,null,null,null,null,null,null,null,null,null,null,null,null,null,null,null,null,null,null,null,null,null,null,null,null,null,null,0]
[null,null,null,null,null,"0",0,0,0,0,0,0,0,0,0,0,0,0,0,0,0,0,0,0,0,0,0,0,0,0,0,0,0,0,0,0,0,0,0,0,0,0,0,0,0,0,0,0,0,0,0,0,0,0,0,0,0,0,0,0,0,0,0,0,0,0,0,0,0,0,0,0,0,0,0,0,0,0,0,0,0,0,0,0,0,0,0,0,0,0,0,0,0,0,0,0,0,0,0,0,0,0,0,0,0,0,0,0,0,0,0,0,0,0,0,0,0,0,0,0,0,0,0,0,0,0,0,0,0,0,0,0,0,0,0,0,0,0,0,0,0,0,0,0,0,0,0,0,0,0,0,0,0,null,null,null,null,null,null,null,null,null,null,null,null,null,null,null,null,null,null,null,null,null,null,null,null,null,null,null,null,null,null,null,null,null,null,null,null,null,null,null,null,null,null,null,null,null,null,null,null,null,null,null,null,null,null,null,null,null,null,null,null,null,null,null,null,null,null,0]
[null,null,null,null,null,"0",0,0,0,0,0,0,0,0,0,0,0,0,0,0,0,0,0,0,0,0,0,0,0,0,0,0,0,0,0,0,0,0,0,0,0,0,0,0,0,0,0,0,0,0,0,0,0,0,0,0,0,0,0,0,0,0,0,0,0,0,0,0,0,0,0,0,0,0,0,0,0,0,0,0,0,0,0,0,0,0,0,0,0,0,0,0,0,0,0,0,0,0,0,0,0,0,0,0,0,0,0,0,0,0,0,0,0,0,0,0,0,0,0,0,0,0,0,0,0,0,0,0,0,0,0,0,0,0,0,0,0,0,0,0,0,0,0,0,0,0,0,0,0,0,0,0,0,null,null,null,null,null,null,null,null,null,null,null,null,null,null,null,null,null,null,null,null,null,null,null,null,null,null,null,null,null,null,null,null,null,null,null,null,null,null,null,null,null,null,null,null,null,null,null,null,null,null,null,null,null,null,null,null,null,null,null,null,null,null,null,null,null,null,0]
[null,null,null,null,null,"0",0,0,0,0,0,0,0,0,0,0,0,0,0,0,0,0,0,0,0,0,0,0,0,0,0,0,0,0,0,0,0,0,0,0,0,0,0,0,0,0,0,0,0,0,0,0,0,0,0,0,0,0,0,0,0,0,0,0,0,0,0,0,0,0,0,0,0,0,0,0,0,0,0,0,0,0,0,0,0,0,0,0,0,0,0,0,0,0,0,0,0,0,0,0,0,0,0,0,0,0,0,0,0,0,0,0,0,0,0,0,0,0,0,0,0,0,0,0,0,0,0,0,0,0,0,0,0,0,0,0,0,0,0,0,0,0,0,0,0,0,0,0,0,0,0,0,0,null,null,null,null,null,null,null,null,null,null,null,null,null,null,null,null,null,null,null,null,null,null,null,null,null,null,null,null,null,null,null,null,null,null,null,null,null,null,null,null,null,null,null,null,null,null,null,null,null,null,null,null,null,null,null,null,null,null,null,null,null,null,null,null,null,null,0]
[null,null,null,null,null,"0",0,0,0,0,0,0,0,0,0,0,0,0,0,0,0,0,0,0,0,0,0,0,0,0,0,0,0,0,0,0,0,0,0,0,0,0,0,0,0,0,0,0,0,0,0,0,0,0,0,0,0,0,0,0,0,0,0,0,0,0,0,0,0,0,0,0,0,0,0,0,0,0,0,0,0,0,0,0,0,0,0,0,0,0,0,0,0,0,0,0,0,0,0,0,0,0,0,0,0,0,0,0,0,0,0,0,0,0,0,0,0,0,0,0,0,0,0,0,0,0,0,0,0,0,0,0,0,0,0,0,0,0,0,0,0,0,0,0,0,0,0,0,0,0,0,0,0,null,null,null,null,null,null,null,null,null,null,null,null,null,null,null,null,null,null,null,null,null,null,null,null,null,null,null,null,null,null,null,null,null,null,null,null,null,null,null,null,null,null,null,null,null,null,null,null,null,null,null,null,null,null,null,null,null,null,null,null,null,null,null,null,null,null,0]
[null,null,null,null,null,"0",0,0,0,0,0,0,0,0,0,0,0,0,0,0,0,0,0,0,0,0,0,0,0,0,0,0,0,0,0,0,0,0,0,0,0,0,0,0,0,0,0,0,0,0,0,0,0,0,0,0,0,0,0,0,0,0,0,0,0,0,0,0,0,0,0,0,0,0,0,0,0,0,0,0,0,0,0,0,0,0,0,0,0,0,0,0,0,0,0,0,0,0,0,0,0,0,0,0,0,0,0,0,0,0,0,0,0,0,0,0,0,0,0,0,0,0,0,0,0,0,0,0,0,0,0,0,0,0,0,0,0,0,0,0,0,0,0,0,0,0,0,0,0,0,0,0,0,null,null,null,null,null,null,null,null,null,null,null,null,null,null,null,null,null,null,null,null,null,null,null,null,null,null,null,null,null,null,null,null,null,null,null,null,null,null,null,null,null,null,null,null,null,null,null,null,null,null,null,null,null,null,null,null,null,null,null,null,null,null,null,null,null,null,0]
[null,null,null,null,null,"0",0,0,0,0,0,0,0,0,0,0,0,0,0,0,0,0,0,0,0,0,0,0,0,0,0,0,0,0,0,0,0,0,0,0,0,0,0,0,0,0,0,0,0,0,0,0,0,0,0,0,0,0,0,0,0,0,0,0,0,0,0,0,0,0,0,0,0,0,0,0,0,0,0,0,0,0,0,0,0,0,0,0,0,0,0,0,0,0,0,0,0,0,0,0,0,0,0,0,0,0,0,0,0,0,0,0,0,0,0,0,0,0,0,0,0,0,0,0,0,0,0,0,0,0,0,0,0,0,0,0,0,0,0,0,0,0,0,0,0,0,0,0,0,0,0,0,0,null,null,null,null,null,null,null,null,null,null,null,null,null,null,null,null,null,null,null,null,null,null,null,null,null,null,null,null,null,null,null,null,null,null,null,null,null,null,null,null,null,null,null,null,null,null,null,null,null,null,null,null,null,null,null,null,null,null,null,null,null,null,null,null,null,null,0]
[null,null,null,null,null,"0",0,0,0,0,0,0,0,0,0,0,0,0,0,0,0,0,0,0,0,0,0,0,0,0,0,0,0,0,0,0,0,0,0,0,0,0,0,0,0,0,0,0,0,0,0,0,0,0,0,0,0,0,0,0,0,0,0,0,0,0,0,0,0,0,0,0,0,0,0,0,0,0,0,0,0,0,0,0,0,0,0,0,0,0,0,0,0,0,0,0,0,0,0,0,0,0,0,0,0,0,0,0,0,0,0,0,0,0,0,0,0,0,0,0,0,0,0,0,0,0,0,0,0,0,0,0,0,0,0,0,0,0,0,0,0,0,0,0,0,0,0,0,0,0,0,0,0,null,null,null,null,null,null,null,null,null,null,null,null,null,null,null,null,null,null,null,null,null,null,null,null,null,null,null,null,null,null,null,null,null,null,null,null,null,null,null,null,null,null,null,null,null,null,null,null,null,null,null,null,null,null,null,null,null,null,null,null,null,null,null,null,null,null,0]
[null,null,null,null,null,"0",0,0,0,0,0,0,0,0,0,0,0,0,0,0,0,0,0,0,0,0,0,0,0,0,0,0,0,0,0,0,0,0,0,0,0,0,0,0,0,0,0,0,0,0,0,0,0,0,0,0,0,0,0,0,0,0,0,0,0,0,0,0,0,0,0,0,0,0,0,0,0,0,0,0,0,0,0,0,0,0,0,0,0,0,0,0,0,0,0,0,0,0,0,0,0,0,0,0,0,0,0,0,0,0,0,0,0,0,0,0,0,0,0,0,0,0,0,0,0,0,0,0,0,0,0,0,0,0,0,0,0,0,0,0,0,0,0,0,0,0,0,0,0,0,0,0,0,null,null,null,null,null,null,null,null,null,null,null,null,null,null,null,null,null,null,null,null,null,null,null,null,null,null,null,null,null,null,null,null,null,null,null,null,null,null,null,null,null,null,null,null,null,null,null,null,null,null,null,null,null,null,null,null,null,null,null,null,null,null,null,null,null,null,0]
[null,null,null,null,null,"0",0,0,0,0,0,0,0,0,0,0,0,0,0,0,0,0,0,0,0,0,0,0,0,0,0,0,0,0,0,0,0,0,0,0,0,0,0,0,0,0,0,0,0,0,0,0,0,0,0,0,0,0,0,0,0,0,0,0,0,0,0,0,0,0,0,0,0,0,0,0,0,0,0,0,0,0,0,0,0,0,0,0,0,0,0,0,0,0,0,0,0,0,0,0,0,0,0,0,0,0,0,0,0,0,0,0,0,0,0,0,0,0,0,0,0,0,0,0,0,0,0,0,0,0,0,0,0,0,0,0,0,0,0,0,0,0,0,0,0,0,0,0,0,0,0,0,0,null,null,null,null,null,null,null,null,null,null,null,null,null,null,null,null,null,null,null,null,null,null,null,null,null,null,null,null,null,null,null,null,null,null,null,null,null,null,null,null,null,null,null,null,null,null,null,null,null,null,null,null,null,null,null,null,null,null,null,null,null,null,null,null,null,null,0]
[null,null,null,null,null,"0",0,0,0,0,0,0,0,0,0,0,0,0,0,0,0,0,0,0,0,0,0,0,0,0,0,0,0,0,0,0,0,0,0,0,0,0,0,0,0,0,0,0,0,0,0,0,0,0,0,0,0,0,0,0,0,0,0,0,0,0,0,0,0,0,0,0,0,0,0,0,0,0,0,0,0,0,0,0,0,0,0,0,0,0,0,0,0,0,0,0,0,0,0,0,0,0,0,0,0,0,0,0,0,0,0,0,0,0,0,0,0,0,0,0,0,0,0,0,0,0,0,0,0,0,0,0,0,0,0,0,0,0,0,0,0,0,0,0,0,0,0,0,0,0,0,0,0,null,null,null,null,null,null,null,null,null,null,null,null,null,null,null,null,null,null,null,null,null,null,null,null,null,null,null,null,null,null,null,null,null,null,null,null,null,null,null,null,null,null,null,null,null,null,null,null,null,null,null,null,null,null,null,null,null,null,null,null,null,null,null,null,null,null,0]
[null,null,null,null,null,"0",0,0,0,0,0,0,0,0,0,0,0,0,0,0,0,0,0,0,0,0,0,0,0,0,0,0,0,0,0,0,0,0,0,0,0,0,0,0,0,0,0,0,0,0,0,0,0,0,0,0,0,0,0,0,0,0,0,0,0,0,0,0,0,0,0,0,0,0,0,0,0,0,0,0,0,0,0,0,0,0,0,0,0,0,0,0,0,0,0,0,0,0,0,0,0,0,0,0,0,0,0,0,0,0,0,0,0,0,0,0,0,0,0,0,0,0,0,0,0,0,0,0,0,0,0,0,0,0,0,0,0,0,0,0,0,0,0,0,0,0,0,0,0,0,0,0,0,null,null,null,null,null,null,null,null,null,null,null,null,null,null,null,null,null,null,null,null,null,null,null,null,null,null,null,null,null,null,null,null,null,null,null,null,null,null,null,null,null,null,null,null,null,null,null,null,null,null,null,null,null,null,null,null,null,null,null,null,null,null,null,null,null,null,0]
[null,null,null,null,null,"0",0,0,0,0,0,0,0,0,0,0,0,0,0,0,0,0,0,0,0,0,0,0,0,0,0,0,0,0,0,0,0,0,0,0,0,0,0,0,0,0,0,0,0,0,0,0,0,0,0,0,0,0,0,0,0,0,0,0,0,0,0,0,0,0,0,0,0,0,0,0,0,0,0,0,0,0,0,0,0,0,0,0,0,0,0,0,0,0,0,0,0,0,0,0,0,0,0,0,0,0,0,0,0,0,0,0,0,0,0,0,0,0,0,0,0,0,0,0,0,0,0,0,0,0,0,0,0,0,0,0,0,0,0,0,0,0,0,0,0,0,0,0,0,0,0,0,0,null,null,null,null,null,null,null,null,null,null,null,null,null,null,null,null,null,null,null,null,null,null,null,null,null,null,null,null,null,null,null,null,null,null,null,null,null,null,null,null,null,null,null,null,null,null,null,null,null,null,null,null,null,null,null,null,null,null,null,null,null,null,null,null,null,null,0]
[null,null,null,null,null,"0",0,0,0,0,0,0,0,0,0,0,0,0,0,0,0,0,0,0,0,0,0,0,0,0,0,0,0,0,0,0,0,0,0,0,0,0,0,0,0,0,0,0,0,0,0,0,0,0,0,0,0,0,0,0,0,0,0,0,0,0,0,0,0,0,0,0,0,0,0,0,0,0,0,0,0,0,0,0,0,0,0,0,0,0,0,0,0,0,0,0,0,0,0,0,0,0,0,0,0,0,0,0,0,0,0,0,0,0,0,0,0,0,0,0,0,0,0,0,0,0,0,0,0,0,0,0,0,0,0,0,0,0,0,0,0,0,0,0,0,0,0,0,0,0,0,0,0,null,null,null,null,null,null,null,null,null,null,null,null,null,null,null,null,null,null,null,null,null,null,null,null,null,null,null,null,null,null,null,null,null,null,null,null,null,null,null,null,null,null,null,null,null,null,null,null,null,null,null,null,null,null,null,null,null,null,null,null,null,null,null,null,null,null,0]
[null,null,null,null,null,"0",0,0,0,0,0,0,0,0,0,0,0,0,0,0,0,0,0,0,0,0,0,0,0,0,0,0,0,0,0,0,0,0,0,0,0,0,0,0,0,0,0,0,0,0,0,0,0,0,0,0,0,0,0,0,0,0,0,0,0,0,0,0,0,0,0,0,0,0,0,0,0,0,0,0,0,0,0,0,0,0,0,0,0,0,0,0,0,0,0,0,0,0,0,0,0,0,0,0,0,0,0,0,0,0,0,0,0,0,0,0,0,0,0,0,0,0,0,0,0,0,0,0,0,0,0,0,0,0,0,0,0,0,0,0,0,0,0,0,0,0,0,0,0,0,0,0,0,null,null,null,null,null,null,null,null,null,null,null,null,null,null,null,null,null,null,null,null,null,null,null,null,null,null,null,null,null,null,null,null,null,null,null,null,null,null,null,null,null,null,null,null,null,null,null,null,null,null,null,null,null,null,null,null,null,null,null,null,null,null,null,null,null,null,0]
[null,null,null,null,null,"0",0,0,0,0,0,0,0,0,0,0,0,0,0,0,0,0,0,0,0,0,0,0,0,0,0,0,0,0,0,0,0,0,0,0,0,0,0,0,0,0,0,0,0,0,0,0,0,0,0,0,0,0,0,0,0,0,0,0,0,0,0,0,0,0,0,0,0,0,0,0,0,0,0,0,0,0,0,0,0,0,0,0,0,0,0,0,0,0,0,0,0,0,0,0,0,0,0,0,0,0,0,0,0,0,0,0,0,0,0,0,0,0,0,0,0,0,0,0,0,0,0,0,0,0,0,0,0,0,0,0,0,0,0,0,0,0,0,0,0,0,0,0,0,0,0,0,0,null,null,null,null,null,null,null,null,null,null,null,null,null,null,null,null,null,null,null,null,null,null,null,null,null,null,null,null,null,null,null,null,null,null,null,null,null,null,null,null,null,null,null,null,null,null,null,null,null,null,null,null,null,null,null,null,null,null,null,null,null,null,null,null,null,null,0]
[null,null,null,null,null,"0",0,0,0,0,0,0,0,0,0,0,0,0,0,0,0,0,0,0,0,0,0,0,0,0,0,0,0,0,0,0,0,0,0,0,0,0,0,0,0,0,0,0,0,0,0,0,0,0,0,0,0,0,0,0,0,0,0,0,0,0,0,0,0,0,0,0,0,0,0,0,0,0,0,0,0,0,0,0,0,0,0,0,0,0,0,0,0,0,0,0,0,0,0,0,0,0,0,0,0,0,0,0,0,0,0,0,0,0,0,0,0,0,0,0,0,0,0,0,0,0,0,0,0,0,0,0,0,0,0,0,0,0,0,0,0,0,0,0,0,0,0,0,0,0,0,0,0,null,null,null,null,null,null,null,null,null,null,null,null,null,null,null,null,null,null,null,null,null,null,null,null,null,null,null,null,null,null,null,null,null,null,null,null,null,null,null,null,null,null,null,null,null,null,null,null,null,null,null,null,null,null,null,null,null,null,null,null,null,null,null,null,null,null,0]
[null,null,null,null,null,"0",0,0,0,0,0,0,0,0,0,0,0,0,0,0,0,0,0,0,0,0,0,0,0,0,0,0,0,0,0,0,0,0,0,0,0,0,0,0,0,0,0,0,0,0,0,0,0,0,0,0,0,0,0,0,0,0,0,0,0,0,0,0,0,0,0,0,0,0,0,0,0,0,0,0,0,0,0,0,0,0,0,0,0,0,0,0,0,0,0,0,0,0,0,0,0,0,0,0,0,0,0,0,0,0,0,0,0,0,0,0,0,0,0,0,0,0,0,0,0,0,0,0,0,0,0,0,0,0,0,0,0,0,0,0,0,0,0,0,0,0,0,0,0,0,0,0,0,null,null,null,null,null,null,null,null,null,null,null,null,null,null,null,null,null,null,null,null,null,null,null,null,null,null,null,null,null,null,null,null,null,null,null,null,null,null,null,null,null,null,null,null,null,null,null,null,null,null,null,null,null,null,null,null,null,null,null,null,null,null,null,null,null,null,0]
[null,null,null,null,null,"0",0,0,0,0,0,0,0,0,0,0,0,0,0,0,0,0,0,0,0,0,0,0,0,0,0,0,0,0,0,0,0,0,0,0,0,0,0,0,0,0,0,0,0,0,0,0,0,0,0,0,0,0,0,0,0,0,0,0,0,0,0,0,0,0,0,0,0,0,0,0,0,0,0,0,0,0,0,0,0,0,0,0,0,0,0,0,0,0,0,0,0,0,0,0,0,0,0,0,0,0,0,0,0,0,0,0,0,0,0,0,0,0,0,0,0,0,0,0,0,0,0,0,0,0,0,0,0,0,0,0,0,0,0,0,0,0,0,0,0,0,0,0,0,0,0,0,0,null,null,null,null,null,null,null,null,null,null,null,null,null,null,null,null,null,null,null,null,null,null,null,null,null,null,null,null,null,null,null,null,null,null,null,null,null,null,null,null,null,null,null,null,null,null,null,null,null,null,null,null,null,null,null,null,null,null,null,null,null,null,null,null,null,null,0]
[null,null,null,null,null,"0",0,0,0,0,0,0,0,0,0,0,0,0,0,0,0,0,0,0,0,0,0,0,0,0,0,0,0,0,0,0,0,0,0,0,0,0,0,0,0,0,0,0,0,0,0,0,0,0,0,0,0,0,0,0,0,0,0,0,0,0,0,0,0,0,0,0,0,0,0,0,0,0,0,0,0,0,0,0,0,0,0,0,0,0,0,0,0,0,0,0,0,0,0,0,0,0,0,0,0,0,0,0,0,0,0,0,0,0,0,0,0,0,0,0,0,0,0,0,0,0,0,0,0,0,0,0,0,0,0,0,0,0,0,0,0,0,0,0,0,0,0,0,0,0,0,0,0,null,null,null,null,null,null,null,null,null,null,null,null,null,null,null,null,null,null,null,null,null,null,null,null,null,null,null,null,null,null,null,null,null,null,null,null,null,null,null,null,null,null,null,null,null,null,null,null,null,null,null,null,null,null,null,null,null,null,null,null,null,null,null,null,null,null,0]
[null,null,null,null,null,"0",0,0,0,0,0,0,0,0,0,0,0,0,0,0,0,0,0,0,0,0,0,0,0,0,0,0,0,0,0,0,0,0,0,0,0,0,0,0,0,0,0,0,0,0,0,0,0,0,0,0,0,0,0,0,0,0,0,0,0,0,0,0,0,0,0,0,0,0,0,0,0,0,0,0,0,0,0,0,0,0,0,0,0,0,0,0,0,0,0,0,0,0,0,0,0,0,0,0,0,0,0,0,0,0,0,0,0,0,0,0,0,0,0,0,0,0,0,0,0,0,0,0,0,0,0,0,0,0,0,0,0,0,0,0,0,0,0,0,0,0,0,0,0,0,0,0,0,null,null,null,null,null,null,null,null,null,null,null,null,null,null,null,null,null,null,null,null,null,null,null,null,null,null,null,null,null,null,null,null,null,null,null,null,null,null,null,null,null,null,null,null,null,null,null,null,null,null,null,null,null,null,null,null,null,null,null,null,null,null,null,null,null,null,0]
[null,null,null,null,null,"0",0,0,0,0,0,0,0,0,0,0,0,0,0,0,0,0,0,0,0,0,0,0,0,0,0,0,0,0,0,0,0,0,0,0,0,0,0,0,0,0,0,0,0,0,0,0,0,0,0,0,0,0,0,0,0,0,0,0,0,0,0,0,0,0,0,0,0,0,0,0,0,0,0,0,0,0,0,0,0,0,0,0,0,0,0,0,0,0,0,0,0,0,0,0,0,0,0,0,0,0,0,0,0,0,0,0,0,0,0,0,0,0,0,0,0,0,0,0,0,0,0,0,0,0,0,0,0,0,0,0,0,0,0,0,0,0,0,0,0,0,0,0,0,0,0,0,0,null,null,null,null,null,null,null,null,null,null,null,null,null,null,null,null,null,null,null,null,null,null,null,null,null,null,null,null,null,null,null,null,null,null,null,null,null,null,null,null,null,null,null,null,null,null,null,null,null,null,null,null,null,null,null,null,null,null,null,null,null,null,null,null,null,null,0]
[null,null,null,null,null,"0",0,0,0,0,0,0,0,0,0,0,0,0,0,0,0,0,0,0,0,0,0,0,0,0,0,0,0,0,0,0,0,0,0,0,0,0,0,0,0,0,0,0,0,0,0,0,0,0,0,0,0,0,0,0,0,0,0,0,0,0,0,0,0,0,0,0,0,0,0,0,0,0,0,0,0,0,0,0,0,0,0,0,0,0,0,0,0,0,0,0,0,0,0,0,0,0,0,0,0,0,0,0,0,0,0,0,0,0,0,0,0,0,0,0,0,0,0,0,0,0,0,0,0,0,0,0,0,0,0,0,0,0,0,0,0,0,0,0,0,0,0,0,0,0,0,0,0,null,null,null,null,null,null,null,null,null,null,null,null,null,null,null,null,null,null,null,null,null,null,null,null,null,null,null,null,null,null,null,null,null,null,null,null,null,null,null,null,null,null,null,null,null,null,null,null,null,null,null,null,null,null,null,null,null,null,null,null,null,null,null,null,null,null,0]
[null,null,null,null,null,"0",0,0,0,0,0,0,0,0,0,0,0,0,0,0,0,0,0,0,0,0,0,0,0,0,0,0,0,0,0,0,0,0,0,0,0,0,0,0,0,0,0,0,0,0,0,0,0,0,0,0,0,0,0,0,0,0,0,0,0,0,0,0,0,0,0,0,0,0,0,0,0,0,0,0,0,0,0,0,0,0,0,0,0,0,0,0,0,0,0,0,0,0,0,0,0,0,0,0,0,0,0,0,0,0,0,0,0,0,0,0,0,0,0,0,0,0,0,0,0,0,0,0,0,0,0,0,0,0,0,0,0,0,0,0,0,0,0,0,0,0,0,0,0,0,0,0,0,null,null,null,null,null,null,null,null,null,null,null,null,null,null,null,null,null,null,null,null,null,null,null,null,null,null,null,null,null,null,null,null,null,null,null,null,null,null,null,null,null,null,null,null,null,null,null,null,null,null,null,null,null,null,null,null,null,null,null,null,null,null,null,null,null,null,0]
[null,null,null,null,null,"0",0,0,0,0,0,0,0,0,0,0,0,0,0,0,0,0,0,0,0,0,0,0,0,0,0,0,0,0,0,0,0,0,0,0,0,0,0,0,0,0,0,0,0,0,0,0,0,0,0,0,0,0,0,0,0,0,0,0,0,0,0,0,0,0,0,0,0,0,0,0,0,0,0,0,0,0,0,0,0,0,0,0,0,0,0,0,0,0,0,0,0,0,0,0,0,0,0,0,0,0,0,0,0,0,0,0,0,0,0,0,0,0,0,0,0,0,0,0,0,0,0,0,0,0,0,0,0,0,0,0,0,0,0,0,0,0,0,0,0,0,0,0,0,0,0,0,0,null,null,null,null,null,null,null,null,null,null,null,null,null,null,null,null,null,null,null,null,null,null,null,null,null,null,null,null,null,null,null,null,null,null,null,null,null,null,null,null,null,null,null,null,null,null,null,null,null,null,null,null,null,null,null,null,null,null,null,null,null,null,null,null,null,null,0]
[null,null,null,null,null,"0",0,0,0,0,0,0,0,0,0,0,0,0,0,0,0,0,0,0,0,0,0,0,0,0,0,0,0,0,0,0,0,0,0,0,0,0,0,0,0,0,0,0,0,0,0,0,0,0,0,0,0,0,0,0,0,0,0,0,0,0,0,0,0,0,0,0,0,0,0,0,0,0,0,0,0,0,0,0,0,0,0,0,0,0,0,0,0,0,0,0,0,0,0,0,0,0,0,0,0,0,0,0,0,0,0,0,0,0,0,0,0,0,0,0,0,0,0,0,0,0,0,0,0,0,0,0,0,0,0,0,0,0,0,0,0,0,0,0,0,0,0,0,0,0,0,0,0,null,null,null,null,null,null,null,null,null,null,null,null,null,null,null,null,null,null,null,null,null,null,null,null,null,null,null,null,null,null,null,null,null,null,null,null,null,null,null,null,null,null,null,null,null,null,null,null,null,null,null,null,null,null,null,null,null,null,null,null,null,null,null,null,null,null,0]
[null,null,null,null,null,"0",0,0,0,0,0,0,0,0,0,0,0,0,0,0,0,0,0,0,0,0,0,0,0,0,0,0,0,0,0,0,0,0,0,0,0,0,0,0,0,0,0,0,0,0,0,0,0,0,0,0,0,0,0,0,0,0,0,0,0,0,0,0,0,0,0,0,0,0,0,0,0,0,0,0,0,0,0,0,0,0,0,0,0,0,0,0,0,0,0,0,0,0,0,0,0,0,0,0,0,0,0,0,0,0,0,0,0,0,0,0,0,0,0,0,0,0,0,0,0,0,0,0,0,0,0,0,0,0,0,0,0,0,0,0,0,0,0,0,0,0,0,0,0,0,0,0,0,null,null,null,null,null,null,null,null,null,null,null,null,null,null,null,null,null,null,null,null,null,null,null,null,null,null,null,null,null,null,null,null,null,null,null,null,null,null,null,null,null,null,null,null,null,null,null,null,null,null,null,null,null,null,null,null,null,null,null,null,null,null,null,null,null,null,0]
[null,null,null,null,null,"0",0,0,0,0,0,0,0,0,0,0,0,0,0,0,0,0,0,0,0,0,0,0,0,0,0,0,0,0,0,0,0,0,0,0,0,0,0,0,0,0,0,0,0,0,0,0,0,0,0,0,0,0,0,0,0,0,0,0,0,0,0,0,0,0,0,0,0,0,0,0,0,0,0,0,0,0,0,0,0,0,0,0,0,0,0,0,0,0,0,0,0,0,0,0,0,0,0,0,0,0,0,0,0,0,0,0,0,0,0,0,0,0,0,0,0,0,0,0,0,0,0,0,0,0,0,0,0,0,0,0,0,0,0,0,0,0,0,0,0,0,0,0,0,0,0,0,0,null,null,null,null,null,null,null,null,null,null,null,null,null,null,null,null,null,null,null,null,null,null,null,null,null,null,null,null,null,null,null,null,null,null,null,null,null,null,null,null,null,null,null,null,null,null,null,null,null,null,null,null,null,null,null,null,null,null,null,null,null,null,null,null,null,null,0]
[null,null,null,null,null,"0",0,0,0,0,0,0,0,0,0,0,0,0,0,0,0,0,0,0,0,0,0,0,0,0,0,0,0,0,0,0,0,0,0,0,0,0,0,0,0,0,0,0,0,0,0,0,0,0,0,0,0,0,0,0,0,0,0,0,0,0,0,0,0,0,0,0,0,0,0,0,0,0,0,0,0,0,0,0,0,0,0,0,0,0,0,0,0,0,0,0,0,0,0,0,0,0,0,0,0,0,0,0,0,0,0,0,0,0,0,0,0,0,0,0,0,0,0,0,0,0,0,0,0,0,0,0,0,0,0,0,0,0,0,0,0,0,0,0,0,0,0,0,0,0,0,0,0,null,null,null,null,null,null,null,null,null,null,null,null,null,null,null,null,null,null,null,null,null,null,null,null,null,null,null,null,null,null,null,null,null,null,null,null,null,null,null,null,null,null,null,null,null,null,null,null,null,null,null,null,null,null,null,null,null,null,null,null,null,null,null,null,null,null,0]
[null,null,null,null,null,"0",0,0,0,0,0,0,0,0,0,0,0,0,0,0,0,0,0,0,0,0,0,0,0,0,0,0,0,0,0,0,0,0,0,0,0,0,0,0,0,0,0,0,0,0,0,0,0,0,0,0,0,0,0,0,0,0,0,0,0,0,0,0,0,0,0,0,0,0,0,0,0,0,0,0,0,0,0,0,0,0,0,0,0,0,0,0,0,0,0,0,0,0,0,0,0,0,0,0,0,0,0,0,0,0,0,0,0,0,0,0,0,0,0,0,0,0,0,0,0,0,0,0,0,0,0,0,0,0,0,0,0,0,0,0,0,0,0,0,0,0,0,0,0,0,0,0,0,null,null,null,null,null,null,null,null,null,null,null,null,null,null,null,null,null,null,null,null,null,null,null,null,null,null,null,null,null,null,null,null,null,null,null,null,null,null,null,null,null,null,null,null,null,null,null,null,null,null,null,null,null,null,null,null,null,null,null,null,null,null,null,null,null,null,0]
[null,null,null,null,null,"0",0,0,0,0,0,0,0,0,0,0,0,0,0,0,0,0,0,0,0,0,0,0,0,0,0,0,0,0,0,0,0,0,0,0,0,0,0,0,0,0,0,0,0,0,0,0,0,0,0,0,0,0,0,0,0,0,0,0,0,0,0,0,0,0,0,0,0,0,0,0,0,0,0,0,0,0,0,0,0,0,0,0,0,0,0,0,0,0,0,0,0,0,0,0,0,0,0,0,0,0,0,0,0,0,0,0,0,0,0,0,0,0,0,0,0,0,0,0,0,0,0,0,0,0,0,0,0,0,0,0,0,0,0,0,0,0,0,0,0,0,0,0,0,0,0,0,0,null,null,null,null,null,null,null,null,null,null,null,null,null,null,null,null,null,null,null,null,null,null,null,null,null,null,null,null,null,null,null,null,null,null,null,null,null,null,null,null,null,null,null,null,null,null,null,null,null,null,null,null,null,null,null,null,null,null,null,null,null,null,null,null,null,null,0]
[null,null,null,null,null,"0",0,0,0,0,0,0,0,0,0,0,0,0,0,0,0,0,0,0,0,0,0,0,0,0,0,0,0,0,0,0,0,0,0,0,0,0,0,0,0,0,0,0,0,0,0,0,0,0,0,0,0,0,0,0,0,0,0,0,0,0,0,0,0,0,0,0,0,0,0,0,0,0,0,0,0,0,0,0,0,0,0,0,0,0,0,0,0,0,0,0,0,0,0,0,0,0,0,0,0,0,0,0,0,0,0,0,0,0,0,0,0,0,0,0,0,0,0,0,0,0,0,0,0,0,0,0,0,0,0,0,0,0,0,0,0,0,0,0,0,0,0,0,0,0,0,0,0,null,null,null,null,null,null,null,null,null,null,null,null,null,null,null,null,null,null,null,null,null,null,null,null,null,null,null,null,null,null,null,null,null,null,null,null,null,null,null,null,null,null,null,null,null,null,null,null,null,null,null,null,null,null,null,null,null,null,null,null,null,null,null,null,null,null,0]
[null,null,null,null,null,"0",0,0,0,0,0,0,0,0,0,0,0,0,0,0,0,0,0,0,0,0,0,0,0,0,0,0,0,0,0,0,0,0,0,0,0,0,0,0,0,0,0,0,0,0,0,0,0,0,0,0,0,0,0,0,0,0,0,0,0,0,0,0,0,0,0,0,0,0,0,0,0,0,0,0,0,0,0,0,0,0,0,0,0,0,0,0,0,0,0,0,0,0,0,0,0,0,0,0,0,0,0,0,0,0,0,0,0,0,0,0,0,0,0,0,0,0,0,0,0,0,0,0,0,0,0,0,0,0,0,0,0,0,0,0,0,0,0,0,0,0,0,0,0,0,0,0,0,null,null,null,null,null,null,null,null,null,null,null,null,null,null,null,null,null,null,null,null,null,null,null,null,null,null,null,null,null,null,null,null,null,null,null,null,null,null,null,null,null,null,null,null,null,null,null,null,null,null,null,null,null,null,null,null,null,null,null,null,null,null,null,null,null,null,0]

{"sheet":"nxT","index":36,"n_rows":0,"n_cols":0,"rows_kept":0,"cut":false,"hidden":true,"merged":[]}

{"sheet":"nxTQ","index":37,"n_rows":0,"n_cols":0,"rows_kept":0,"cut":false,"hidden":true,"merged":[]}

{"sheet":"Licencja","index":38,"n_rows":4,"n_cols":1,"rows_kept":4,"cut":false,"hidden":true,"merged":[]}
["Brak licencji. Aplikacja funkcjonuje z określonymi ograniczeniami."]
["Prawo do użytkowania bez ograniczeń można nabyć poprzez uzyskanie licencji poprzez udział w szkoleniu lub zawarcie umowy licencyjnej."]
["Brak Licencji."]
[0]